{"text_format":"3","workbook":"xlsx","n_sheets":2,"sheets":["開始","年度行事曆"],"not_rendered":{"images":4,"defined_names":14},"read":"whole","date_system":"1900"}

{"sheet":"開始","index":0,"n_rows":7,"n_cols":2,"rows_kept":7}
[null,"關於此範本"]
[null,"使用這個範本來製作任何年份的個人小型企業行事曆。"]
[null,"填入公司名稱和連絡人詳細資料，然後新增公司標誌。"]
[null,"選取年份及輸入重要日期和場合。"]
[null,"附註： "]
[null,"年度行事曆工作表中的欄 A 提供額外的說明。此文字已刻意隱藏。若要移除文字，請選取欄 A，然後選取 [刪除]。 "]
[null,"若要深入了解表格，請在表格內按 SHIFT 並按 F10，選取 [表格] 選項，然後選取 [替代文字]。"]

{"sheet":"年度行事曆","index":1,"n_rows":55,"n_cols":21,"rows_kept":55,"merged":[[0,2,0,5],[2,2,2,8],[2,10,2,16],[11,2,11,8],[11,10,11,16],[20,2,20,8],[20,10,20,16],[29,2,29,8],[29,10,29,16],[38,2,38,8],[38,10,38,16],[47,2,47,8],[47,10,47,16],[50,20,54,20]]}
["在此工作表中製作任何年份的小型企業行事曆。此欄的儲存格是有關如何使用此工作表的實用指示。選取右側儲存格中的微調按鈕即可變更儲存格 C1 中的年份。儲存格 U1 是重要日期標籤",null,2022,{"$nulls":17},"重要日期"]
["右側儲存格是提示","使用微調按鈕變更行事曆年份"]
["儲存格 C3 到 Q55 是選取的年度行事曆、儲存格 C4 到 I10 是 1 月行事曆、儲存格 K4 到 Q10 是 2 月行事曆。儲存格 C3 是 1 月標籤、儲存格 K3 是 2 月。在儲存格 U3 到 U42 輸入重要日期和場合",null,"一月",{"$nulls":7},"二月",{"$nulls":9},"1 月 1 日"]
["儲存格 C4 到 I10 是 1 月行事曆標籤、儲存格 K4 到 Q10 是 2 月行事曆標籤。儲存格 A12 是下一個說明",null,"週日","週一","週二","週三","週四","週五","週六",null,"週日","週一","週二","週三","週四","週五","週六",{"$nulls":3},"元旦"]
[null,null,{"$f":"IF(DAY(_xlfn.SINGLE(JanSun1))=1,\"\",IF(AND(YEAR(_xlfn.SINGLE(JanSun1)+1)=_xlfn.SINGLE(行事曆年份),MONTH(_xlfn.SINGLE(JanSun1)+1)=1),_xlfn.SINGLE(JanSun1)+1,\"\"))","v":""},{"$f":"IF(DAY(_xlfn.SINGLE(JanSun1))=1,\"\",IF(AND(YEAR(_xlfn.SINGLE(JanSun1)+2)=_xlfn.SINGLE(行事曆年份),MONTH(_xlfn.SINGLE(JanSun1)+2)=1),_xlfn.SINGLE(JanSun1)+2,\"\"))","v":""},{"$f":"IF(DAY(_xlfn.SINGLE(JanSun1))=1,\"\",IF(AND(YEAR(_xlfn.SINGLE(JanSun1)+3)=_xlfn.SINGLE(行事曆年份),MONTH(_xlfn.SINGLE(JanSun1)+3)=1),_xlfn.SINGLE(JanSun1)+3,\"\"))","v":""},{"$f":"IF(DAY(_xlfn.SINGLE(JanSun1))=1,\"\",IF(AND(YEAR(_xlfn.SINGLE(JanSun1)+4)=_xlfn.SINGLE(行事曆年份),MONTH(_xlfn.SINGLE(JanSun1)+4)=1),_xlfn.SINGLE(JanSun1)+4,\"\"))","v":""},{"$f":"IF(DAY(_xlfn.SINGLE(JanSun1))=1,\"\",IF(AND(YEAR(_xlfn.SINGLE(JanSun1)+5)=_xlfn.SINGLE(行事曆年份),MONTH(_xlfn.SINGLE(JanSun1)+5)=1),_xlfn.SINGLE(JanSun1)+5,\"\"))","v":""},{"$f":"IF(DAY(_xlfn.SINGLE(JanSun1))=1,\"\",IF(AND(YEAR(_xlfn.SINGLE(JanSun1)+6)=_xlfn.SINGLE(行事曆年份),MONTH(_xlfn.SINGLE(JanSun1)+6)=1),_xlfn.SINGLE(JanSun1)+6,\"\"))","v":""},{"$f":"_xlfn.SINGLE(IF(DAY(_xlfn.SINGLE(JanSun1))=1,IF(AND(YEAR(_xlfn.SINGLE(JanSun1))=_xlfn.SINGLE(行事曆年份),MONTH(_xlfn.SINGLE(JanSun1))=1),JanSun1,\"\"),IF(AND(YEAR(_xlfn.SINGLE(JanSun1)+7)=_xlfn.SINGLE(行事曆年份),MONTH(_xlfn.SINGLE(JanSun1)+7)=1),_xlfn.SINGLE(JanSun1)+7,\"\")))","v":"2022-01-01"},null,{"$f":"IF(DAY(_xlfn.SINGLE(FebSun1))=1,\"\",IF(AND(YEAR(_xlfn.SINGLE(FebSun1)+1)=_xlfn.SINGLE(行事曆年份),MONTH(_xlfn.SINGLE(FebSun1)+1)=2),_xlfn.SINGLE(FebSun1)+1,\"\"))","v":""},{"$f":"IF(DAY(_xlfn.SINGLE(FebSun1))=1,\"\",IF(AND(YEAR(_xlfn.SINGLE(FebSun1)+2)=_xlfn.SINGLE(行事曆年份),MONTH(_xlfn.SINGLE(FebSun1)+2)=2),_xlfn.SINGLE(FebSun1)+2,\"\"))","v":""},{"$f":"IF(DAY(_xlfn.SINGLE(FebSun1))=1,\"\",IF(AND(YEAR(_xlfn.SINGLE(FebSun1)+3)=_xlfn.SINGLE(行事曆年份),MONTH(_xlfn.SINGLE(FebSun1)+3)=2),_xlfn.SINGLE(FebSun1)+3,\"\"))","v":"2022-02-01"},{"$f":"IF(DAY(_xlfn.SINGLE(FebSun1))=1,\"\",IF(AND(YEAR(_xlfn.SINGLE(FebSun1)+4)=_xlfn.SINGLE(行事曆年份),MONTH(_xlfn.SINGLE(FebSun1)+4)=2),_xlfn.SINGLE(FebSun1)+4,\"\"))","v":"2022-02-02"},{"$f":"IF(DAY(_xlfn.SINGLE(FebSun1))=1,\"\",IF(AND(YEAR(_xlfn.SINGLE(FebSun1)+5)=_xlfn.SINGLE(行事曆年份),MONTH(_xlfn.SINGLE(FebSun1)+5)=2),_xlfn.SINGLE(FebSun1)+5,\"\"))","v":"2022-02-03"},{"$f":"IF(DAY(_xlfn.SINGLE(FebSun1))=1,\"\",IF(AND(YEAR(_xlfn.SINGLE(FebSun1)+6)=_xlfn.SINGLE(行事曆年份),MONTH(_xlfn.SINGLE(FebSun1)+6)=2),_xlfn.SINGLE(FebSun1)+6,\"\"))","v":"2022-02-04"},{"$f":"_xlfn.SINGLE(IF(DAY(_xlfn.SINGLE(FebSun1))=1,IF(AND(YEAR(_xlfn.SINGLE(FebSun1))=_xlfn.SINGLE(行事曆年份),MONTH(_xlfn.SINGLE(FebSun1))=2),FebSun1,\"\"),IF(AND(YEAR(_xlfn.SINGLE(FebSun1)+7)=_xlfn.SINGLE(行事曆年份),MONTH(_xlfn.SINGLE(FebSun1)+7)=2),_xlfn.SINGLE(FebSun1)+7,\"\")))","v":"2022-02-05"}]
[null,null,{"$f":"IF(DAY(_xlfn.SINGLE(JanSun1))=1,IF(AND(YEAR(_xlfn.SINGLE(JanSun1)+1)=_xlfn.SINGLE(行事曆年份),MONTH(_xlfn.SINGLE(JanSun1)+1)=1),_xlfn.SINGLE(JanSun1)+1,\"\"),IF(AND(YEAR(_xlfn.SINGLE(JanSun1)+8)=_xlfn.SINGLE(行事曆年份),MONTH(_xlfn.SINGLE(JanSun1)+8)=1),_xlfn.SINGLE(JanSun1)+8,\"\"))","v":"2022-01-02"},{"$f":"IF(DAY(_xlfn.SINGLE(JanSun1))=1,IF(AND(YEAR(_xlfn.SINGLE(JanSun1)+2)=_xlfn.SINGLE(行事曆年份),MONTH(_xlfn.SINGLE(JanSun1)+2)=1),_xlfn.SINGLE(JanSun1)+2,\"\"),IF(AND(YEAR(_xlfn.SINGLE(JanSun1)+9)=_xlfn.SINGLE(行事曆年份),MONTH(_xlfn.SINGLE(JanSun1)+9)=1),_xlfn.SINGLE(JanSun1)+9,\"\"))","v":"2022-01-03"},{"$f":"IF(DAY(_xlfn.SINGLE(JanSun1))=1,IF(AND(YEAR(_xlfn.SINGLE(JanSun1)+3)=_xlfn.SINGLE(行事曆年份),MONTH(_xlfn.SINGLE(JanSun1)+3)=1),_xlfn.SINGLE(JanSun1)+3,\"\"),IF(AND(YEAR(_xlfn.SINGLE(JanSun1)+10)=_xlfn.SINGLE(行事曆年份),MONTH(_xlfn.SINGLE(JanSun1)+10)=1),_xlfn.SINGLE(JanSun1)+10,\"\"))","v":"2022-01-04"},{"$f":"IF(DAY(_xlfn.SINGLE(JanSun1))=1,IF(AND(YEAR(_xlfn.SINGLE(JanSun1)+4)=_xlfn.SINGLE(行事曆年份),MONTH(_xlfn.SINGLE(JanSun1)+4)=1),_xlfn.SINGLE(JanSun1)+4,\"\"),IF(AND(YEAR(_xlfn.SINGLE(JanSun1)+11)=_xlfn.SINGLE(行事曆年份),MONTH(_xlfn.SINGLE(JanSun1)+11)=1),_xlfn.SINGLE(JanSun1)+11,\"\"))","v":"2022-01-05"},{"$f":"IF(DAY(_xlfn.SINGLE(JanSun1))=1,IF(AND(YEAR(_xlfn.SINGLE(JanSun1)+5)=_xlfn.SINGLE(行事曆年份),MONTH(_xlfn.SINGLE(JanSun1)+5)=1),_xlfn.SINGLE(JanSun1)+5,\"\"),IF(AND(YEAR(_xlfn.SINGLE(JanSun1)+12)=_xlfn.SINGLE(行事曆年份),MONTH(_xlfn.SINGLE(JanSun1)+12)=1),_xlfn.SINGLE(JanSun1)+12,\"\"))","v":"2022-01-06"},{"$f":"IF(DAY(_xlfn.SINGLE(JanSun1))=1,IF(AND(YEAR(_xlfn.SINGLE(JanSun1)+6)=_xlfn.SINGLE(行事曆年份),MONTH(_xlfn.SINGLE(JanSun1)+6)=1),_xlfn.SINGLE(JanSun1)+6,\"\"),IF(AND(YEAR(_xlfn.SINGLE(JanSun1)+13)=_xlfn.SINGLE(行事曆年份),MONTH(_xlfn.SINGLE(JanSun1)+13)=1),_xlfn.SINGLE(JanSun1)+13,\"\"))","v":"2022-01-07"},{"$f":"IF(DAY(_xlfn.SINGLE(JanSun1))=1,IF(AND(YEAR(_xlfn.SINGLE(JanSun1)+7)=_xlfn.SINGLE(行事曆年份),MONTH(_xlfn.SINGLE(JanSun1)+7)=1),_xlfn.SINGLE(JanSun1)+7,\"\"),IF(AND(YEAR(_xlfn.SINGLE(JanSun1)+14)=_xlfn.SINGLE(行事曆年份),MONTH(_xlfn.SINGLE(JanSun1)+14)=1),_xlfn.SINGLE(JanSun1)+14,\"\"))","v":"2022-01-08"},null,{"$f":"IF(DAY(_xlfn.SINGLE(FebSun1))=1,IF(AND(YEAR(_xlfn.SINGLE(FebSun1)+1)=_xlfn.SINGLE(行事曆年份),MONTH(_xlfn.SINGLE(FebSun1)+1)=2),_xlfn.SINGLE(FebSun1)+1,\"\"),IF(AND(YEAR(_xlfn.SINGLE(FebSun1)+8)=_xlfn.SINGLE(行事曆年份),MONTH(_xlfn.SINGLE(FebSun1)+8)=2),_xlfn.SINGLE(FebSun1)+8,\"\"))","v":"2022-02-06"},{"$f":"IF(DAY(_xlfn.SINGLE(FebSun1))=1,IF(AND(YEAR(_xlfn.SINGLE(FebSun1)+2)=_xlfn.SINGLE(行事曆年份),MONTH(_xlfn.SINGLE(FebSun1)+2)=2),_xlfn.SINGLE(FebSun1)+2,\"\"),IF(AND(YEAR(_xlfn.SINGLE(FebSun1)+9)=_xlfn.SINGLE(行事曆年份),MONTH(_xlfn.SINGLE(FebSun1)+9)=2),_xlfn.SINGLE(FebSun1)+9,\"\"))","v":"2022-02-07"},{"$f":"IF(DAY(_xlfn.SINGLE(FebSun1))=1,IF(AND(YEAR(_xlfn.SINGLE(FebSun1)+3)=_xlfn.SINGLE(行事曆年份),MONTH(_xlfn.SINGLE(FebSun1)+3)=2),_xlfn.SINGLE(FebSun1)+3,\"\"),IF(AND(YEAR(_xlfn.SINGLE(FebSun1)+10)=_xlfn.SINGLE(行事曆年份),MONTH(_xlfn.SINGLE(FebSun1)+10)=2),_xlfn.SINGLE(FebSun1)+10,\"\"))","v":"2022-02-08"},{"$f":"IF(DAY(_xlfn.SINGLE(FebSun1))=1,IF(AND(YEAR(_xlfn.SINGLE(FebSun1)+4)=_xlfn.SINGLE(行事曆年份),MONTH(_xlfn.SINGLE(FebSun1)+4)=2),_xlfn.SINGLE(FebSun1)+4,\"\"),IF(AND(YEAR(_xlfn.SINGLE(FebSun1)+11)=_xlfn.SINGLE(行事曆年份),MONTH(_xlfn.SINGLE(FebSun1)+11)=2),_xlfn.SINGLE(FebSun1)+11,\"\"))","v":"2022-02-09"},{"$f":"IF(DAY(_xlfn.SINGLE(FebSun1))=1,IF(AND(YEAR(_xlfn.SINGLE(FebSun1)+5)=_xlfn.SINGLE(行事曆年份),MONTH(_xlfn.SINGLE(FebSun1)+5)=2),_xlfn.SINGLE(FebSun1)+5,\"\"),IF(AND(YEAR(_xlfn.SINGLE(FebSun1)+12)=_xlfn.SINGLE(行事曆年份),MONTH(_xlfn.SINGLE(FebSun1)+12)=2),_xlfn.SINGLE(FebSun1)+12,\"\"))","v":"2022-02-10"},{"$f":"IF(DAY(_xlfn.SINGLE(FebSun1))=1,IF(AND(YEAR(_xlfn.SINGLE(FebSun1)+6)=_xlfn.SINGLE(行事曆年份),MONTH(_xlfn.SINGLE(FebSun1)+6)=2),_xlfn.SINGLE(FebSun1)+6,\"\"),IF(AND(YEAR(_xlfn.SINGLE(FebSun1)+13)=_xlfn.SINGLE(行事曆年份),MONTH(_xlfn.SINGLE(FebSun1)+13)=2),_xlfn.SINGLE(FebSun1)+13,\"\"))","v":"2022-02-11"},{"$f":"IF(DAY(_xlfn.SINGLE(FebSun1))=1,IF(AND(YEAR(_xlfn.SINGLE(FebSun1)+7)=_xlfn.SINGLE(行事曆年份),MONTH(_xlfn.SINGLE(FebSun1)+7)=2),_xlfn.SINGLE(FebSun1)+7,\"\"),IF(AND(YEAR(_xlfn.SINGLE(FebSun1)+14)=_xlfn.SINGLE(行事曆年份),MONTH(_xlfn.SINGLE(FebSun1)+14)=2),_xlfn.SINGLE(FebSun1)+14,\"\"))","v":"2022-02-12"},{"$nulls":3},"2 月 14 日"]
[null,null,{"$f":"IF(DAY(_xlfn.SINGLE(JanSun1))=1,IF(AND(YEAR(_xlfn.SINGLE(JanSun1)+8)=_xlfn.SINGLE(行事曆年份),MONTH(_xlfn.SINGLE(JanSun1)+8)=1),_xlfn.SINGLE(JanSun1)+8,\"\"),IF(AND(YEAR(_xlfn.SINGLE(JanSun1)+15)=_xlfn.SINGLE(行事曆年份),MONTH(_xlfn.SINGLE(JanSun1)+15)=1),_xlfn.SINGLE(JanSun1)+15,\"\"))","v":"2022-01-09"},{"$f":"IF(DAY(_xlfn.SINGLE(JanSun1))=1,IF(AND(YEAR(_xlfn.SINGLE(JanSun1)+9)=_xlfn.SINGLE(行事曆年份),MONTH(_xlfn.SINGLE(JanSun1)+9)=1),_xlfn.SINGLE(JanSun1)+9,\"\"),IF(AND(YEAR(_xlfn.SINGLE(JanSun1)+16)=_xlfn.SINGLE(行事曆年份),MONTH(_xlfn.SINGLE(JanSun1)+16)=1),_xlfn.SINGLE(JanSun1)+16,\"\"))","v":"2022-01-10"},{"$f":"IF(DAY(_xlfn.SINGLE(JanSun1))=1,IF(AND(YEAR(_xlfn.SINGLE(JanSun1)+10)=_xlfn.SINGLE(行事曆年份),MONTH(_xlfn.SINGLE(JanSun1)+10)=1),_xlfn.SINGLE(JanSun1)+10,\"\"),IF(AND(YEAR(_xlfn.SINGLE(JanSun1)+17)=_xlfn.SINGLE(行事曆年份),MONTH(_xlfn.SINGLE(JanSun1)+17)=1),_xlfn.SINGLE(JanSun1)+17,\"\"))","v":"2022-01-11"},{"$f":"IF(DAY(_xlfn.SINGLE(JanSun1))=1,IF(AND(YEAR(_xlfn.SINGLE(JanSun1)+11)=_xlfn.SINGLE(行事曆年份),MONTH(_xlfn.SINGLE(JanSun1)+11)=1),_xlfn.SINGLE(JanSun1)+11,\"\"),IF(AND(YEAR(_xlfn.SINGLE(JanSun1)+18)=_xlfn.SINGLE(行事曆年份),MONTH(_xlfn.SINGLE(JanSun1)+18)=1),_xlfn.SINGLE(JanSun1)+18,\"\"))","v":"2022-01-12"},{"$f":"IF(DAY(_xlfn.SINGLE(JanSun1))=1,IF(AND(YEAR(_xlfn.SINGLE(JanSun1)+12)=_xlfn.SINGLE(行事曆年份),MONTH(_xlfn.SINGLE(JanSun1)+12)=1),_xlfn.SINGLE(JanSun1)+12,\"\"),IF(AND(YEAR(_xlfn.SINGLE(JanSun1)+19)=_xlfn.SINGLE(行事曆年份),MONTH(_xlfn.SINGLE(JanSun1)+19)=1),_xlfn.SINGLE(JanSun1)+19,\"\"))","v":"2022-01-13"},{"$f":"IF(DAY(_xlfn.SINGLE(JanSun1))=1,IF(AND(YEAR(_xlfn.SINGLE(JanSun1)+13)=_xlfn.SINGLE(行事曆年份),MONTH(_xlfn.SINGLE(JanSun1)+13)=1),_xlfn.SINGLE(JanSun1)+13,\"\"),IF(AND(YEAR(_xlfn.SINGLE(JanSun1)+20)=_xlfn.SINGLE(行事曆年份),MONTH(_xlfn.SINGLE(JanSun1)+20)=1),_xlfn.SINGLE(JanSun1)+20,\"\"))","v":"2022-01-14"},{"$f":"IF(DAY(_xlfn.SINGLE(JanSun1))=1,IF(AND(YEAR(_xlfn.SINGLE(JanSun1)+14)=_xlfn.SINGLE(行事曆年份),MONTH(_xlfn.SINGLE(JanSun1)+14)=1),_xlfn.SINGLE(JanSun1)+14,\"\"),IF(AND(YEAR(_xlfn.SINGLE(JanSun1)+21)=_xlfn.SINGLE(行事曆年份),MONTH(_xlfn.SINGLE(JanSun1)+21)=1),_xlfn.SINGLE(JanSun1)+21,\"\"))","v":"2022-01-15"},null,{"$f":"IF(DAY(_xlfn.SINGLE(FebSun1))=1,IF(AND(YEAR(_xlfn.SINGLE(FebSun1)+8)=_xlfn.SINGLE(行事曆年份),MONTH(_xlfn.SINGLE(FebSun1)+8)=2),_xlfn.SINGLE(FebSun1)+8,\"\"),IF(AND(YEAR(_xlfn.SINGLE(FebSun1)+15)=_xlfn.SINGLE(行事曆年份),MONTH(_xlfn.SINGLE(FebSun1)+15)=2),_xlfn.SINGLE(FebSun1)+15,\"\"))","v":"2022-02-13"},{"$f":"IF(DAY(_xlfn.SINGLE(FebSun1))=1,IF(AND(YEAR(_xlfn.SINGLE(FebSun1)+9)=_xlfn.SINGLE(行事曆年份),MONTH(_xlfn.SINGLE(FebSun1)+9)=2),_xlfn.SINGLE(FebSun1)+9,\"\"),IF(AND(YEAR(_xlfn.SINGLE(FebSun1)+16)=_xlfn.SINGLE(行事曆年份),MONTH(_xlfn.SINGLE(FebSun1)+16)=2),_xlfn.SINGLE(FebSun1)+16,\"\"))","v":"2022-02-14"},{"$f":"IF(DAY(_xlfn.SINGLE(FebSun1))=1,IF(AND(YEAR(_xlfn.SINGLE(FebSun1)+10)=_xlfn.SINGLE(行事曆年份),MONTH(_xlfn.SINGLE(FebSun1)+10)=2),_xlfn.SINGLE(FebSun1)+10,\"\"),IF(AND(YEAR(_xlfn.SINGLE(FebSun1)+17)=_xlfn.SINGLE(行事曆年份),MONTH(_xlfn.SINGLE(FebSun1)+17)=2),_xlfn.SINGLE(FebSun1)+17,\"\"))","v":"2022-02-15"},{"$f":"IF(DAY(_xlfn.SINGLE(FebSun1))=1,IF(AND(YEAR(_xlfn.SINGLE(FebSun1)+11)=_xlfn.SINGLE(行事曆年份),MONTH(_xlfn.SINGLE(FebSun1)+11)=2),_xlfn.SINGLE(FebSun1)+11,\"\"),IF(AND(YEAR(_xlfn.SINGLE(FebSun1)+18)=_xlfn.SINGLE(行事曆年份),MONTH(_xlfn.SINGLE(FebSun1)+18)=2),_xlfn.SINGLE(FebSun1)+18,\"\"))","v":"2022-02-16"},{"$f":"IF(DAY(_xlfn.SINGLE(FebSun1))=1,IF(AND(YEAR(_xlfn.SINGLE(FebSun1)+12)=_xlfn.SINGLE(行事曆年份),MONTH(_xlfn.SINGLE(FebSun1)+12)=2),_xlfn.SINGLE(FebSun1)+12,\"\"),IF(AND(YEAR(_xlfn.SINGLE(FebSun1)+19)=_xlfn.SINGLE(行事曆年份),MONTH(_xlfn.SINGLE(FebSun1)+19)=2),_xlfn.SINGLE(FebSun1)+19,\"\"))","v":"2022-02-17"},{"$f":"IF(DAY(_xlfn.SINGLE(FebSun1))=1,IF(AND(YEAR(_xlfn.SINGLE(FebSun1)+13)=_xlfn.SINGLE(行事曆年份),MONTH(_xlfn.SINGLE(FebSun1)+13)=2),_xlfn.SINGLE(FebSun1)+13,\"\"),IF(AND(YEAR(_xlfn.SINGLE(FebSun1)+20)=_xlfn.SINGLE(行事曆年份),MONTH(_xlfn.SINGLE(FebSun1)+20)=2),_xlfn.SINGLE(FebSun1)+20,\"\"))","v":"2022-02-18"},{"$f":"IF(DAY(_xlfn.SINGLE(FebSun1))=1,IF(AND(YEAR(_xlfn.SINGLE(FebSun1)+14)=_xlfn.SINGLE(行事曆年份),MONTH(_xlfn.SINGLE(FebSun1)+14)=2),_xlfn.SINGLE(FebSun1)+14,\"\"),IF(AND(YEAR(_xlfn.SINGLE(FebSun1)+21)=_xlfn.SINGLE(行事曆年份),MONTH(_xlfn.SINGLE(FebSun1)+21)=2),_xlfn.SINGLE(FebSun1)+21,\"\"))","v":"2022-02-19"},{"$nulls":3},"情人節"]
[null,null,{"$f":"IF(DAY(_xlfn.SINGLE(JanSun1))=1,IF(AND(YEAR(_xlfn.SINGLE(JanSun1)+15)=_xlfn.SINGLE(行事曆年份),MONTH(_xlfn.SINGLE(JanSun1)+15)=1),_xlfn.SINGLE(JanSun1)+15,\"\"),IF(AND(YEAR(_xlfn.SINGLE(JanSun1)+22)=_xlfn.SINGLE(行事曆年份),MONTH(_xlfn.SINGLE(JanSun1)+22)=1),_xlfn.SINGLE(JanSun1)+22,\"\"))","v":"2022-01-16"},{"$f":"IF(DAY(_xlfn.SINGLE(JanSun1))=1,IF(AND(YEAR(_xlfn.SINGLE(JanSun1)+16)=_xlfn.SINGLE(行事曆年份),MONTH(_xlfn.SINGLE(JanSun1)+16)=1),_xlfn.SINGLE(JanSun1)+16,\"\"),IF(AND(YEAR(_xlfn.SINGLE(JanSun1)+23)=_xlfn.SINGLE(行事曆年份),MONTH(_xlfn.SINGLE(JanSun1)+23)=1),_xlfn.SINGLE(JanSun1)+23,\"\"))","v":"2022-01-17"},{"$f":"IF(DAY(_xlfn.SINGLE(JanSun1))=1,IF(AND(YEAR(_xlfn.SINGLE(JanSun1)+17)=_xlfn.SINGLE(行事曆年份),MONTH(_xlfn.SINGLE(JanSun1)+17)=1),_xlfn.SINGLE(JanSun1)+17,\"\"),IF(AND(YEAR(_xlfn.SINGLE(JanSun1)+24)=_xlfn.SINGLE(行事曆年份),MONTH(_xlfn.SINGLE(JanSun1)+24)=1),_xlfn.SINGLE(JanSun1)+24,\"\"))","v":"2022-01-18"},{"$f":"IF(DAY(_xlfn.SINGLE(JanSun1))=1,IF(AND(YEAR(_xlfn.SINGLE(JanSun1)+18)=_xlfn.SINGLE(行事曆年份),MONTH(_xlfn.SINGLE(JanSun1)+18)=1),_xlfn.SINGLE(JanSun1)+18,\"\"),IF(AND(YEAR(_xlfn.SINGLE(JanSun1)+25)=_xlfn.SINGLE(行事曆年份),MONTH(_xlfn.SINGLE(JanSun1)+25)=1),_xlfn.SINGLE(JanSun1)+25,\"\"))","v":"2022-01-19"},{"$f":"IF(DAY(_xlfn.SINGLE(JanSun1))=1,IF(AND(YEAR(_xlfn.SINGLE(JanSun1)+19)=_xlfn.SINGLE(行事曆年份),MONTH(_xlfn.SINGLE(JanSun1)+19)=1),_xlfn.SINGLE(JanSun1)+19,\"\"),IF(AND(YEAR(_xlfn.SINGLE(JanSun1)+26)=_xlfn.SINGLE(行事曆年份),MONTH(_xlfn.SINGLE(JanSun1)+26)=1),_xlfn.SINGLE(JanSun1)+26,\"\"))","v":"2022-01-20"},{"$f":"IF(DAY(_xlfn.SINGLE(JanSun1))=1,IF(AND(YEAR(_xlfn.SINGLE(JanSun1)+20)=_xlfn.SINGLE(行事曆年份),MONTH(_xlfn.SINGLE(JanSun1)+20)=1),_xlfn.SINGLE(JanSun1)+20,\"\"),IF(AND(YEAR(_xlfn.SINGLE(JanSun1)+27)=_xlfn.SINGLE(行事曆年份),MONTH(_xlfn.SINGLE(JanSun1)+27)=1),_xlfn.SINGLE(JanSun1)+27,\"\"))","v":"2022-01-21"},{"$f":"IF(DAY(_xlfn.SINGLE(JanSun1))=1,IF(AND(YEAR(_xlfn.SINGLE(JanSun1)+21)=_xlfn.SINGLE(行事曆年份),MONTH(_xlfn.SINGLE(JanSun1)+21)=1),_xlfn.SINGLE(JanSun1)+21,\"\"),IF(AND(YEAR(_xlfn.SINGLE(JanSun1)+28)=_xlfn.SINGLE(行事曆年份),MONTH(_xlfn.SINGLE(JanSun1)+28)=1),_xlfn.SINGLE(JanSun1)+28,\"\"))","v":"2022-01-22"},null,{"$f":"IF(DAY(_xlfn.SINGLE(FebSun1))=1,IF(AND(YEAR(_xlfn.SINGLE(FebSun1)+15)=_xlfn.SINGLE(行事曆年份),MONTH(_xlfn.SINGLE(FebSun1)+15)=2),_xlfn.SINGLE(FebSun1)+15,\"\"),IF(AND(YEAR(_xlfn.SINGLE(FebSun1)+22)=_xlfn.SINGLE(行事曆年份),MONTH(_xlfn.SINGLE(FebSun1)+22)=2),_xlfn.SINGLE(FebSun1)+22,\"\"))","v":"2022-02-20"},{"$f":"IF(DAY(_xlfn.SINGLE(FebSun1))=1,IF(AND(YEAR(_xlfn.SINGLE(FebSun1)+16)=_xlfn.SINGLE(行事曆年份),MONTH(_xlfn.SINGLE(FebSun1)+16)=2),_xlfn.SINGLE(FebSun1)+16,\"\"),IF(AND(YEAR(_xlfn.SINGLE(FebSun1)+23)=_xlfn.SINGLE(行事曆年份),MONTH(_xlfn.SINGLE(FebSun1)+23)=2),_xlfn.SINGLE(FebSun1)+23,\"\"))","v":"2022-02-21"},{"$f":"IF(DAY(_xlfn.SINGLE(FebSun1))=1,IF(AND(YEAR(_xlfn.SINGLE(FebSun1)+17)=_xlfn.SINGLE(行事曆年份),MONTH(_xlfn.SINGLE(FebSun1)+17)=2),_xlfn.SINGLE(FebSun1)+17,\"\"),IF(AND(YEAR(_xlfn.SINGLE(FebSun1)+24)=_xlfn.SINGLE(行事曆年份),MONTH(_xlfn.SINGLE(FebSun1)+24)=2),_xlfn.SINGLE(FebSun1)+24,\"\"))","v":"2022-02-22"},{"$f":"IF(DAY(_xlfn.SINGLE(FebSun1))=1,IF(AND(YEAR(_xlfn.SINGLE(FebSun1)+18)=_xlfn.SINGLE(行事曆年份),MONTH(_xlfn.SINGLE(FebSun1)+18)=2),_xlfn.SINGLE(FebSun1)+18,\"\"),IF(AND(YEAR(_xlfn.SINGLE(FebSun1)+25)=_xlfn.SINGLE(行事曆年份),MONTH(_xlfn.SINGLE(FebSun1)+25)=2),_xlfn.SINGLE(FebSun1)+25,\"\"))","v":"2022-02-23"},{"$f":"IF(DAY(_xlfn.SINGLE(FebSun1))=1,IF(AND(YEAR(_xlfn.SINGLE(FebSun1)+19)=_xlfn.SINGLE(行事曆年份),MONTH(_xlfn.SINGLE(FebSun1)+19)=2),_xlfn.SINGLE(FebSun1)+19,\"\"),IF(AND(YEAR(_xlfn.SINGLE(FebSun1)+26)=_xlfn.SINGLE(行事曆年份),MONTH(_xlfn.SINGLE(FebSun1)+26)=2),_xlfn.SINGLE(FebSun1)+26,\"\"))","v":"2022-02-24"},{"$f":"IF(DAY(_xlfn.SINGLE(FebSun1))=1,IF(AND(YEAR(_xlfn.SINGLE(FebSun1)+20)=_xlfn.SINGLE(行事曆年份),MONTH(_xlfn.SINGLE(FebSun1)+20)=2),_xlfn.SINGLE(FebSun1)+20,\"\"),IF(AND(YEAR(_xlfn.SINGLE(FebSun1)+27)=_xlfn.SINGLE(行事曆年份),MONTH(_xlfn.SINGLE(FebSun1)+27)=2),_xlfn.SINGLE(FebSun1)+27,\"\"))","v":"2022-02-25"},{"$f":"IF(DAY(_xlfn.SINGLE(FebSun1))=1,IF(AND(YEAR(_xlfn.SINGLE(FebSun1)+21)=_xlfn.SINGLE(行事曆年份),MONTH(_xlfn.SINGLE(FebSun1)+21)=2),_xlfn.SINGLE(FebSun1)+21,\"\"),IF(AND(YEAR(_xlfn.SINGLE(FebSun1)+28)=_xlfn.SINGLE(行事曆年份),MONTH(_xlfn.SINGLE(FebSun1)+28)=2),_xlfn.SINGLE(FebSun1)+28,\"\"))","v":"2022-02-26"}]
[null,null,{"$f":"IF(DAY(_xlfn.SINGLE(JanSun1))=1,IF(AND(YEAR(_xlfn.SINGLE(JanSun1)+22)=_xlfn.SINGLE(行事曆年份),MONTH(_xlfn.SINGLE(JanSun1)+22)=1),_xlfn.SINGLE(JanSun1)+22,\"\"),IF(AND(YEAR(_xlfn.SINGLE(JanSun1)+29)=_xlfn.SINGLE(行事曆年份),MONTH(_xlfn.SINGLE(JanSun1)+29)=1),_xlfn.SINGLE(JanSun1)+29,\"\"))","v":"2022-01-23"},{"$f":"IF(DAY(_xlfn.SINGLE(JanSun1))=1,IF(AND(YEAR(_xlfn.SINGLE(JanSun1)+23)=_xlfn.SINGLE(行事曆年份),MONTH(_xlfn.SINGLE(JanSun1)+23)=1),_xlfn.SINGLE(JanSun1)+23,\"\"),IF(AND(YEAR(_xlfn.SINGLE(JanSun1)+30)=_xlfn.SINGLE(行事曆年份),MONTH(_xlfn.SINGLE(JanSun1)+30)=1),_xlfn.SINGLE(JanSun1)+30,\"\"))","v":"2022-01-24"},{"$f":"IF(DAY(_xlfn.SINGLE(JanSun1))=1,IF(AND(YEAR(_xlfn.SINGLE(JanSun1)+24)=_xlfn.SINGLE(行事曆年份),MONTH(_xlfn.SINGLE(JanSun1)+24)=1),_xlfn.SINGLE(JanSun1)+24,\"\"),IF(AND(YEAR(_xlfn.SINGLE(JanSun1)+31)=_xlfn.SINGLE(行事曆年份),MONTH(_xlfn.SINGLE(JanSun1)+31)=1),_xlfn.SINGLE(JanSun1)+31,\"\"))","v":"2022-01-25"},{"$f":"IF(DAY(_xlfn.SINGLE(JanSun1))=1,IF(AND(YEAR(_xlfn.SINGLE(JanSun1)+25)=_xlfn.SINGLE(行事曆年份),MONTH(_xlfn.SINGLE(JanSun1)+25)=1),_xlfn.SINGLE(JanSun1)+25,\"\"),IF(AND(YEAR(_xlfn.SINGLE(JanSun1)+32)=_xlfn.SINGLE(行事曆年份),MONTH(_xlfn.SINGLE(JanSun1)+32)=1),_xlfn.SINGLE(JanSun1)+32,\"\"))","v":"2022-01-26"},{"$f":"IF(DAY(_xlfn.SINGLE(JanSun1))=1,IF(AND(YEAR(_xlfn.SINGLE(JanSun1)+26)=_xlfn.SINGLE(行事曆年份),MONTH(_xlfn.SINGLE(JanSun1)+26)=1),_xlfn.SINGLE(JanSun1)+26,\"\"),IF(AND(YEAR(_xlfn.SINGLE(JanSun1)+33)=_xlfn.SINGLE(行事曆年份),MONTH(_xlfn.SINGLE(JanSun1)+33)=1),_xlfn.SINGLE(JanSun1)+33,\"\"))","v":"2022-01-27"},{"$f":"IF(DAY(_xlfn.SINGLE(JanSun1))=1,IF(AND(YEAR(_xlfn.SINGLE(JanSun1)+27)=_xlfn.SINGLE(行事曆年份),MONTH(_xlfn.SINGLE(JanSun1)+27)=1),_xlfn.SINGLE(JanSun1)+27,\"\"),IF(AND(YEAR(_xlfn.SINGLE(JanSun1)+34)=_xlfn.SINGLE(行事曆年份),MONTH(_xlfn.SINGLE(JanSun1)+34)=1),_xlfn.SINGLE(JanSun1)+34,\"\"))","v":"2022-01-28"},{"$f":"IF(DAY(_xlfn.SINGLE(JanSun1))=1,IF(AND(YEAR(_xlfn.SINGLE(JanSun1)+28)=_xlfn.SINGLE(行事曆年份),MONTH(_xlfn.SINGLE(JanSun1)+28)=1),_xlfn.SINGLE(JanSun1)+28,\"\"),IF(AND(YEAR(_xlfn.SINGLE(JanSun1)+35)=_xlfn.SINGLE(行事曆年份),MONTH(_xlfn.SINGLE(JanSun1)+35)=1),_xlfn.SINGLE(JanSun1)+35,\"\"))","v":"2022-01-29"},null,{"$f":"IF(DAY(_xlfn.SINGLE(FebSun1))=1,IF(AND(YEAR(_xlfn.SINGLE(FebSun1)+22)=_xlfn.SINGLE(行事曆年份),MONTH(_xlfn.SINGLE(FebSun1)+22)=2),_xlfn.SINGLE(FebSun1)+22,\"\"),IF(AND(YEAR(_xlfn.SINGLE(FebSun1)+29)=_xlfn.SINGLE(行事曆年份),MONTH(_xlfn.SINGLE(FebSun1)+29)=2),_xlfn.SINGLE(FebSun1)+29,\"\"))","v":"2022-02-27"},{"$f":"IF(DAY(_xlfn.SINGLE(FebSun1))=1,IF(AND(YEAR(_xlfn.SINGLE(FebSun1)+23)=_xlfn.SINGLE(行事曆年份),MONTH(_xlfn.SINGLE(FebSun1)+23)=2),_xlfn.SINGLE(FebSun1)+23,\"\"),IF(AND(YEAR(_xlfn.SINGLE(FebSun1)+30)=_xlfn.SINGLE(行事曆年份),MONTH(_xlfn.SINGLE(FebSun1)+30)=2),_xlfn.SINGLE(FebSun1)+30,\"\"))","v":"2022-02-28"},{"$f":"IF(DAY(_xlfn.SINGLE(FebSun1))=1,IF(AND(YEAR(_xlfn.SINGLE(FebSun1)+24)=_xlfn.SINGLE(行事曆年份),MONTH(_xlfn.SINGLE(FebSun1)+24)=2),_xlfn.SINGLE(FebSun1)+24,\"\"),IF(AND(YEAR(_xlfn.SINGLE(FebSun1)+31)=_xlfn.SINGLE(行事曆年份),MONTH(_xlfn.SINGLE(FebSun1)+31)=2),_xlfn.SINGLE(FebSun1)+31,\"\"))","v":""},{"$f":"IF(DAY(_xlfn.SINGLE(FebSun1))=1,IF(AND(YEAR(_xlfn.SINGLE(FebSun1)+25)=_xlfn.SINGLE(行事曆年份),MONTH(_xlfn.SINGLE(FebSun1)+25)=2),_xlfn.SINGLE(FebSun1)+25,\"\"),IF(AND(YEAR(_xlfn.SINGLE(FebSun1)+32)=_xlfn.SINGLE(行事曆年份),MONTH(_xlfn.SINGLE(FebSun1)+32)=2),_xlfn.SINGLE(FebSun1)+32,\"\"))","v":""},{"$f":"IF(DAY(_xlfn.SINGLE(FebSun1))=1,IF(AND(YEAR(_xlfn.SINGLE(FebSun1)+26)=_xlfn.SINGLE(行事曆年份),MONTH(_xlfn.SINGLE(FebSun1)+26)=2),_xlfn.SINGLE(FebSun1)+26,\"\"),IF(AND(YEAR(_xlfn.SINGLE(FebSun1)+33)=_xlfn.SINGLE(行事曆年份),MONTH(_xlfn.SINGLE(FebSun1)+33)=2),_xlfn.SINGLE(FebSun1)+33,\"\"))","v":""},{"$f":"IF(DAY(_xlfn.SINGLE(FebSun1))=1,IF(AND(YEAR(_xlfn.SINGLE(FebSun1)+27)=_xlfn.SINGLE(行事曆年份),MONTH(_xlfn.SINGLE(FebSun1)+27)=2),_xlfn.SINGLE(FebSun1)+27,\"\"),IF(AND(YEAR(_xlfn.SINGLE(FebSun1)+34)=_xlfn.SINGLE(行事曆年份),MONTH(_xlfn.SINGLE(FebSun1)+34)=2),_xlfn.SINGLE(FebSun1)+34,\"\"))","v":""},{"$f":"IF(DAY(_xlfn.SINGLE(FebSun1))=1,IF(AND(YEAR(_xlfn.SINGLE(FebSun1)+28)=_xlfn.SINGLE(行事曆年份),MONTH(_xlfn.SINGLE(FebSun1)+28)=2),_xlfn.SINGLE(FebSun1)+28,\"\"),IF(AND(YEAR(_xlfn.SINGLE(FebSun1)+35)=_xlfn.SINGLE(行事曆年份),MONTH(_xlfn.SINGLE(FebSun1)+35)=2),_xlfn.SINGLE(FebSun1)+35,\"\"))","v":""},{"$nulls":3},"2 月 22 日"]
[null,null,{"$f":"IF(DAY(_xlfn.SINGLE(JanSun1))=1,IF(AND(YEAR(_xlfn.SINGLE(JanSun1)+29)=_xlfn.SINGLE(行事曆年份),MONTH(_xlfn.SINGLE(JanSun1)+29)=1),_xlfn.SINGLE(JanSun1)+29,\"\"),IF(AND(YEAR(_xlfn.SINGLE(JanSun1)+36)=_xlfn.SINGLE(行事曆年份),MONTH(_xlfn.SINGLE(JanSun1)+36)=1),_xlfn.SINGLE(JanSun1)+36,\"\"))","v":"2022-01-30"},{"$f":"IF(DAY(_xlfn.SINGLE(JanSun1))=1,IF(AND(YEAR(_xlfn.SINGLE(JanSun1)+30)=_xlfn.SINGLE(行事曆年份),MONTH(_xlfn.SINGLE(JanSun1)+30)=1),_xlfn.SINGLE(JanSun1)+30,\"\"),IF(AND(YEAR(_xlfn.SINGLE(JanSun1)+37)=_xlfn.SINGLE(行事曆年份),MONTH(_xlfn.SINGLE(JanSun1)+37)=1),_xlfn.SINGLE(JanSun1)+37,\"\"))","v":"2022-01-31"},{"$f":"IF(DAY(_xlfn.SINGLE(JanSun1))=1,IF(AND(YEAR(_xlfn.SINGLE(JanSun1)+31)=_xlfn.SINGLE(行事曆年份),MONTH(_xlfn.SINGLE(JanSun1)+31)=1),_xlfn.SINGLE(JanSun1)+31,\"\"),IF(AND(YEAR(_xlfn.SINGLE(JanSun1)+38)=_xlfn.SINGLE(行事曆年份),MONTH(_xlfn.SINGLE(JanSun1)+38)=1),_xlfn.SINGLE(JanSun1)+38,\"\"))","v":""},{"$f":"IF(DAY(_xlfn.SINGLE(JanSun1))=1,IF(AND(YEAR(_xlfn.SINGLE(JanSun1)+32)=_xlfn.SINGLE(行事曆年份),MONTH(_xlfn.SINGLE(JanSun1)+32)=1),_xlfn.SINGLE(JanSun1)+32,\"\"),IF(AND(YEAR(_xlfn.SINGLE(JanSun1)+39)=_xlfn.SINGLE(行事曆年份),MONTH(_xlfn.SINGLE(JanSun1)+39)=1),_xlfn.SINGLE(JanSun1)+39,\"\"))","v":""},{"$f":"IF(DAY(_xlfn.SINGLE(JanSun1))=1,IF(AND(YEAR(_xlfn.SINGLE(JanSun1)+33)=_xlfn.SINGLE(行事曆年份),MONTH(_xlfn.SINGLE(JanSun1)+33)=1),_xlfn.SINGLE(JanSun1)+33,\"\"),IF(AND(YEAR(_xlfn.SINGLE(JanSun1)+40)=_xlfn.SINGLE(行事曆年份),MONTH(_xlfn.SINGLE(JanSun1)+40)=1),_xlfn.SINGLE(JanSun1)+40,\"\"))","v":""},{"$f":"IF(DAY(_xlfn.SINGLE(JanSun1))=1,IF(AND(YEAR(_xlfn.SINGLE(JanSun1)+34)=_xlfn.SINGLE(行事曆年份),MONTH(_xlfn.SINGLE(JanSun1)+34)=1),_xlfn.SINGLE(JanSun1)+34,\"\"),IF(AND(YEAR(_xlfn.SINGLE(JanSun1)+41)=_xlfn.SINGLE(行事曆年份),MONTH(_xlfn.SINGLE(JanSun1)+41)=1),_xlfn.SINGLE(JanSun1)+41,\"\"))","v":""},{"$f":"IF(DAY(_xlfn.SINGLE(JanSun1))=1,IF(AND(YEAR(_xlfn.SINGLE(JanSun1)+35)=_xlfn.SINGLE(行事曆年份),MONTH(_xlfn.SINGLE(JanSun1)+35)=1),_xlfn.SINGLE(JanSun1)+35,\"\"),IF(AND(YEAR(_xlfn.SINGLE(JanSun1)+42)=_xlfn.SINGLE(行事曆年份),MONTH(_xlfn.SINGLE(JanSun1)+42)=1),_xlfn.SINGLE(JanSun1)+42,\"\"))","v":""},null,{"$f":"IF(DAY(_xlfn.SINGLE(FebSun1))=1,IF(AND(YEAR(_xlfn.SINGLE(FebSun1)+29)=_xlfn.SINGLE(行事曆年份),MONTH(_xlfn.SINGLE(FebSun1)+29)=2),_xlfn.SINGLE(FebSun1)+29,\"\"),IF(AND(YEAR(_xlfn.SINGLE(FebSun1)+36)=_xlfn.SINGLE(行事曆年份),MONTH(_xlfn.SINGLE(FebSun1)+36)=2),_xlfn.SINGLE(FebSun1)+36,\"\"))","v":""},{"$f":"IF(DAY(_xlfn.SINGLE(FebSun1))=1,IF(AND(YEAR(_xlfn.SINGLE(FebSun1)+30)=_xlfn.SINGLE(行事曆年份),MONTH(_xlfn.SINGLE(FebSun1)+30)=2),_xlfn.SINGLE(FebSun1)+30,\"\"),IF(AND(YEAR(_xlfn.SINGLE(FebSun1)+37)=_xlfn.SINGLE(行事曆年份),MONTH(_xlfn.SINGLE(FebSun1)+37)=2),_xlfn.SINGLE(FebSun1)+37,\"\"))","v":""},{"$f":"IF(DAY(_xlfn.SINGLE(FebSun1))=1,IF(AND(YEAR(_xlfn.SINGLE(FebSun1)+31)=_xlfn.SINGLE(行事曆年份),MONTH(_xlfn.SINGLE(FebSun1)+31)=2),_xlfn.SINGLE(FebSun1)+31,\"\"),IF(AND(YEAR(_xlfn.SINGLE(FebSun1)+38)=_xlfn.SINGLE(行事曆年份),MONTH(_xlfn.SINGLE(FebSun1)+38)=2),_xlfn.SINGLE(FebSun1)+38,\"\"))","v":""},{"$f":"IF(DAY(_xlfn.SINGLE(FebSun1))=1,IF(AND(YEAR(_xlfn.SINGLE(FebSun1)+32)=_xlfn.SINGLE(行事曆年份),MONTH(_xlfn.SINGLE(FebSun1)+32)=2),_xlfn.SINGLE(FebSun1)+32,\"\"),IF(AND(YEAR(_xlfn.SINGLE(FebSun1)+39)=_xlfn.SINGLE(行事曆年份),MONTH(_xlfn.SINGLE(FebSun1)+39)=2),_xlfn.SINGLE(FebSun1)+39,\"\"))","v":""},{"$f":"IF(DAY(_xlfn.SINGLE(FebSun1))=1,IF(AND(YEAR(_xlfn.SINGLE(FebSun1)+33)=_xlfn.SINGLE(行事曆年份),MONTH(_xlfn.SINGLE(FebSun1)+33)=2),_xlfn.SINGLE(FebSun1)+33,\"\"),IF(AND(YEAR(_xlfn.SINGLE(FebSun1)+40)=_xlfn.SINGLE(行事曆年份),MONTH(_xlfn.SINGLE(FebSun1)+40)=2),_xlfn.SINGLE(FebSun1)+40,\"\"))","v":""},{"$f":"IF(DAY(_xlfn.SINGLE(FebSun1))=1,IF(AND(YEAR(_xlfn.SINGLE(FebSun1)+34)=_xlfn.SINGLE(行事曆年份),MONTH(_xlfn.SINGLE(FebSun1)+34)=2),_xlfn.SINGLE(FebSun1)+34,\"\"),IF(AND(YEAR(_xlfn.SINGLE(FebSun1)+41)=_xlfn.SINGLE(行事曆年份),MONTH(_xlfn.SINGLE(FebSun1)+41)=2),_xlfn.SINGLE(FebSun1)+41,\"\"))","v":""},{"$f":"IF(DAY(_xlfn.SINGLE(FebSun1))=1,IF(AND(YEAR(_xlfn.SINGLE(FebSun1)+35)=_xlfn.SINGLE(行事曆年份),MONTH(_xlfn.SINGLE(FebSun1)+35)=2),_xlfn.SINGLE(FebSun1)+35,\"\"),IF(AND(YEAR(_xlfn.SINGLE(FebSun1)+42)=_xlfn.SINGLE(行事曆年份),MONTH(_xlfn.SINGLE(FebSun1)+42)=2),_xlfn.SINGLE(FebSun1)+42,\"\"))","v":""},{"$nulls":3},"開放參觀日"]
[]
["儲存格 C12 是 3 月標籤、儲存格 K12 是 4 月。",null,"三月",{"$nulls":7},"四月"]
["儲存格 C13 到 I19 是 3 月行事曆標籤、儲存格 K13 到 Q19 是 4 月行事曆標籤。儲存格 A21 是下一個說明",null,"週日","週一","週二","週三","週四","週五","週六",null,"週日","週一","週二","週三","週四","週五","週六"]
[null,null,{"$f":"IF(DAY(_xlfn.SINGLE(MarSun1))=1,\"\",IF(AND(YEAR(_xlfn.SINGLE(MarSun1)+1)=_xlfn.SINGLE(行事曆年份),MONTH(_xlfn.SINGLE(MarSun1)+1)=3),_xlfn.SINGLE(MarSun1)+1,\"\"))","v":""},{"$f":"IF(DAY(_xlfn.SINGLE(MarSun1))=1,\"\",IF(AND(YEAR(_xlfn.SINGLE(MarSun1)+2)=_xlfn.SINGLE(行事曆年份),MONTH(_xlfn.SINGLE(MarSun1)+2)=3),_xlfn.SINGLE(MarSun1)+2,\"\"))","v":""},{"$f":"IF(DAY(_xlfn.SINGLE(MarSun1))=1,\"\",IF(AND(YEAR(_xlfn.SINGLE(MarSun1)+3)=_xlfn.SINGLE(行事曆年份),MONTH(_xlfn.SINGLE(MarSun1)+3)=3),_xlfn.SINGLE(MarSun1)+3,\"\"))","v":"2022-03-01"},{"$f":"IF(DAY(_xlfn.SINGLE(MarSun1))=1,\"\",IF(AND(YEAR(_xlfn.SINGLE(MarSun1)+4)=_xlfn.SINGLE(行事曆年份),MONTH(_xlfn.SINGLE(MarSun1)+4)=3),_xlfn.SINGLE(MarSun1)+4,\"\"))","v":"2022-03-02"},{"$f":"IF(DAY(_xlfn.SINGLE(MarSun1))=1,\"\",IF(AND(YEAR(_xlfn.SINGLE(MarSun1)+5)=_xlfn.SINGLE(行事曆年份),MONTH(_xlfn.SINGLE(MarSun1)+5)=3),_xlfn.SINGLE(MarSun1)+5,\"\"))","v":"2022-03-03"},{"$f":"IF(DAY(_xlfn.SINGLE(MarSun1))=1,\"\",IF(AND(YEAR(_xlfn.SINGLE(MarSun1)+6)=_xlfn.SINGLE(行事曆年份),MONTH(_xlfn.SINGLE(MarSun1)+6)=3),_xlfn.SINGLE(MarSun1)+6,\"\"))","v":"2022-03-04"},{"$f":"_xlfn.SINGLE(IF(DAY(_xlfn.SINGLE(MarSun1))=1,IF(AND(YEAR(_xlfn.SINGLE(MarSun1))=_xlfn.SINGLE(行事曆年份),MONTH(_xlfn.SINGLE(MarSun1))=3),MarSun1,\"\"),IF(AND(YEAR(_xlfn.SINGLE(MarSun1)+7)=_xlfn.SINGLE(行事曆年份),MONTH(_xlfn.SINGLE(MarSun1)+7)=3),_xlfn.SINGLE(MarSun1)+7,\"\")))","v":"2022-03-05"},null,{"$f":"IF(DAY(_xlfn.SINGLE(AprSun1))=1,\"\",IF(AND(YEAR(_xlfn.SINGLE(AprSun1)+1)=_xlfn.SINGLE(行事曆年份),MONTH(_xlfn.SINGLE(AprSun1)+1)=4),_xlfn.SINGLE(AprSun1)+1,\"\"))","v":""},{"$f":"IF(DAY(_xlfn.SINGLE(AprSun1))=1,\"\",IF(AND(YEAR(_xlfn.SINGLE(AprSun1)+2)=_xlfn.SINGLE(行事曆年份),MONTH(_xlfn.SINGLE(AprSun1)+2)=4),_xlfn.SINGLE(AprSun1)+2,\"\"))","v":""},{"$f":"IF(DAY(_xlfn.SINGLE(AprSun1))=1,\"\",IF(AND(YEAR(_xlfn.SINGLE(AprSun1)+3)=_xlfn.SINGLE(行事曆年份),MONTH(_xlfn.SINGLE(AprSun1)+3)=4),_xlfn.SINGLE(AprSun1)+3,\"\"))","v":""},{"$f":"IF(DAY(_xlfn.SINGLE(AprSun1))=1,\"\",IF(AND(YEAR(_xlfn.SINGLE(AprSun1)+4)=_xlfn.SINGLE(行事曆年份),MONTH(_xlfn.SINGLE(AprSun1)+4)=4),_xlfn.SINGLE(AprSun1)+4,\"\"))","v":""},{"$f":"IF(DAY(_xlfn.SINGLE(AprSun1))=1,\"\",IF(AND(YEAR(_xlfn.SINGLE(AprSun1)+5)=_xlfn.SINGLE(行事曆年份),MONTH(_xlfn.SINGLE(AprSun1)+5)=4),_xlfn.SINGLE(AprSun1)+5,\"\"))","v":""},{"$f":"IF(DAY(_xlfn.SINGLE(AprSun1))=1,\"\",IF(AND(YEAR(_xlfn.SINGLE(AprSun1)+6)=_xlfn.SINGLE(行事曆年份),MONTH(_xlfn.SINGLE(AprSun1)+6)=4),_xlfn.SINGLE(AprSun1)+6,\"\"))","v":"2022-04-01"},{"$f":"_xlfn.SINGLE(IF(DAY(_xlfn.SINGLE(AprSun1))=1,IF(AND(YEAR(_xlfn.SINGLE(AprSun1))=_xlfn.SINGLE(行事曆年份),MONTH(_xlfn.SINGLE(AprSun1))=4),AprSun1,\"\"),IF(AND(YEAR(_xlfn.SINGLE(AprSun1)+7)=_xlfn.SINGLE(行事曆年份),MONTH(_xlfn.SINGLE(AprSun1)+7)=4),_xlfn.SINGLE(AprSun1)+7,\"\")))","v":"2022-04-02"}]
[null,null,{"$f":"IF(DAY(_xlfn.SINGLE(MarSun1))=1,IF(AND(YEAR(_xlfn.SINGLE(MarSun1)+1)=_xlfn.SINGLE(行事曆年份),MONTH(_xlfn.SINGLE(MarSun1)+1)=3),_xlfn.SINGLE(MarSun1)+1,\"\"),IF(AND(YEAR(_xlfn.SINGLE(MarSun1)+8)=_xlfn.SINGLE(行事曆年份),MONTH(_xlfn.SINGLE(MarSun1)+8)=3),_xlfn.SINGLE(MarSun1)+8,\"\"))","v":"2022-03-06"},{"$f":"IF(DAY(_xlfn.SINGLE(MarSun1))=1,IF(AND(YEAR(_xlfn.SINGLE(MarSun1)+2)=_xlfn.SINGLE(行事曆年份),MONTH(_xlfn.SINGLE(MarSun1)+2)=3),_xlfn.SINGLE(MarSun1)+2,\"\"),IF(AND(YEAR(_xlfn.SINGLE(MarSun1)+9)=_xlfn.SINGLE(行事曆年份),MONTH(_xlfn.SINGLE(MarSun1)+9)=3),_xlfn.SINGLE(MarSun1)+9,\"\"))","v":"2022-03-07"},{"$f":"IF(DAY(_xlfn.SINGLE(MarSun1))=1,IF(AND(YEAR(_xlfn.SINGLE(MarSun1)+3)=_xlfn.SINGLE(行事曆年份),MONTH(_xlfn.SINGLE(MarSun1)+3)=3),_xlfn.SINGLE(MarSun1)+3,\"\"),IF(AND(YEAR(_xlfn.SINGLE(MarSun1)+10)=_xlfn.SINGLE(行事曆年份),MONTH(_xlfn.SINGLE(MarSun1)+10)=3),_xlfn.SINGLE(MarSun1)+10,\"\"))","v":"2022-03-08"},{"$f":"IF(DAY(_xlfn.SINGLE(MarSun1))=1,IF(AND(YEAR(_xlfn.SINGLE(MarSun1)+4)=_xlfn.SINGLE(行事曆年份),MONTH(_xlfn.SINGLE(MarSun1)+4)=3),_xlfn.SINGLE(MarSun1)+4,\"\"),IF(AND(YEAR(_xlfn.SINGLE(MarSun1)+11)=_xlfn.SINGLE(行事曆年份),MONTH(_xlfn.SINGLE(MarSun1)+11)=3),_xlfn.SINGLE(MarSun1)+11,\"\"))","v":"2022-03-09"},{"$f":"IF(DAY(_xlfn.SINGLE(MarSun1))=1,IF(AND(YEAR(_xlfn.SINGLE(MarSun1)+5)=_xlfn.SINGLE(行事曆年份),MONTH(_xlfn.SINGLE(MarSun1)+5)=3),_xlfn.SINGLE(MarSun1)+5,\"\"),IF(AND(YEAR(_xlfn.SINGLE(MarSun1)+12)=_xlfn.SINGLE(行事曆年份),MONTH(_xlfn.SINGLE(MarSun1)+12)=3),_xlfn.SINGLE(MarSun1)+12,\"\"))","v":"2022-03-10"},{"$f":"IF(DAY(_xlfn.SINGLE(MarSun1))=1,IF(AND(YEAR(_xlfn.SINGLE(MarSun1)+6)=_xlfn.SINGLE(行事曆年份),MONTH(_xlfn.SINGLE(MarSun1)+6)=3),_xlfn.SINGLE(MarSun1)+6,\"\"),IF(AND(YEAR(_xlfn.SINGLE(MarSun1)+13)=_xlfn.SINGLE(行事曆年份),MONTH(_xlfn.SINGLE(MarSun1)+13)=3),_xlfn.SINGLE(MarSun1)+13,\"\"))","v":"2022-03-11"},{"$f":"IF(DAY(_xlfn.SINGLE(MarSun1))=1,IF(AND(YEAR(_xlfn.SINGLE(MarSun1)+7)=_xlfn.SINGLE(行事曆年份),MONTH(_xlfn.SINGLE(MarSun1)+7)=3),_xlfn.SINGLE(MarSun1)+7,\"\"),IF(AND(YEAR(_xlfn.SINGLE(MarSun1)+14)=_xlfn.SINGLE(行事曆年份),MONTH(_xlfn.SINGLE(MarSun1)+14)=3),_xlfn.SINGLE(MarSun1)+14,\"\"))","v":"2022-03-12"},null,{"$f":"IF(DAY(_xlfn.SINGLE(AprSun1))=1,IF(AND(YEAR(_xlfn.SINGLE(AprSun1)+1)=_xlfn.SINGLE(行事曆年份),MONTH(_xlfn.SINGLE(AprSun1)+1)=4),_xlfn.SINGLE(AprSun1)+1,\"\"),IF(AND(YEAR(_xlfn.SINGLE(AprSun1)+8)=_xlfn.SINGLE(行事曆年份),MONTH(_xlfn.SINGLE(AprSun1)+8)=4),_xlfn.SINGLE(AprSun1)+8,\"\"))","v":"2022-04-03"},{"$f":"IF(DAY(_xlfn.SINGLE(AprSun1))=1,IF(AND(YEAR(_xlfn.SINGLE(AprSun1)+2)=_xlfn.SINGLE(行事曆年份),MONTH(_xlfn.SINGLE(AprSun1)+2)=4),_xlfn.SINGLE(AprSun1)+2,\"\"),IF(AND(YEAR(_xlfn.SINGLE(AprSun1)+9)=_xlfn.SINGLE(行事曆年份),MONTH(_xlfn.SINGLE(AprSun1)+9)=4),_xlfn.SINGLE(AprSun1)+9,\"\"))","v":"2022-04-04"},{"$f":"IF(DAY(_xlfn.SINGLE(AprSun1))=1,IF(AND(YEAR(_xlfn.SINGLE(AprSun1)+3)=_xlfn.SINGLE(行事曆年份),MONTH(_xlfn.SINGLE(AprSun1)+3)=4),_xlfn.SINGLE(AprSun1)+3,\"\"),IF(AND(YEAR(_xlfn.SINGLE(AprSun1)+10)=_xlfn.SINGLE(行事曆年份),MONTH(_xlfn.SINGLE(AprSun1)+10)=4),_xlfn.SINGLE(AprSun1)+10,\"\"))","v":"2022-04-05"},{"$f":"IF(DAY(_xlfn.SINGLE(AprSun1))=1,IF(AND(YEAR(_xlfn.SINGLE(AprSun1)+4)=_xlfn.SINGLE(行事曆年份),MONTH(_xlfn.SINGLE(AprSun1)+4)=4),_xlfn.SINGLE(AprSun1)+4,\"\"),IF(AND(YEAR(_xlfn.SINGLE(AprSun1)+11)=_xlfn.SINGLE(行事曆年份),MONTH(_xlfn.SINGLE(AprSun1)+11)=4),_xlfn.SINGLE(AprSun1)+11,\"\"))","v":"2022-04-06"},{"$f":"IF(DAY(_xlfn.SINGLE(AprSun1))=1,IF(AND(YEAR(_xlfn.SINGLE(AprSun1)+5)=_xlfn.SINGLE(行事曆年份),MONTH(_xlfn.SINGLE(AprSun1)+5)=4),_xlfn.SINGLE(AprSun1)+5,\"\"),IF(AND(YEAR(_xlfn.SINGLE(AprSun1)+12)=_xlfn.SINGLE(行事曆年份),MONTH(_xlfn.SINGLE(AprSun1)+12)=4),_xlfn.SINGLE(AprSun1)+12,\"\"))","v":"2022-04-07"},{"$f":"IF(DAY(_xlfn.SINGLE(AprSun1))=1,IF(AND(YEAR(_xlfn.SINGLE(AprSun1)+6)=_xlfn.SINGLE(行事曆年份),MONTH(_xlfn.SINGLE(AprSun1)+6)=4),_xlfn.SINGLE(AprSun1)+6,\"\"),IF(AND(YEAR(_xlfn.SINGLE(AprSun1)+13)=_xlfn.SINGLE(行事曆年份),MONTH(_xlfn.SINGLE(AprSun1)+13)=4),_xlfn.SINGLE(AprSun1)+13,\"\"))","v":"2022-04-08"},{"$f":"IF(DAY(_xlfn.SINGLE(AprSun1))=1,IF(AND(YEAR(_xlfn.SINGLE(AprSun1)+7)=_xlfn.SINGLE(行事曆年份),MONTH(_xlfn.SINGLE(AprSun1)+7)=4),_xlfn.SINGLE(AprSun1)+7,\"\"),IF(AND(YEAR(_xlfn.SINGLE(AprSun1)+14)=_xlfn.SINGLE(行事曆年份),MONTH(_xlfn.SINGLE(AprSun1)+14)=4),_xlfn.SINGLE(AprSun1)+14,\"\"))","v":"2022-04-09"}]
[null,null,{"$f":"IF(DAY(_xlfn.SINGLE(MarSun1))=1,IF(AND(YEAR(_xlfn.SINGLE(MarSun1)+8)=_xlfn.SINGLE(行事曆年份),MONTH(_xlfn.SINGLE(MarSun1)+8)=3),_xlfn.SINGLE(MarSun1)+8,\"\"),IF(AND(YEAR(_xlfn.SINGLE(MarSun1)+15)=_xlfn.SINGLE(行事曆年份),MONTH(_xlfn.SINGLE(MarSun1)+15)=3),_xlfn.SINGLE(MarSun1)+15,\"\"))","v":"2022-03-13"},{"$f":"IF(DAY(_xlfn.SINGLE(MarSun1))=1,IF(AND(YEAR(_xlfn.SINGLE(MarSun1)+9)=_xlfn.SINGLE(行事曆年份),MONTH(_xlfn.SINGLE(MarSun1)+9)=3),_xlfn.SINGLE(MarSun1)+9,\"\"),IF(AND(YEAR(_xlfn.SINGLE(MarSun1)+16)=_xlfn.SINGLE(行事曆年份),MONTH(_xlfn.SINGLE(MarSun1)+16)=3),_xlfn.SINGLE(MarSun1)+16,\"\"))","v":"2022-03-14"},{"$f":"IF(DAY(_xlfn.SINGLE(MarSun1))=1,IF(AND(YEAR(_xlfn.SINGLE(MarSun1)+10)=_xlfn.SINGLE(行事曆年份),MONTH(_xlfn.SINGLE(MarSun1)+10)=3),_xlfn.SINGLE(MarSun1)+10,\"\"),IF(AND(YEAR(_xlfn.SINGLE(MarSun1)+17)=_xlfn.SINGLE(行事曆年份),MONTH(_xlfn.SINGLE(MarSun1)+17)=3),_xlfn.SINGLE(MarSun1)+17,\"\"))","v":"2022-03-15"},{"$f":"IF(DAY(_xlfn.SINGLE(MarSun1))=1,IF(AND(YEAR(_xlfn.SINGLE(MarSun1)+11)=_xlfn.SINGLE(行事曆年份),MONTH(_xlfn.SINGLE(MarSun1)+11)=3),_xlfn.SINGLE(MarSun1)+11,\"\"),IF(AND(YEAR(_xlfn.SINGLE(MarSun1)+18)=_xlfn.SINGLE(行事曆年份),MONTH(_xlfn.SINGLE(MarSun1)+18)=3),_xlfn.SINGLE(MarSun1)+18,\"\"))","v":"2022-03-16"},{"$f":"IF(DAY(_xlfn.SINGLE(MarSun1))=1,IF(AND(YEAR(_xlfn.SINGLE(MarSun1)+12)=_xlfn.SINGLE(行事曆年份),MONTH(_xlfn.SINGLE(MarSun1)+12)=3),_xlfn.SINGLE(MarSun1)+12,\"\"),IF(AND(YEAR(_xlfn.SINGLE(MarSun1)+19)=_xlfn.SINGLE(行事曆年份),MONTH(_xlfn.SINGLE(MarSun1)+19)=3),_xlfn.SINGLE(MarSun1)+19,\"\"))","v":"2022-03-17"},{"$f":"IF(DAY(_xlfn.SINGLE(MarSun1))=1,IF(AND(YEAR(_xlfn.SINGLE(MarSun1)+13)=_xlfn.SINGLE(行事曆年份),MONTH(_xlfn.SINGLE(MarSun1)+13)=3),_xlfn.SINGLE(MarSun1)+13,\"\"),IF(AND(YEAR(_xlfn.SINGLE(MarSun1)+20)=_xlfn.SINGLE(行事曆年份),MONTH(_xlfn.SINGLE(MarSun1)+20)=3),_xlfn.SINGLE(MarSun1)+20,\"\"))","v":"2022-03-18"},{"$f":"IF(DAY(_xlfn.SINGLE(MarSun1))=1,IF(AND(YEAR(_xlfn.SINGLE(MarSun1)+14)=_xlfn.SINGLE(行事曆年份),MONTH(_xlfn.SINGLE(MarSun1)+14)=3),_xlfn.SINGLE(MarSun1)+14,\"\"),IF(AND(YEAR(_xlfn.SINGLE(MarSun1)+21)=_xlfn.SINGLE(行事曆年份),MONTH(_xlfn.SINGLE(MarSun1)+21)=3),_xlfn.SINGLE(MarSun1)+21,\"\"))","v":"2022-03-19"},null,{"$f":"IF(DAY(_xlfn.SINGLE(AprSun1))=1,IF(AND(YEAR(_xlfn.SINGLE(AprSun1)+8)=_xlfn.SINGLE(行事曆年份),MONTH(_xlfn.SINGLE(AprSun1)+8)=4),_xlfn.SINGLE(AprSun1)+8,\"\"),IF(AND(YEAR(_xlfn.SINGLE(AprSun1)+15)=_xlfn.SINGLE(行事曆年份),MONTH(_xlfn.SINGLE(AprSun1)+15)=4),_xlfn.SINGLE(AprSun1)+15,\"\"))","v":"2022-04-10"},{"$f":"IF(DAY(_xlfn.SINGLE(AprSun1))=1,IF(AND(YEAR(_xlfn.SINGLE(AprSun1)+9)=_xlfn.SINGLE(行事曆年份),MONTH(_xlfn.SINGLE(AprSun1)+9)=4),_xlfn.SINGLE(AprSun1)+9,\"\"),IF(AND(YEAR(_xlfn.SINGLE(AprSun1)+16)=_xlfn.SINGLE(行事曆年份),MONTH(_xlfn.SINGLE(AprSun1)+16)=4),_xlfn.SINGLE(AprSun1)+16,\"\"))","v":"2022-04-11"},{"$f":"IF(DAY(_xlfn.SINGLE(AprSun1))=1,IF(AND(YEAR(_xlfn.SINGLE(AprSun1)+10)=_xlfn.SINGLE(行事曆年份),MONTH(_xlfn.SINGLE(AprSun1)+10)=4),_xlfn.SINGLE(AprSun1)+10,\"\"),IF(AND(YEAR(_xlfn.SINGLE(AprSun1)+17)=_xlfn.SINGLE(行事曆年份),MONTH(_xlfn.SINGLE(AprSun1)+17)=4),_xlfn.SINGLE(AprSun1)+17,\"\"))","v":"2022-04-12"},{"$f":"IF(DAY(_xlfn.SINGLE(AprSun1))=1,IF(AND(YEAR(_xlfn.SINGLE(AprSun1)+11)=_xlfn.SINGLE(行事曆年份),MONTH(_xlfn.SINGLE(AprSun1)+11)=4),_xlfn.SINGLE(AprSun1)+11,\"\"),IF(AND(YEAR(_xlfn.SINGLE(AprSun1)+18)=_xlfn.SINGLE(行事曆年份),MONTH(_xlfn.SINGLE(AprSun1)+18)=4),_xlfn.SINGLE(AprSun1)+18,\"\"))","v":"2022-04-13"},{"$f":"IF(DAY(_xlfn.SINGLE(AprSun1))=1,IF(AND(YEAR(_xlfn.SINGLE(AprSun1)+12)=_xlfn.SINGLE(行事曆年份),MONTH(_xlfn.SINGLE(AprSun1)+12)=4),_xlfn.SINGLE(AprSun1)+12,\"\"),IF(AND(YEAR(_xlfn.SINGLE(AprSun1)+19)=_xlfn.SINGLE(行事曆年份),MONTH(_xlfn.SINGLE(AprSun1)+19)=4),_xlfn.SINGLE(AprSun1)+19,\"\"))","v":"2022-04-14"},{"$f":"IF(DAY(_xlfn.SINGLE(AprSun1))=1,IF(AND(YEAR(_xlfn.SINGLE(AprSun1)+13)=_xlfn.SINGLE(行事曆年份),MONTH(_xlfn.SINGLE(AprSun1)+13)=4),_xlfn.SINGLE(AprSun1)+13,\"\"),IF(AND(YEAR(_xlfn.SINGLE(AprSun1)+20)=_xlfn.SINGLE(行事曆年份),MONTH(_xlfn.SINGLE(AprSun1)+20)=4),_xlfn.SINGLE(AprSun1)+20,\"\"))","v":"2022-04-15"},{"$f":"IF(DAY(_xlfn.SINGLE(AprSun1))=1,IF(AND(YEAR(_xlfn.SINGLE(AprSun1)+14)=_xlfn.SINGLE(行事曆年份),MONTH(_xlfn.SINGLE(AprSun1)+14)=4),_xlfn.SINGLE(AprSun1)+14,\"\"),IF(AND(YEAR(_xlfn.SINGLE(AprSun1)+21)=_xlfn.SINGLE(行事曆年份),MONTH(_xlfn.SINGLE(AprSun1)+21)=4),_xlfn.SINGLE(AprSun1)+21,\"\"))","v":"2022-04-16"}]
[null,null,{"$f":"IF(DAY(_xlfn.SINGLE(MarSun1))=1,IF(AND(YEAR(_xlfn.SINGLE(MarSun1)+15)=_xlfn.SINGLE(行事曆年份),MONTH(_xlfn.SINGLE(MarSun1)+15)=3),_xlfn.SINGLE(MarSun1)+15,\"\"),IF(AND(YEAR(_xlfn.SINGLE(MarSun1)+22)=_xlfn.SINGLE(行事曆年份),MONTH(_xlfn.SINGLE(MarSun1)+22)=3),_xlfn.SINGLE(MarSun1)+22,\"\"))","v":"2022-03-20"},{"$f":"IF(DAY(_xlfn.SINGLE(MarSun1))=1,IF(AND(YEAR(_xlfn.SINGLE(MarSun1)+16)=_xlfn.SINGLE(行事曆年份),MONTH(_xlfn.SINGLE(MarSun1)+16)=3),_xlfn.SINGLE(MarSun1)+16,\"\"),IF(AND(YEAR(_xlfn.SINGLE(MarSun1)+23)=_xlfn.SINGLE(行事曆年份),MONTH(_xlfn.SINGLE(MarSun1)+23)=3),_xlfn.SINGLE(MarSun1)+23,\"\"))","v":"2022-03-21"},{"$f":"IF(DAY(_xlfn.SINGLE(MarSun1))=1,IF(AND(YEAR(_xlfn.SINGLE(MarSun1)+17)=_xlfn.SINGLE(行事曆年份),MONTH(_xlfn.SINGLE(MarSun1)+17)=3),_xlfn.SINGLE(MarSun1)+17,\"\"),IF(AND(YEAR(_xlfn.SINGLE(MarSun1)+24)=_xlfn.SINGLE(行事曆年份),MONTH(_xlfn.SINGLE(MarSun1)+24)=3),_xlfn.SINGLE(MarSun1)+24,\"\"))","v":"2022-03-22"},{"$f":"IF(DAY(_xlfn.SINGLE(MarSun1))=1,IF(AND(YEAR(_xlfn.SINGLE(MarSun1)+18)=_xlfn.SINGLE(行事曆年份),MONTH(_xlfn.SINGLE(MarSun1)+18)=3),_xlfn.SINGLE(MarSun1)+18,\"\"),IF(AND(YEAR(_xlfn.SINGLE(MarSun1)+25)=_xlfn.SINGLE(行事曆年份),MONTH(_xlfn.SINGLE(MarSun1)+25)=3),_xlfn.SINGLE(MarSun1)+25,\"\"))","v":"2022-03-23"},{"$f":"IF(DAY(_xlfn.SINGLE(MarSun1))=1,IF(AND(YEAR(_xlfn.SINGLE(MarSun1)+19)=_xlfn.SINGLE(行事曆年份),MONTH(_xlfn.SINGLE(MarSun1)+19)=3),_xlfn.SINGLE(MarSun1)+19,\"\"),IF(AND(YEAR(_xlfn.SINGLE(MarSun1)+26)=_xlfn.SINGLE(行事曆年份),MONTH(_xlfn.SINGLE(MarSun1)+26)=3),_xlfn.SINGLE(MarSun1)+26,\"\"))","v":"2022-03-24"},{"$f":"IF(DAY(_xlfn.SINGLE(MarSun1))=1,IF(AND(YEAR(_xlfn.SINGLE(MarSun1)+20)=_xlfn.SINGLE(行事曆年份),MONTH(_xlfn.SINGLE(MarSun1)+20)=3),_xlfn.SINGLE(MarSun1)+20,\"\"),IF(AND(YEAR(_xlfn.SINGLE(MarSun1)+27)=_xlfn.SINGLE(行事曆年份),MONTH(_xlfn.SINGLE(MarSun1)+27)=3),_xlfn.SINGLE(MarSun1)+27,\"\"))","v":"2022-03-25"},{"$f":"IF(DAY(_xlfn.SINGLE(MarSun1))=1,IF(AND(YEAR(_xlfn.SINGLE(MarSun1)+21)=_xlfn.SINGLE(行事曆年份),MONTH(_xlfn.SINGLE(MarSun1)+21)=3),_xlfn.SINGLE(MarSun1)+21,\"\"),IF(AND(YEAR(_xlfn.SINGLE(MarSun1)+28)=_xlfn.SINGLE(行事曆年份),MONTH(_xlfn.SINGLE(MarSun1)+28)=3),_xlfn.SINGLE(MarSun1)+28,\"\"))","v":"2022-03-26"},null,{"$f":"IF(DAY(_xlfn.SINGLE(AprSun1))=1,IF(AND(YEAR(_xlfn.SINGLE(AprSun1)+15)=_xlfn.SINGLE(行事曆年份),MONTH(_xlfn.SINGLE(AprSun1)+15)=4),_xlfn.SINGLE(AprSun1)+15,\"\"),IF(AND(YEAR(_xlfn.SINGLE(AprSun1)+22)=_xlfn.SINGLE(行事曆年份),MONTH(_xlfn.SINGLE(AprSun1)+22)=4),_xlfn.SINGLE(AprSun1)+22,\"\"))","v":"2022-04-17"},{"$f":"IF(DAY(_xlfn.SINGLE(AprSun1))=1,IF(AND(YEAR(_xlfn.SINGLE(AprSun1)+16)=_xlfn.SINGLE(行事曆年份),MONTH(_xlfn.SINGLE(AprSun1)+16)=4),_xlfn.SINGLE(AprSun1)+16,\"\"),IF(AND(YEAR(_xlfn.SINGLE(AprSun1)+23)=_xlfn.SINGLE(行事曆年份),MONTH(_xlfn.SINGLE(AprSun1)+23)=4),_xlfn.SINGLE(AprSun1)+23,\"\"))","v":"2022-04-18"},{"$f":"IF(DAY(_xlfn.SINGLE(AprSun1))=1,IF(AND(YEAR(_xlfn.SINGLE(AprSun1)+17)=_xlfn.SINGLE(行事曆年份),MONTH(_xlfn.SINGLE(AprSun1)+17)=4),_xlfn.SINGLE(AprSun1)+17,\"\"),IF(AND(YEAR(_xlfn.SINGLE(AprSun1)+24)=_xlfn.SINGLE(行事曆年份),MONTH(_xlfn.SINGLE(AprSun1)+24)=4),_xlfn.SINGLE(AprSun1)+24,\"\"))","v":"2022-04-19"},{"$f":"IF(DAY(_xlfn.SINGLE(AprSun1))=1,IF(AND(YEAR(_xlfn.SINGLE(AprSun1)+18)=_xlfn.SINGLE(行事曆年份),MONTH(_xlfn.SINGLE(AprSun1)+18)=4),_xlfn.SINGLE(AprSun1)+18,\"\"),IF(AND(YEAR(_xlfn.SINGLE(AprSun1)+25)=_xlfn.SINGLE(行事曆年份),MONTH(_xlfn.SINGLE(AprSun1)+25)=4),_xlfn.SINGLE(AprSun1)+25,\"\"))","v":"2022-04-20"},{"$f":"IF(DAY(_xlfn.SINGLE(AprSun1))=1,IF(AND(YEAR(_xlfn.SINGLE(AprSun1)+19)=_xlfn.SINGLE(行事曆年份),MONTH(_xlfn.SINGLE(AprSun1)+19)=4),_xlfn.SINGLE(AprSun1)+19,\"\"),IF(AND(YEAR(_xlfn.SINGLE(AprSun1)+26)=_xlfn.SINGLE(行事曆年份),MONTH(_xlfn.SINGLE(AprSun1)+26)=4),_xlfn.SINGLE(AprSun1)+26,\"\"))","v":"2022-04-21"},{"$f":"IF(DAY(_xlfn.SINGLE(AprSun1))=1,IF(AND(YEAR(_xlfn.SINGLE(AprSun1)+20)=_xlfn.SINGLE(行事曆年份),MONTH(_xlfn.SINGLE(AprSun1)+20)=4),_xlfn.SINGLE(AprSun1)+20,\"\"),IF(AND(YEAR(_xlfn.SINGLE(AprSun1)+27)=_xlfn.SINGLE(行事曆年份),MONTH(_xlfn.SINGLE(AprSun1)+27)=4),_xlfn.SINGLE(AprSun1)+27,\"\"))","v":"2022-04-22"},{"$f":"IF(DAY(_xlfn.SINGLE(AprSun1))=1,IF(AND(YEAR(_xlfn.SINGLE(AprSun1)+21)=_xlfn.SINGLE(行事曆年份),MONTH(_xlfn.SINGLE(AprSun1)+21)=4),_xlfn.SINGLE(AprSun1)+21,\"\"),IF(AND(YEAR(_xlfn.SINGLE(AprSun1)+28)=_xlfn.SINGLE(行事曆年份),MONTH(_xlfn.SINGLE(AprSun1)+28)=4),_xlfn.SINGLE(AprSun1)+28,\"\"))","v":"2022-04-23"}]
[null,null,{"$f":"IF(DAY(_xlfn.SINGLE(MarSun1))=1,IF(AND(YEAR(_xlfn.SINGLE(MarSun1)+22)=_xlfn.SINGLE(行事曆年份),MONTH(_xlfn.SINGLE(MarSun1)+22)=3),_xlfn.SINGLE(MarSun1)+22,\"\"),IF(AND(YEAR(_xlfn.SINGLE(MarSun1)+29)=_xlfn.SINGLE(行事曆年份),MONTH(_xlfn.SINGLE(MarSun1)+29)=3),_xlfn.SINGLE(MarSun1)+29,\"\"))","v":"2022-03-27"},{"$f":"IF(DAY(_xlfn.SINGLE(MarSun1))=1,IF(AND(YEAR(_xlfn.SINGLE(MarSun1)+23)=_xlfn.SINGLE(行事曆年份),MONTH(_xlfn.SINGLE(MarSun1)+23)=3),_xlfn.SINGLE(MarSun1)+23,\"\"),IF(AND(YEAR(_xlfn.SINGLE(MarSun1)+30)=_xlfn.SINGLE(行事曆年份),MONTH(_xlfn.SINGLE(MarSun1)+30)=3),_xlfn.SINGLE(MarSun1)+30,\"\"))","v":"2022-03-28"},{"$f":"IF(DAY(_xlfn.SINGLE(MarSun1))=1,IF(AND(YEAR(_xlfn.SINGLE(MarSun1)+24)=_xlfn.SINGLE(行事曆年份),MONTH(_xlfn.SINGLE(MarSun1)+24)=3),_xlfn.SINGLE(MarSun1)+24,\"\"),IF(AND(YEAR(_xlfn.SINGLE(MarSun1)+31)=_xlfn.SINGLE(行事曆年份),MONTH(_xlfn.SINGLE(MarSun1)+31)=3),_xlfn.SINGLE(MarSun1)+31,\"\"))","v":"2022-03-29"},{"$f":"IF(DAY(_xlfn.SINGLE(MarSun1))=1,IF(AND(YEAR(_xlfn.SINGLE(MarSun1)+25)=_xlfn.SINGLE(行事曆年份),MONTH(_xlfn.SINGLE(MarSun1)+25)=3),_xlfn.SINGLE(MarSun1)+25,\"\"),IF(AND(YEAR(_xlfn.SINGLE(MarSun1)+32)=_xlfn.SINGLE(行事曆年份),MONTH(_xlfn.SINGLE(MarSun1)+32)=3),_xlfn.SINGLE(MarSun1)+32,\"\"))","v":"2022-03-30"},{"$f":"IF(DAY(_xlfn.SINGLE(MarSun1))=1,IF(AND(YEAR(_xlfn.SINGLE(MarSun1)+26)=_xlfn.SINGLE(行事曆年份),MONTH(_xlfn.SINGLE(MarSun1)+26)=3),_xlfn.SINGLE(MarSun1)+26,\"\"),IF(AND(YEAR(_xlfn.SINGLE(MarSun1)+33)=_xlfn.SINGLE(行事曆年份),MONTH(_xlfn.SINGLE(MarSun1)+33)=3),_xlfn.SINGLE(MarSun1)+33,\"\"))","v":"2022-03-31"},{"$f":"IF(DAY(_xlfn.SINGLE(MarSun1))=1,IF(AND(YEAR(_xlfn.SINGLE(MarSun1)+27)=_xlfn.SINGLE(行事曆年份),MONTH(_xlfn.SINGLE(MarSun1)+27)=3),_xlfn.SINGLE(MarSun1)+27,\"\"),IF(AND(YEAR(_xlfn.SINGLE(MarSun1)+34)=_xlfn.SINGLE(行事曆年份),MONTH(_xlfn.SINGLE(MarSun1)+34)=3),_xlfn.SINGLE(MarSun1)+34,\"\"))","v":""},{"$f":"IF(DAY(_xlfn.SINGLE(MarSun1))=1,IF(AND(YEAR(_xlfn.SINGLE(MarSun1)+28)=_xlfn.SINGLE(行事曆年份),MONTH(_xlfn.SINGLE(MarSun1)+28)=3),_xlfn.SINGLE(MarSun1)+28,\"\"),IF(AND(YEAR(_xlfn.SINGLE(MarSun1)+35)=_xlfn.SINGLE(行事曆年份),MONTH(_xlfn.SINGLE(MarSun1)+35)=3),_xlfn.SINGLE(MarSun1)+35,\"\"))","v":""},null,{"$f":"IF(DAY(_xlfn.SINGLE(AprSun1))=1,IF(AND(YEAR(_xlfn.SINGLE(AprSun1)+22)=_xlfn.SINGLE(行事曆年份),MONTH(_xlfn.SINGLE(AprSun1)+22)=4),_xlfn.SINGLE(AprSun1)+22,\"\"),IF(AND(YEAR(_xlfn.SINGLE(AprSun1)+29)=_xlfn.SINGLE(行事曆年份),MONTH(_xlfn.SINGLE(AprSun1)+29)=4),_xlfn.SINGLE(AprSun1)+29,\"\"))","v":"2022-04-24"},{"$f":"IF(DAY(_xlfn.SINGLE(AprSun1))=1,IF(AND(YEAR(_xlfn.SINGLE(AprSun1)+23)=_xlfn.SINGLE(行事曆年份),MONTH(_xlfn.SINGLE(AprSun1)+23)=4),_xlfn.SINGLE(AprSun1)+23,\"\"),IF(AND(YEAR(_xlfn.SINGLE(AprSun1)+30)=_xlfn.SINGLE(行事曆年份),MONTH(_xlfn.SINGLE(AprSun1)+30)=4),_xlfn.SINGLE(AprSun1)+30,\"\"))","v":"2022-04-25"},{"$f":"IF(DAY(_xlfn.SINGLE(AprSun1))=1,IF(AND(YEAR(_xlfn.SINGLE(AprSun1)+24)=_xlfn.SINGLE(行事曆年份),MONTH(_xlfn.SINGLE(AprSun1)+24)=4),_xlfn.SINGLE(AprSun1)+24,\"\"),IF(AND(YEAR(_xlfn.SINGLE(AprSun1)+31)=_xlfn.SINGLE(行事曆年份),MONTH(_xlfn.SINGLE(AprSun1)+31)=4),_xlfn.SINGLE(AprSun1)+31,\"\"))","v":"2022-04-26"},{"$f":"IF(DAY(_xlfn.SINGLE(AprSun1))=1,IF(AND(YEAR(_xlfn.SINGLE(AprSun1)+25)=_xlfn.SINGLE(行事曆年份),MONTH(_xlfn.SINGLE(AprSun1)+25)=4),_xlfn.SINGLE(AprSun1)+25,\"\"),IF(AND(YEAR(_xlfn.SINGLE(AprSun1)+32)=_xlfn.SINGLE(行事曆年份),MONTH(_xlfn.SINGLE(AprSun1)+32)=4),_xlfn.SINGLE(AprSun1)+32,\"\"))","v":"2022-04-27"},{"$f":"IF(DAY(_xlfn.SINGLE(AprSun1))=1,IF(AND(YEAR(_xlfn.SINGLE(AprSun1)+26)=_xlfn.SINGLE(行事曆年份),MONTH(_xlfn.SINGLE(AprSun1)+26)=4),_xlfn.SINGLE(AprSun1)+26,\"\"),IF(AND(YEAR(_xlfn.SINGLE(AprSun1)+33)=_xlfn.SINGLE(行事曆年份),MONTH(_xlfn.SINGLE(AprSun1)+33)=4),_xlfn.SINGLE(AprSun1)+33,\"\"))","v":"2022-04-28"},{"$f":"IF(DAY(_xlfn.SINGLE(AprSun1))=1,IF(AND(YEAR(_xlfn.SINGLE(AprSun1)+27)=_xlfn.SINGLE(行事曆年份),MONTH(_xlfn.SINGLE(AprSun1)+27)=4),_xlfn.SINGLE(AprSun1)+27,\"\"),IF(AND(YEAR(_xlfn.SINGLE(AprSun1)+34)=_xlfn.SINGLE(行事曆年份),MONTH(_xlfn.SINGLE(AprSun1)+34)=4),_xlfn.SINGLE(AprSun1)+34,\"\"))","v":"2022-04-29"},{"$f":"IF(DAY(_xlfn.SINGLE(AprSun1))=1,IF(AND(YEAR(_xlfn.SINGLE(AprSun1)+28)=_xlfn.SINGLE(行事曆年份),MONTH(_xlfn.SINGLE(AprSun1)+28)=4),_xlfn.SINGLE(AprSun1)+28,\"\"),IF(AND(YEAR(_xlfn.SINGLE(AprSun1)+35)=_xlfn.SINGLE(行事曆年份),MONTH(_xlfn.SINGLE(AprSun1)+35)=4),_xlfn.SINGLE(AprSun1)+35,\"\"))","v":"2022-04-30"}]
[null,null,{"$f":"IF(DAY(_xlfn.SINGLE(MarSun1))=1,IF(AND(YEAR(_xlfn.SINGLE(MarSun1)+29)=_xlfn.SINGLE(行事曆年份),MONTH(_xlfn.SINGLE(MarSun1)+29)=3),_xlfn.SINGLE(MarSun1)+29,\"\"),IF(AND(YEAR(_xlfn.SINGLE(MarSun1)+36)=_xlfn.SINGLE(行事曆年份),MONTH(_xlfn.SINGLE(MarSun1)+36)=3),_xlfn.SINGLE(MarSun1)+36,\"\"))","v":""},{"$f":"IF(DAY(_xlfn.SINGLE(MarSun1))=1,IF(AND(YEAR(_xlfn.SINGLE(MarSun1)+30)=_xlfn.SINGLE(行事曆年份),MONTH(_xlfn.SINGLE(MarSun1)+30)=3),_xlfn.SINGLE(MarSun1)+30,\"\"),IF(AND(YEAR(_xlfn.SINGLE(MarSun1)+37)=_xlfn.SINGLE(行事曆年份),MONTH(_xlfn.SINGLE(MarSun1)+37)=3),_xlfn.SINGLE(MarSun1)+37,\"\"))","v":""},{"$f":"IF(DAY(_xlfn.SINGLE(MarSun1))=1,IF(AND(YEAR(_xlfn.SINGLE(MarSun1)+31)=_xlfn.SINGLE(行事曆年份),MONTH(_xlfn.SINGLE(MarSun1)+31)=3),_xlfn.SINGLE(MarSun1)+31,\"\"),IF(AND(YEAR(_xlfn.SINGLE(MarSun1)+38)=_xlfn.SINGLE(行事曆年份),MONTH(_xlfn.SINGLE(MarSun1)+38)=3),_xlfn.SINGLE(MarSun1)+38,\"\"))","v":""},{"$f":"IF(DAY(_xlfn.SINGLE(MarSun1))=1,IF(AND(YEAR(_xlfn.SINGLE(MarSun1)+32)=_xlfn.SINGLE(行事曆年份),MONTH(_xlfn.SINGLE(MarSun1)+32)=3),_xlfn.SINGLE(MarSun1)+32,\"\"),IF(AND(YEAR(_xlfn.SINGLE(MarSun1)+39)=_xlfn.SINGLE(行事曆年份),MONTH(_xlfn.SINGLE(MarSun1)+39)=3),_xlfn.SINGLE(MarSun1)+39,\"\"))","v":""},{"$f":"IF(DAY(_xlfn.SINGLE(MarSun1))=1,IF(AND(YEAR(_xlfn.SINGLE(MarSun1)+33)=_xlfn.SINGLE(行事曆年份),MONTH(_xlfn.SINGLE(MarSun1)+33)=3),_xlfn.SINGLE(MarSun1)+33,\"\"),IF(AND(YEAR(_xlfn.SINGLE(MarSun1)+40)=_xlfn.SINGLE(行事曆年份),MONTH(_xlfn.SINGLE(MarSun1)+40)=3),_xlfn.SINGLE(MarSun1)+40,\"\"))","v":""},{"$f":"IF(DAY(_xlfn.SINGLE(MarSun1))=1,IF(AND(YEAR(_xlfn.SINGLE(MarSun1)+34)=_xlfn.SINGLE(行事曆年份),MONTH(_xlfn.SINGLE(MarSun1)+34)=3),_xlfn.SINGLE(MarSun1)+34,\"\"),IF(AND(YEAR(_xlfn.SINGLE(MarSun1)+41)=_xlfn.SINGLE(行事曆年份),MONTH(_xlfn.SINGLE(MarSun1)+41)=3),_xlfn.SINGLE(MarSun1)+41,\"\"))","v":""},{"$f":"IF(DAY(_xlfn.SINGLE(MarSun1))=1,IF(AND(YEAR(_xlfn.SINGLE(MarSun1)+35)=_xlfn.SINGLE(行事曆年份),MONTH(_xlfn.SINGLE(MarSun1)+35)=3),_xlfn.SINGLE(MarSun1)+35,\"\"),IF(AND(YEAR(_xlfn.SINGLE(MarSun1)+42)=_xlfn.SINGLE(行事曆年份),MONTH(_xlfn.SINGLE(MarSun1)+42)=3),_xlfn.SINGLE(MarSun1)+42,\"\"))","v":""},null,{"$f":"IF(DAY(_xlfn.SINGLE(AprSun1))=1,IF(AND(YEAR(_xlfn.SINGLE(AprSun1)+29)=_xlfn.SINGLE(行事曆年份),MONTH(_xlfn.SINGLE(AprSun1)+29)=4),_xlfn.SINGLE(AprSun1)+29,\"\"),IF(AND(YEAR(_xlfn.SINGLE(AprSun1)+36)=_xlfn.SINGLE(行事曆年份),MONTH(_xlfn.SINGLE(AprSun1)+36)=4),_xlfn.SINGLE(AprSun1)+36,\"\"))","v":""},{"$f":"IF(DAY(_xlfn.SINGLE(AprSun1))=1,IF(AND(YEAR(_xlfn.SINGLE(AprSun1)+30)=_xlfn.SINGLE(行事曆年份),MONTH(_xlfn.SINGLE(AprSun1)+30)=4),_xlfn.SINGLE(AprSun1)+30,\"\"),IF(AND(YEAR(_xlfn.SINGLE(AprSun1)+37)=_xlfn.SINGLE(行事曆年份),MONTH(_xlfn.SINGLE(AprSun1)+37)=4),_xlfn.SINGLE(AprSun1)+37,\"\"))","v":""},{"$f":"IF(DAY(_xlfn.SINGLE(AprSun1))=1,IF(AND(YEAR(_xlfn.SINGLE(AprSun1)+31)=_xlfn.SINGLE(行事曆年份),MONTH(_xlfn.SINGLE(AprSun1)+31)=4),_xlfn.SINGLE(AprSun1)+31,\"\"),IF(AND(YEAR(_xlfn.SINGLE(AprSun1)+38)=_xlfn.SINGLE(行事曆年份),MONTH(_xlfn.SINGLE(AprSun1)+38)=4),_xlfn.SINGLE(AprSun1)+38,\"\"))","v":""},{"$f":"IF(DAY(_xlfn.SINGLE(AprSun1))=1,IF(AND(YEAR(_xlfn.SINGLE(AprSun1)+32)=_xlfn.SINGLE(行事曆年份),MONTH(_xlfn.SINGLE(AprSun1)+32)=4),_xlfn.SINGLE(AprSun1)+32,\"\"),IF(AND(YEAR(_xlfn.SINGLE(AprSun1)+39)=_xlfn.SINGLE(行事曆年份),MONTH(_xlfn.SINGLE(AprSun1)+39)=4),_xlfn.SINGLE(AprSun1)+39,\"\"))","v":""},{"$f":"IF(DAY(_xlfn.SINGLE(AprSun1))=1,IF(AND(YEAR(_xlfn.SINGLE(AprSun1)+33)=_xlfn.SINGLE(行事曆年份),MONTH(_xlfn.SINGLE(AprSun1)+33)=4),_xlfn.SINGLE(AprSun1)+33,\"\"),IF(AND(YEAR(_xlfn.SINGLE(AprSun1)+40)=_xlfn.SINGLE(行事曆年份),MONTH(_xlfn.SINGLE(AprSun1)+40)=4),_xlfn.SINGLE(AprSun1)+40,\"\"))","v":""},{"$f":"IF(DAY(_xlfn.SINGLE(AprSun1))=1,IF(AND(YEAR(_xlfn.SINGLE(AprSun1)+34)=_xlfn.SINGLE(行事曆年份),MONTH(_xlfn.SINGLE(AprSun1)+34)=4),_xlfn.SINGLE(AprSun1)+34,\"\"),IF(AND(YEAR(_xlfn.SINGLE(AprSun1)+41)=_xlfn.SINGLE(行事曆年份),MONTH(_xlfn.SINGLE(AprSun1)+41)=4),_xlfn.SINGLE(AprSun1)+41,\"\"))","v":""},{"$f":"IF(DAY(_xlfn.SINGLE(AprSun1))=1,IF(AND(YEAR(_xlfn.SINGLE(AprSun1)+35)=_xlfn.SINGLE(行事曆年份),MONTH(_xlfn.SINGLE(AprSun1)+35)=4),_xlfn.SINGLE(AprSun1)+35,\"\"),IF(AND(YEAR(_xlfn.SINGLE(AprSun1)+42)=_xlfn.SINGLE(行事曆年份),MONTH(_xlfn.SINGLE(AprSun1)+42)=4),_xlfn.SINGLE(AprSun1)+42,\"\"))","v":""}]
[]
["儲存格 C21 是 5 月標籤、儲存格 K21 是 6 月。",null,"五月",{"$nulls":7},"六月"]
["儲存格 C22 到 I28 是 5 月行事曆標籤、儲存格 K22 到 Q28 是 6 月行事曆標籤。儲存格 A30 是下一個說明",null,"週日","週一","週二","週三","週四","週五","週六",null,"週日","週一","週二","週三","週四","週五","週六"]
[null,null,{"$f":"IF(DAY(_xlfn.SINGLE(MaySun1))=1,\"\",IF(AND(YEAR(_xlfn.SINGLE(MaySun1)+1)=_xlfn.SINGLE(行事曆年份),MONTH(_xlfn.SINGLE(MaySun1)+1)=5),_xlfn.SINGLE(MaySun1)+1,\"\"))","v":"2022-05-01"},{"$f":"IF(DAY(_xlfn.SINGLE(MaySun1))=1,\"\",IF(AND(YEAR(_xlfn.SINGLE(MaySun1)+2)=_xlfn.SINGLE(行事曆年份),MONTH(_xlfn.SINGLE(MaySun1)+2)=5),_xlfn.SINGLE(MaySun1)+2,\"\"))","v":"2022-05-02"},{"$f":"IF(DAY(_xlfn.SINGLE(MaySun1))=1,\"\",IF(AND(YEAR(_xlfn.SINGLE(MaySun1)+3)=_xlfn.SINGLE(行事曆年份),MONTH(_xlfn.SINGLE(MaySun1)+3)=5),_xlfn.SINGLE(MaySun1)+3,\"\"))","v":"2022-05-03"},{"$f":"IF(DAY(_xlfn.SINGLE(MaySun1))=1,\"\",IF(AND(YEAR(_xlfn.SINGLE(MaySun1)+4)=_xlfn.SINGLE(行事曆年份),MONTH(_xlfn.SINGLE(MaySun1)+4)=5),_xlfn.SINGLE(MaySun1)+4,\"\"))","v":"2022-05-04"},{"$f":"IF(DAY(_xlfn.SINGLE(MaySun1))=1,\"\",IF(AND(YEAR(_xlfn.SINGLE(MaySun1)+5)=_xlfn.SINGLE(行事曆年份),MONTH(_xlfn.SINGLE(MaySun1)+5)=5),_xlfn.SINGLE(MaySun1)+5,\"\"))","v":"2022-05-05"},{"$f":"IF(DAY(_xlfn.SINGLE(MaySun1))=1,\"\",IF(AND(YEAR(_xlfn.SINGLE(MaySun1)+6)=_xlfn.SINGLE(行事曆年份),MONTH(_xlfn.SINGLE(MaySun1)+6)=5),_xlfn.SINGLE(MaySun1)+6,\"\"))","v":"2022-05-06"},{"$f":"_xlfn.SINGLE(IF(DAY(_xlfn.SINGLE(MaySun1))=1,IF(AND(YEAR(_xlfn.SINGLE(MaySun1))=_xlfn.SINGLE(行事曆年份),MONTH(_xlfn.SINGLE(MaySun1))=5),MaySun1,\"\"),IF(AND(YEAR(_xlfn.SINGLE(MaySun1)+7)=_xlfn.SINGLE(行事曆年份),MONTH(_xlfn.SINGLE(MaySun1)+7)=5),_xlfn.SINGLE(MaySun1)+7,\"\")))","v":"2022-05-07"},null,{"$f":"IF(DAY(_xlfn.SINGLE(JunSun1))=1,\"\",IF(AND(YEAR(_xlfn.SINGLE(JunSun1)+1)=_xlfn.SINGLE(行事曆年份),MONTH(_xlfn.SINGLE(JunSun1)+1)=6),_xlfn.SINGLE(JunSun1)+1,\"\"))","v":""},{"$f":"IF(DAY(_xlfn.SINGLE(JunSun1))=1,\"\",IF(AND(YEAR(_xlfn.SINGLE(JunSun1)+2)=_xlfn.SINGLE(行事曆年份),MONTH(_xlfn.SINGLE(JunSun1)+2)=6),_xlfn.SINGLE(JunSun1)+2,\"\"))","v":""},{"$f":"IF(DAY(_xlfn.SINGLE(JunSun1))=1,\"\",IF(AND(YEAR(_xlfn.SINGLE(JunSun1)+3)=_xlfn.SINGLE(行事曆年份),MONTH(_xlfn.SINGLE(JunSun1)+3)=6),_xlfn.SINGLE(JunSun1)+3,\"\"))","v":""},{"$f":"IF(DAY(_xlfn.SINGLE(JunSun1))=1,\"\",IF(AND(YEAR(_xlfn.SINGLE(JunSun1)+4)=_xlfn.SINGLE(行事曆年份),MONTH(_xlfn.SINGLE(JunSun1)+4)=6),_xlfn.SINGLE(JunSun1)+4,\"\"))","v":"2022-06-01"},{"$f":"IF(DAY(_xlfn.SINGLE(JunSun1))=1,\"\",IF(AND(YEAR(_xlfn.SINGLE(JunSun1)+5)=_xlfn.SINGLE(行事曆年份),MONTH(_xlfn.SINGLE(JunSun1)+5)=6),_xlfn.SINGLE(JunSun1)+5,\"\"))","v":"2022-06-02"},{"$f":"IF(DAY(_xlfn.SINGLE(JunSun1))=1,\"\",IF(AND(YEAR(_xlfn.SINGLE(JunSun1)+6)=_xlfn.SINGLE(行事曆年份),MONTH(_xlfn.SINGLE(JunSun1)+6)=6),_xlfn.SINGLE(JunSun1)+6,\"\"))","v":"2022-06-03"},{"$f":"_xlfn.SINGLE(IF(DAY(_xlfn.SINGLE(JunSun1))=1,IF(AND(YEAR(_xlfn.SINGLE(JunSun1))=_xlfn.SINGLE(行事曆年份),MONTH(_xlfn.SINGLE(JunSun1))=6),JunSun1,\"\"),IF(AND(YEAR(_xlfn.SINGLE(JunSun1)+7)=_xlfn.SINGLE(行事曆年份),MONTH(_xlfn.SINGLE(JunSun1)+7)=6),_xlfn.SINGLE(JunSun1)+7,\"\")))","v":"2022-06-04"}]
[null,null,{"$f":"IF(DAY(_xlfn.SINGLE(MaySun1))=1,IF(AND(YEAR(_xlfn.SINGLE(MaySun1)+1)=_xlfn.SINGLE(行事曆年份),MONTH(_xlfn.SINGLE(MaySun1)+1)=5),_xlfn.SINGLE(MaySun1)+1,\"\"),IF(AND(YEAR(_xlfn.SINGLE(MaySun1)+8)=_xlfn.SINGLE(行事曆年份),MONTH(_xlfn.SINGLE(MaySun1)+8)=5),_xlfn.SINGLE(MaySun1)+8,\"\"))","v":"2022-05-08"},{"$f":"IF(DAY(_xlfn.SINGLE(MaySun1))=1,IF(AND(YEAR(_xlfn.SINGLE(MaySun1)+2)=_xlfn.SINGLE(行事曆年份),MONTH(_xlfn.SINGLE(MaySun1)+2)=5),_xlfn.SINGLE(MaySun1)+2,\"\"),IF(AND(YEAR(_xlfn.SINGLE(MaySun1)+9)=_xlfn.SINGLE(行事曆年份),MONTH(_xlfn.SINGLE(MaySun1)+9)=5),_xlfn.SINGLE(MaySun1)+9,\"\"))","v":"2022-05-09"},{"$f":"IF(DAY(_xlfn.SINGLE(MaySun1))=1,IF(AND(YEAR(_xlfn.SINGLE(MaySun1)+3)=_xlfn.SINGLE(行事曆年份),MONTH(_xlfn.SINGLE(MaySun1)+3)=5),_xlfn.SINGLE(MaySun1)+3,\"\"),IF(AND(YEAR(_xlfn.SINGLE(MaySun1)+10)=_xlfn.SINGLE(行事曆年份),MONTH(_xlfn.SINGLE(MaySun1)+10)=5),_xlfn.SINGLE(MaySun1)+10,\"\"))","v":"2022-05-10"},{"$f":"IF(DAY(_xlfn.SINGLE(MaySun1))=1,IF(AND(YEAR(_xlfn.SINGLE(MaySun1)+4)=_xlfn.SINGLE(行事曆年份),MONTH(_xlfn.SINGLE(MaySun1)+4)=5),_xlfn.SINGLE(MaySun1)+4,\"\"),IF(AND(YEAR(_xlfn.SINGLE(MaySun1)+11)=_xlfn.SINGLE(行事曆年份),MONTH(_xlfn.SINGLE(MaySun1)+11)=5),_xlfn.SINGLE(MaySun1)+11,\"\"))","v":"2022-05-11"},{"$f":"IF(DAY(_xlfn.SINGLE(MaySun1))=1,IF(AND(YEAR(_xlfn.SINGLE(MaySun1)+5)=_xlfn.SINGLE(行事曆年份),MONTH(_xlfn.SINGLE(MaySun1)+5)=5),_xlfn.SINGLE(MaySun1)+5,\"\"),IF(AND(YEAR(_xlfn.SINGLE(MaySun1)+12)=_xlfn.SINGLE(行事曆年份),MONTH(_xlfn.SINGLE(MaySun1)+12)=5),_xlfn.SINGLE(MaySun1)+12,\"\"))","v":"2022-05-12"},{"$f":"IF(DAY(_xlfn.SINGLE(MaySun1))=1,IF(AND(YEAR(_xlfn.SINGLE(MaySun1)+6)=_xlfn.SINGLE(行事曆年份),MONTH(_xlfn.SINGLE(MaySun1)+6)=5),_xlfn.SINGLE(MaySun1)+6,\"\"),IF(AND(YEAR(_xlfn.SINGLE(MaySun1)+13)=_xlfn.SINGLE(行事曆年份),MONTH(_xlfn.SINGLE(MaySun1)+13)=5),_xlfn.SINGLE(MaySun1)+13,\"\"))","v":"2022-05-13"},{"$f":"IF(DAY(_xlfn.SINGLE(MaySun1))=1,IF(AND(YEAR(_xlfn.SINGLE(MaySun1)+7)=_xlfn.SINGLE(行事曆年份),MONTH(_xlfn.SINGLE(MaySun1)+7)=5),_xlfn.SINGLE(MaySun1)+7,\"\"),IF(AND(YEAR(_xlfn.SINGLE(MaySun1)+14)=_xlfn.SINGLE(行事曆年份),MONTH(_xlfn.SINGLE(MaySun1)+14)=5),_xlfn.SINGLE(MaySun1)+14,\"\"))","v":"2022-05-14"},null,{"$f":"IF(DAY(_xlfn.SINGLE(JunSun1))=1,IF(AND(YEAR(_xlfn.SINGLE(JunSun1)+1)=_xlfn.SINGLE(行事曆年份),MONTH(_xlfn.SINGLE(JunSun1)+1)=6),_xlfn.SINGLE(JunSun1)+1,\"\"),IF(AND(YEAR(_xlfn.SINGLE(JunSun1)+8)=_xlfn.SINGLE(行事曆年份),MONTH(_xlfn.SINGLE(JunSun1)+8)=6),_xlfn.SINGLE(JunSun1)+8,\"\"))","v":"2022-06-05"},{"$f":"IF(DAY(_xlfn.SINGLE(JunSun1))=1,IF(AND(YEAR(_xlfn.SINGLE(JunSun1)+2)=_xlfn.SINGLE(行事曆年份),MONTH(_xlfn.SINGLE(JunSun1)+2)=6),_xlfn.SINGLE(JunSun1)+2,\"\"),IF(AND(YEAR(_xlfn.SINGLE(JunSun1)+9)=_xlfn.SINGLE(行事曆年份),MONTH(_xlfn.SINGLE(JunSun1)+9)=6),_xlfn.SINGLE(JunSun1)+9,\"\"))","v":"2022-06-06"},{"$f":"IF(DAY(_xlfn.SINGLE(JunSun1))=1,IF(AND(YEAR(_xlfn.SINGLE(JunSun1)+3)=_xlfn.SINGLE(行事曆年份),MONTH(_xlfn.SINGLE(JunSun1)+3)=6),_xlfn.SINGLE(JunSun1)+3,\"\"),IF(AND(YEAR(_xlfn.SINGLE(JunSun1)+10)=_xlfn.SINGLE(行事曆年份),MONTH(_xlfn.SINGLE(JunSun1)+10)=6),_xlfn.SINGLE(JunSun1)+10,\"\"))","v":"2022-06-07"},{"$f":"IF(DAY(_xlfn.SINGLE(JunSun1))=1,IF(AND(YEAR(_xlfn.SINGLE(JunSun1)+4)=_xlfn.SINGLE(行事曆年份),MONTH(_xlfn.SINGLE(JunSun1)+4)=6),_xlfn.SINGLE(JunSun1)+4,\"\"),IF(AND(YEAR(_xlfn.SINGLE(JunSun1)+11)=_xlfn.SINGLE(行事曆年份),MONTH(_xlfn.SINGLE(JunSun1)+11)=6),_xlfn.SINGLE(JunSun1)+11,\"\"))","v":"2022-06-08"},{"$f":"IF(DAY(_xlfn.SINGLE(JunSun1))=1,IF(AND(YEAR(_xlfn.SINGLE(JunSun1)+5)=_xlfn.SINGLE(行事曆年份),MONTH(_xlfn.SINGLE(JunSun1)+5)=6),_xlfn.SINGLE(JunSun1)+5,\"\"),IF(AND(YEAR(_xlfn.SINGLE(JunSun1)+12)=_xlfn.SINGLE(行事曆年份),MONTH(_xlfn.SINGLE(JunSun1)+12)=6),_xlfn.SINGLE(JunSun1)+12,\"\"))","v":"2022-06-09"},{"$f":"IF(DAY(_xlfn.SINGLE(JunSun1))=1,IF(AND(YEAR(_xlfn.SINGLE(JunSun1)+6)=_xlfn.SINGLE(行事曆年份),MONTH(_xlfn.SINGLE(JunSun1)+6)=6),_xlfn.SINGLE(JunSun1)+6,\"\"),IF(AND(YEAR(_xlfn.SINGLE(JunSun1)+13)=_xlfn.SINGLE(行事曆年份),MONTH(_xlfn.SINGLE(JunSun1)+13)=6),_xlfn.SINGLE(JunSun1)+13,\"\"))","v":"2022-06-10"},{"$f":"IF(DAY(_xlfn.SINGLE(JunSun1))=1,IF(AND(YEAR(_xlfn.SINGLE(JunSun1)+7)=_xlfn.SINGLE(行事曆年份),MONTH(_xlfn.SINGLE(JunSun1)+7)=6),_xlfn.SINGLE(JunSun1)+7,\"\"),IF(AND(YEAR(_xlfn.SINGLE(JunSun1)+14)=_xlfn.SINGLE(行事曆年份),MONTH(_xlfn.SINGLE(JunSun1)+14)=6),_xlfn.SINGLE(JunSun1)+14,\"\"))","v":"2022-06-11"}]
[null,null,{"$f":"IF(DAY(_xlfn.SINGLE(MaySun1))=1,IF(AND(YEAR(_xlfn.SINGLE(MaySun1)+8)=_xlfn.SINGLE(行事曆年份),MONTH(_xlfn.SINGLE(MaySun1)+8)=5),_xlfn.SINGLE(MaySun1)+8,\"\"),IF(AND(YEAR(_xlfn.SINGLE(MaySun1)+15)=_xlfn.SINGLE(行事曆年份),MONTH(_xlfn.SINGLE(MaySun1)+15)=5),_xlfn.SINGLE(MaySun1)+15,\"\"))","v":"2022-05-15"},{"$f":"IF(DAY(_xlfn.SINGLE(MaySun1))=1,IF(AND(YEAR(_xlfn.SINGLE(MaySun1)+9)=_xlfn.SINGLE(行事曆年份),MONTH(_xlfn.SINGLE(MaySun1)+9)=5),_xlfn.SINGLE(MaySun1)+9,\"\"),IF(AND(YEAR(_xlfn.SINGLE(MaySun1)+16)=_xlfn.SINGLE(行事曆年份),MONTH(_xlfn.SINGLE(MaySun1)+16)=5),_xlfn.SINGLE(MaySun1)+16,\"\"))","v":"2022-05-16"},{"$f":"IF(DAY(_xlfn.SINGLE(MaySun1))=1,IF(AND(YEAR(_xlfn.SINGLE(MaySun1)+10)=_xlfn.SINGLE(行事曆年份),MONTH(_xlfn.SINGLE(MaySun1)+10)=5),_xlfn.SINGLE(MaySun1)+10,\"\"),IF(AND(YEAR(_xlfn.SINGLE(MaySun1)+17)=_xlfn.SINGLE(行事曆年份),MONTH(_xlfn.SINGLE(MaySun1)+17)=5),_xlfn.SINGLE(MaySun1)+17,\"\"))","v":"2022-05-17"},{"$f":"IF(DAY(_xlfn.SINGLE(MaySun1))=1,IF(AND(YEAR(_xlfn.SINGLE(MaySun1)+11)=_xlfn.SINGLE(行事曆年份),MONTH(_xlfn.SINGLE(MaySun1)+11)=5),_xlfn.SINGLE(MaySun1)+11,\"\"),IF(AND(YEAR(_xlfn.SINGLE(MaySun1)+18)=_xlfn.SINGLE(行事曆年份),MONTH(_xlfn.SINGLE(MaySun1)+18)=5),_xlfn.SINGLE(MaySun1)+18,\"\"))","v":"2022-05-18"},{"$f":"IF(DAY(_xlfn.SINGLE(MaySun1))=1,IF(AND(YEAR(_xlfn.SINGLE(MaySun1)+12)=_xlfn.SINGLE(行事曆年份),MONTH(_xlfn.SINGLE(MaySun1)+12)=5),_xlfn.SINGLE(MaySun1)+12,\"\"),IF(AND(YEAR(_xlfn.SINGLE(MaySun1)+19)=_xlfn.SINGLE(行事曆年份),MONTH(_xlfn.SINGLE(MaySun1)+19)=5),_xlfn.SINGLE(MaySun1)+19,\"\"))","v":"2022-05-19"},{"$f":"IF(DAY(_xlfn.SINGLE(MaySun1))=1,IF(AND(YEAR(_xlfn.SINGLE(MaySun1)+13)=_xlfn.SINGLE(行事曆年份),MONTH(_xlfn.SINGLE(MaySun1)+13)=5),_xlfn.SINGLE(MaySun1)+13,\"\"),IF(AND(YEAR(_xlfn.SINGLE(MaySun1)+20)=_xlfn.SINGLE(行事曆年份),MONTH(_xlfn.SINGLE(MaySun1)+20)=5),_xlfn.SINGLE(MaySun1)+20,\"\"))","v":"2022-05-20"},{"$f":"IF(DAY(_xlfn.SINGLE(MaySun1))=1,IF(AND(YEAR(_xlfn.SINGLE(MaySun1)+14)=_xlfn.SINGLE(行事曆年份),MONTH(_xlfn.SINGLE(MaySun1)+14)=5),_xlfn.SINGLE(MaySun1)+14,\"\"),IF(AND(YEAR(_xlfn.SINGLE(MaySun1)+21)=_xlfn.SINGLE(行事曆年份),MONTH(_xlfn.SINGLE(MaySun1)+21)=5),_xlfn.SINGLE(MaySun1)+21,\"\"))","v":"2022-05-21"},null,{"$f":"IF(DAY(_xlfn.SINGLE(JunSun1))=1,IF(AND(YEAR(_xlfn.SINGLE(JunSun1)+8)=_xlfn.SINGLE(行事曆年份),MONTH(_xlfn.SINGLE(JunSun1)+8)=6),_xlfn.SINGLE(JunSun1)+8,\"\"),IF(AND(YEAR(_xlfn.SINGLE(JunSun1)+15)=_xlfn.SINGLE(行事曆年份),MONTH(_xlfn.SINGLE(JunSun1)+15)=6),_xlfn.SINGLE(JunSun1)+15,\"\"))","v":"2022-06-12"},{"$f":"IF(DAY(_xlfn.SINGLE(JunSun1))=1,IF(AND(YEAR(_xlfn.SINGLE(JunSun1)+9)=_xlfn.SINGLE(行事曆年份),MONTH(_xlfn.SINGLE(JunSun1)+9)=6),_xlfn.SINGLE(JunSun1)+9,\"\"),IF(AND(YEAR(_xlfn.SINGLE(JunSun1)+16)=_xlfn.SINGLE(行事曆年份),MONTH(_xlfn.SINGLE(JunSun1)+16)=6),_xlfn.SINGLE(JunSun1)+16,\"\"))","v":"2022-06-13"},{"$f":"IF(DAY(_xlfn.SINGLE(JunSun1))=1,IF(AND(YEAR(_xlfn.SINGLE(JunSun1)+10)=_xlfn.SINGLE(行事曆年份),MONTH(_xlfn.SINGLE(JunSun1)+10)=6),_xlfn.SINGLE(JunSun1)+10,\"\"),IF(AND(YEAR(_xlfn.SINGLE(JunSun1)+17)=_xlfn.SINGLE(行事曆年份),MONTH(_xlfn.SINGLE(JunSun1)+17)=6),_xlfn.SINGLE(JunSun1)+17,\"\"))","v":"2022-06-14"},{"$f":"IF(DAY(_xlfn.SINGLE(JunSun1))=1,IF(AND(YEAR(_xlfn.SINGLE(JunSun1)+11)=_xlfn.SINGLE(行事曆年份),MONTH(_xlfn.SINGLE(JunSun1)+11)=6),_xlfn.SINGLE(JunSun1)+11,\"\"),IF(AND(YEAR(_xlfn.SINGLE(JunSun1)+18)=_xlfn.SINGLE(行事曆年份),MONTH(_xlfn.SINGLE(JunSun1)+18)=6),_xlfn.SINGLE(JunSun1)+18,\"\"))","v":"2022-06-15"},{"$f":"IF(DAY(_xlfn.SINGLE(JunSun1))=1,IF(AND(YEAR(_xlfn.SINGLE(JunSun1)+12)=_xlfn.SINGLE(行事曆年份),MONTH(_xlfn.SINGLE(JunSun1)+12)=6),_xlfn.SINGLE(JunSun1)+12,\"\"),IF(AND(YEAR(_xlfn.SINGLE(JunSun1)+19)=_xlfn.SINGLE(行事曆年份),MONTH(_xlfn.SINGLE(JunSun1)+19)=6),_xlfn.SINGLE(JunSun1)+19,\"\"))","v":"2022-06-16"},{"$f":"IF(DAY(_xlfn.SINGLE(JunSun1))=1,IF(AND(YEAR(_xlfn.SINGLE(JunSun1)+13)=_xlfn.SINGLE(行事曆年份),MONTH(_xlfn.SINGLE(JunSun1)+13)=6),_xlfn.SINGLE(JunSun1)+13,\"\"),IF(AND(YEAR(_xlfn.SINGLE(JunSun1)+20)=_xlfn.SINGLE(行事曆年份),MONTH(_xlfn.SINGLE(JunSun1)+20)=6),_xlfn.SINGLE(JunSun1)+20,\"\"))","v":"2022-06-17"},{"$f":"IF(DAY(_xlfn.SINGLE(JunSun1))=1,IF(AND(YEAR(_xlfn.SINGLE(JunSun1)+14)=_xlfn.SINGLE(行事曆年份),MONTH(_xlfn.SINGLE(JunSun1)+14)=6),_xlfn.SINGLE(JunSun1)+14,\"\"),IF(AND(YEAR(_xlfn.SINGLE(JunSun1)+21)=_xlfn.SINGLE(行事曆年份),MONTH(_xlfn.SINGLE(JunSun1)+21)=6),_xlfn.SINGLE(JunSun1)+21,\"\"))","v":"2022-06-18"}]
[null,null,{"$f":"IF(DAY(_xlfn.SINGLE(MaySun1))=1,IF(AND(YEAR(_xlfn.SINGLE(MaySun1)+15)=_xlfn.SINGLE(行事曆年份),MONTH(_xlfn.SINGLE(MaySun1)+15)=5),_xlfn.SINGLE(MaySun1)+15,\"\"),IF(AND(YEAR(_xlfn.SINGLE(MaySun1)+22)=_xlfn.SINGLE(行事曆年份),MONTH(_xlfn.SINGLE(MaySun1)+22)=5),_xlfn.SINGLE(MaySun1)+22,\"\"))","v":"2022-05-22"},{"$f":"IF(DAY(_xlfn.SINGLE(MaySun1))=1,IF(AND(YEAR(_xlfn.SINGLE(MaySun1)+16)=_xlfn.SINGLE(行事曆年份),MONTH(_xlfn.SINGLE(MaySun1)+16)=5),_xlfn.SINGLE(MaySun1)+16,\"\"),IF(AND(YEAR(_xlfn.SINGLE(MaySun1)+23)=_xlfn.SINGLE(行事曆年份),MONTH(_xlfn.SINGLE(MaySun1)+23)=5),_xlfn.SINGLE(MaySun1)+23,\"\"))","v":"2022-05-23"},{"$f":"IF(DAY(_xlfn.SINGLE(MaySun1))=1,IF(AND(YEAR(_xlfn.SINGLE(MaySun1)+17)=_xlfn.SINGLE(行事曆年份),MONTH(_xlfn.SINGLE(MaySun1)+17)=5),_xlfn.SINGLE(MaySun1)+17,\"\"),IF(AND(YEAR(_xlfn.SINGLE(MaySun1)+24)=_xlfn.SINGLE(行事曆年份),MONTH(_xlfn.SINGLE(MaySun1)+24)=5),_xlfn.SINGLE(MaySun1)+24,\"\"))","v":"2022-05-24"},{"$f":"IF(DAY(_xlfn.SINGLE(MaySun1))=1,IF(AND(YEAR(_xlfn.SINGLE(MaySun1)+18)=_xlfn.SINGLE(行事曆年份),MONTH(_xlfn.SINGLE(MaySun1)+18)=5),_xlfn.SINGLE(MaySun1)+18,\"\"),IF(AND(YEAR(_xlfn.SINGLE(MaySun1)+25)=_xlfn.SINGLE(行事曆年份),MONTH(_xlfn.SINGLE(MaySun1)+25)=5),_xlfn.SINGLE(MaySun1)+25,\"\"))","v":"2022-05-25"},{"$f":"IF(DAY(_xlfn.SINGLE(MaySun1))=1,IF(AND(YEAR(_xlfn.SINGLE(MaySun1)+19)=_xlfn.SINGLE(行事曆年份),MONTH(_xlfn.SINGLE(MaySun1)+19)=5),_xlfn.SINGLE(MaySun1)+19,\"\"),IF(AND(YEAR(_xlfn.SINGLE(MaySun1)+26)=_xlfn.SINGLE(行事曆年份),MONTH(_xlfn.SINGLE(MaySun1)+26)=5),_xlfn.SINGLE(MaySun1)+26,\"\"))","v":"2022-05-26"},{"$f":"IF(DAY(_xlfn.SINGLE(MaySun1))=1,IF(AND(YEAR(_xlfn.SINGLE(MaySun1)+20)=_xlfn.SINGLE(行事曆年份),MONTH(_xlfn.SINGLE(MaySun1)+20)=5),_xlfn.SINGLE(MaySun1)+20,\"\"),IF(AND(YEAR(_xlfn.SINGLE(MaySun1)+27)=_xlfn.SINGLE(行事曆年份),MONTH(_xlfn.SINGLE(MaySun1)+27)=5),_xlfn.SINGLE(MaySun1)+27,\"\"))","v":"2022-05-27"},{"$f":"IF(DAY(_xlfn.SINGLE(MaySun1))=1,IF(AND(YEAR(_xlfn.SINGLE(MaySun1)+21)=_xlfn.SINGLE(行事曆年份),MONTH(_xlfn.SINGLE(MaySun1)+21)=5),_xlfn.SINGLE(MaySun1)+21,\"\"),IF(AND(YEAR(_xlfn.SINGLE(MaySun1)+28)=_xlfn.SINGLE(行事曆年份),MONTH(_xlfn.SINGLE(MaySun1)+28)=5),_xlfn.SINGLE(MaySun1)+28,\"\"))","v":"2022-05-28"},null,{"$f":"IF(DAY(_xlfn.SINGLE(JunSun1))=1,IF(AND(YEAR(_xlfn.SINGLE(JunSun1)+15)=_xlfn.SINGLE(行事曆年份),MONTH(_xlfn.SINGLE(JunSun1)+15)=6),_xlfn.SINGLE(JunSun1)+15,\"\"),IF(AND(YEAR(_xlfn.SINGLE(JunSun1)+22)=_xlfn.SINGLE(行事曆年份),MONTH(_xlfn.SINGLE(JunSun1)+22)=6),_xlfn.SINGLE(JunSun1)+22,\"\"))","v":"2022-06-19"},{"$f":"IF(DAY(_xlfn.SINGLE(JunSun1))=1,IF(AND(YEAR(_xlfn.SINGLE(JunSun1)+16)=_xlfn.SINGLE(行事曆年份),MONTH(_xlfn.SINGLE(JunSun1)+16)=6),_xlfn.SINGLE(JunSun1)+16,\"\"),IF(AND(YEAR(_xlfn.SINGLE(JunSun1)+23)=_xlfn.SINGLE(行事曆年份),MONTH(_xlfn.SINGLE(JunSun1)+23)=6),_xlfn.SINGLE(JunSun1)+23,\"\"))","v":"2022-06-20"},{"$f":"IF(DAY(_xlfn.SINGLE(JunSun1))=1,IF(AND(YEAR(_xlfn.SINGLE(JunSun1)+17)=_xlfn.SINGLE(行事曆年份),MONTH(_xlfn.SINGLE(JunSun1)+17)=6),_xlfn.SINGLE(JunSun1)+17,\"\"),IF(AND(YEAR(_xlfn.SINGLE(JunSun1)+24)=_xlfn.SINGLE(行事曆年份),MONTH(_xlfn.SINGLE(JunSun1)+24)=6),_xlfn.SINGLE(JunSun1)+24,\"\"))","v":"2022-06-21"},{"$f":"IF(DAY(_xlfn.SINGLE(JunSun1))=1,IF(AND(YEAR(_xlfn.SINGLE(JunSun1)+18)=_xlfn.SINGLE(行事曆年份),MONTH(_xlfn.SINGLE(JunSun1)+18)=6),_xlfn.SINGLE(JunSun1)+18,\"\"),IF(AND(YEAR(_xlfn.SINGLE(JunSun1)+25)=_xlfn.SINGLE(行事曆年份),MONTH(_xlfn.SINGLE(JunSun1)+25)=6),_xlfn.SINGLE(JunSun1)+25,\"\"))","v":"2022-06-22"},{"$f":"IF(DAY(_xlfn.SINGLE(JunSun1))=1,IF(AND(YEAR(_xlfn.SINGLE(JunSun1)+19)=_xlfn.SINGLE(行事曆年份),MONTH(_xlfn.SINGLE(JunSun1)+19)=6),_xlfn.SINGLE(JunSun1)+19,\"\"),IF(AND(YEAR(_xlfn.SINGLE(JunSun1)+26)=_xlfn.SINGLE(行事曆年份),MONTH(_xlfn.SINGLE(JunSun1)+26)=6),_xlfn.SINGLE(JunSun1)+26,\"\"))","v":"2022-06-23"},{"$f":"IF(DAY(_xlfn.SINGLE(JunSun1))=1,IF(AND(YEAR(_xlfn.SINGLE(JunSun1)+20)=_xlfn.SINGLE(行事曆年份),MONTH(_xlfn.SINGLE(JunSun1)+20)=6),_xlfn.SINGLE(JunSun1)+20,\"\"),IF(AND(YEAR(_xlfn.SINGLE(JunSun1)+27)=_xlfn.SINGLE(行事曆年份),MONTH(_xlfn.SINGLE(JunSun1)+27)=6),_xlfn.SINGLE(JunSun1)+27,\"\"))","v":"2022-06-24"},{"$f":"IF(DAY(_xlfn.SINGLE(JunSun1))=1,IF(AND(YEAR(_xlfn.SINGLE(JunSun1)+21)=_xlfn.SINGLE(行事曆年份),MONTH(_xlfn.SINGLE(JunSun1)+21)=6),_xlfn.SINGLE(JunSun1)+21,\"\"),IF(AND(YEAR(_xlfn.SINGLE(JunSun1)+28)=_xlfn.SINGLE(行事曆年份),MONTH(_xlfn.SINGLE(JunSun1)+28)=6),_xlfn.SINGLE(JunSun1)+28,\"\"))","v":"2022-06-25"}]
[null,null,{"$f":"IF(DAY(_xlfn.SINGLE(MaySun1))=1,IF(AND(YEAR(_xlfn.SINGLE(MaySun1)+22)=_xlfn.SINGLE(行事曆年份),MONTH(_xlfn.SINGLE(MaySun1)+22)=5),_xlfn.SINGLE(MaySun1)+22,\"\"),IF(AND(YEAR(_xlfn.SINGLE(MaySun1)+29)=_xlfn.SINGLE(行事曆年份),MONTH(_xlfn.SINGLE(MaySun1)+29)=5),_xlfn.SINGLE(MaySun1)+29,\"\"))","v":"2022-05-29"},{"$f":"IF(DAY(_xlfn.SINGLE(MaySun1))=1,IF(AND(YEAR(_xlfn.SINGLE(MaySun1)+23)=_xlfn.SINGLE(行事曆年份),MONTH(_xlfn.SINGLE(MaySun1)+23)=5),_xlfn.SINGLE(MaySun1)+23,\"\"),IF(AND(YEAR(_xlfn.SINGLE(MaySun1)+30)=_xlfn.SINGLE(行事曆年份),MONTH(_xlfn.SINGLE(MaySun1)+30)=5),_xlfn.SINGLE(MaySun1)+30,\"\"))","v":"2022-05-30"},{"$f":"IF(DAY(_xlfn.SINGLE(MaySun1))=1,IF(AND(YEAR(_xlfn.SINGLE(MaySun1)+24)=_xlfn.SINGLE(行事曆年份),MONTH(_xlfn.SINGLE(MaySun1)+24)=5),_xlfn.SINGLE(MaySun1)+24,\"\"),IF(AND(YEAR(_xlfn.SINGLE(MaySun1)+31)=_xlfn.SINGLE(行事曆年份),MONTH(_xlfn.SINGLE(MaySun1)+31)=5),_xlfn.SINGLE(MaySun1)+31,\"\"))","v":"2022-05-31"},{"$f":"IF(DAY(_xlfn.SINGLE(MaySun1))=1,IF(AND(YEAR(_xlfn.SINGLE(MaySun1)+25)=_xlfn.SINGLE(行事曆年份),MONTH(_xlfn.SINGLE(MaySun1)+25)=5),_xlfn.SINGLE(MaySun1)+25,\"\"),IF(AND(YEAR(_xlfn.SINGLE(MaySun1)+32)=_xlfn.SINGLE(行事曆年份),MONTH(_xlfn.SINGLE(MaySun1)+32)=5),_xlfn.SINGLE(MaySun1)+32,\"\"))","v":""},{"$f":"IF(DAY(_xlfn.SINGLE(MaySun1))=1,IF(AND(YEAR(_xlfn.SINGLE(MaySun1)+26)=_xlfn.SINGLE(行事曆年份),MONTH(_xlfn.SINGLE(MaySun1)+26)=5),_xlfn.SINGLE(MaySun1)+26,\"\"),IF(AND(YEAR(_xlfn.SINGLE(MaySun1)+33)=_xlfn.SINGLE(行事曆年份),MONTH(_xlfn.SINGLE(MaySun1)+33)=5),_xlfn.SINGLE(MaySun1)+33,\"\"))","v":""},{"$f":"IF(DAY(_xlfn.SINGLE(MaySun1))=1,IF(AND(YEAR(_xlfn.SINGLE(MaySun1)+27)=_xlfn.SINGLE(行事曆年份),MONTH(_xlfn.SINGLE(MaySun1)+27)=5),_xlfn.SINGLE(MaySun1)+27,\"\"),IF(AND(YEAR(_xlfn.SINGLE(MaySun1)+34)=_xlfn.SINGLE(行事曆年份),MONTH(_xlfn.SINGLE(MaySun1)+34)=5),_xlfn.SINGLE(MaySun1)+34,\"\"))","v":""},{"$f":"IF(DAY(_xlfn.SINGLE(MaySun1))=1,IF(AND(YEAR(_xlfn.SINGLE(MaySun1)+28)=_xlfn.SINGLE(行事曆年份),MONTH(_xlfn.SINGLE(MaySun1)+28)=5),_xlfn.SINGLE(MaySun1)+28,\"\"),IF(AND(YEAR(_xlfn.SINGLE(MaySun1)+35)=_xlfn.SINGLE(行事曆年份),MONTH(_xlfn.SINGLE(MaySun1)+35)=5),_xlfn.SINGLE(MaySun1)+35,\"\"))","v":""},null,{"$f":"IF(DAY(_xlfn.SINGLE(JunSun1))=1,IF(AND(YEAR(_xlfn.SINGLE(JunSun1)+22)=_xlfn.SINGLE(行事曆年份),MONTH(_xlfn.SINGLE(JunSun1)+22)=6),_xlfn.SINGLE(JunSun1)+22,\"\"),IF(AND(YEAR(_xlfn.SINGLE(JunSun1)+29)=_xlfn.SINGLE(行事曆年份),MONTH(_xlfn.SINGLE(JunSun1)+29)=6),_xlfn.SINGLE(JunSun1)+29,\"\"))","v":"2022-06-26"},{"$f":"IF(DAY(_xlfn.SINGLE(JunSun1))=1,IF(AND(YEAR(_xlfn.SINGLE(JunSun1)+23)=_xlfn.SINGLE(行事曆年份),MONTH(_xlfn.SINGLE(JunSun1)+23)=6),_xlfn.SINGLE(JunSun1)+23,\"\"),IF(AND(YEAR(_xlfn.SINGLE(JunSun1)+30)=_xlfn.SINGLE(行事曆年份),MONTH(_xlfn.SINGLE(JunSun1)+30)=6),_xlfn.SINGLE(JunSun1)+30,\"\"))","v":"2022-06-27"},{"$f":"IF(DAY(_xlfn.SINGLE(JunSun1))=1,IF(AND(YEAR(_xlfn.SINGLE(JunSun1)+24)=_xlfn.SINGLE(行事曆年份),MONTH(_xlfn.SINGLE(JunSun1)+24)=6),_xlfn.SINGLE(JunSun1)+24,\"\"),IF(AND(YEAR(_xlfn.SINGLE(JunSun1)+31)=_xlfn.SINGLE(行事曆年份),MONTH(_xlfn.SINGLE(JunSun1)+31)=6),_xlfn.SINGLE(JunSun1)+31,\"\"))","v":"2022-06-28"},{"$f":"IF(DAY(_xlfn.SINGLE(JunSun1))=1,IF(AND(YEAR(_xlfn.SINGLE(JunSun1)+25)=_xlfn.SINGLE(行事曆年份),MONTH(_xlfn.SINGLE(JunSun1)+25)=6),_xlfn.SINGLE(JunSun1)+25,\"\"),IF(AND(YEAR(_xlfn.SINGLE(JunSun1)+32)=_xlfn.SINGLE(行事曆年份),MONTH(_xlfn.SINGLE(JunSun1)+32)=6),_xlfn.SINGLE(JunSun1)+32,\"\"))","v":"2022-06-29"},{"$f":"IF(DAY(_xlfn.SINGLE(JunSun1))=1,IF(AND(YEAR(_xlfn.SINGLE(JunSun1)+26)=_xlfn.SINGLE(行事曆年份),MONTH(_xlfn.SINGLE(JunSun1)+26)=6),_xlfn.SINGLE(JunSun1)+26,\"\"),IF(AND(YEAR(_xlfn.SINGLE(JunSun1)+33)=_xlfn.SINGLE(行事曆年份),MONTH(_xlfn.SINGLE(JunSun1)+33)=6),_xlfn.SINGLE(JunSun1)+33,\"\"))","v":"2022-06-30"},{"$f":"IF(DAY(_xlfn.SINGLE(JunSun1))=1,IF(AND(YEAR(_xlfn.SINGLE(JunSun1)+27)=_xlfn.SINGLE(行事曆年份),MONTH(_xlfn.SINGLE(JunSun1)+27)=6),_xlfn.SINGLE(JunSun1)+27,\"\"),IF(AND(YEAR(_xlfn.SINGLE(JunSun1)+34)=_xlfn.SINGLE(行事曆年份),MONTH(_xlfn.SINGLE(JunSun1)+34)=6),_xlfn.SINGLE(JunSun1)+34,\"\"))","v":""},{"$f":"IF(DAY(_xlfn.SINGLE(JunSun1))=1,IF(AND(YEAR(_xlfn.SINGLE(JunSun1)+28)=_xlfn.SINGLE(行事曆年份),MONTH(_xlfn.SINGLE(JunSun1)+28)=6),_xlfn.SINGLE(JunSun1)+28,\"\"),IF(AND(YEAR(_xlfn.SINGLE(JunSun1)+35)=_xlfn.SINGLE(行事曆年份),MONTH(_xlfn.SINGLE(JunSun1)+35)=6),_xlfn.SINGLE(JunSun1)+35,\"\"))","v":""}]
[null,null,{"$f":"IF(DAY(_xlfn.SINGLE(MaySun1))=1,IF(AND(YEAR(_xlfn.SINGLE(MaySun1)+29)=_xlfn.SINGLE(行事曆年份),MONTH(_xlfn.SINGLE(MaySun1)+29)=5),_xlfn.SINGLE(MaySun1)+29,\"\"),IF(AND(YEAR(_xlfn.SINGLE(MaySun1)+36)=_xlfn.SINGLE(行事曆年份),MONTH(_xlfn.SINGLE(MaySun1)+36)=5),_xlfn.SINGLE(MaySun1)+36,\"\"))","v":""},{"$f":"IF(DAY(_xlfn.SINGLE(MaySun1))=1,IF(AND(YEAR(_xlfn.SINGLE(MaySun1)+30)=_xlfn.SINGLE(行事曆年份),MONTH(_xlfn.SINGLE(MaySun1)+30)=5),_xlfn.SINGLE(MaySun1)+30,\"\"),IF(AND(YEAR(_xlfn.SINGLE(MaySun1)+37)=_xlfn.SINGLE(行事曆年份),MONTH(_xlfn.SINGLE(MaySun1)+37)=5),_xlfn.SINGLE(MaySun1)+37,\"\"))","v":""},{"$f":"IF(DAY(_xlfn.SINGLE(MaySun1))=1,IF(AND(YEAR(_xlfn.SINGLE(MaySun1)+31)=_xlfn.SINGLE(行事曆年份),MONTH(_xlfn.SINGLE(MaySun1)+31)=5),_xlfn.SINGLE(MaySun1)+31,\"\"),IF(AND(YEAR(_xlfn.SINGLE(MaySun1)+38)=_xlfn.SINGLE(行事曆年份),MONTH(_xlfn.SINGLE(MaySun1)+38)=5),_xlfn.SINGLE(MaySun1)+38,\"\"))","v":""},{"$f":"IF(DAY(_xlfn.SINGLE(MaySun1))=1,IF(AND(YEAR(_xlfn.SINGLE(MaySun1)+32)=_xlfn.SINGLE(行事曆年份),MONTH(_xlfn.SINGLE(MaySun1)+32)=5),_xlfn.SINGLE(MaySun1)+32,\"\"),IF(AND(YEAR(_xlfn.SINGLE(MaySun1)+39)=_xlfn.SINGLE(行事曆年份),MONTH(_xlfn.SINGLE(MaySun1)+39)=5),_xlfn.SINGLE(MaySun1)+39,\"\"))","v":""},{"$f":"IF(DAY(_xlfn.SINGLE(MaySun1))=1,IF(AND(YEAR(_xlfn.SINGLE(MaySun1)+33)=_xlfn.SINGLE(行事曆年份),MONTH(_xlfn.SINGLE(MaySun1)+33)=5),_xlfn.SINGLE(MaySun1)+33,\"\"),IF(AND(YEAR(_xlfn.SINGLE(MaySun1)+40)=_xlfn.SINGLE(行事曆年份),MONTH(_xlfn.SINGLE(MaySun1)+40)=5),_xlfn.SINGLE(MaySun1)+40,\"\"))","v":""},{"$f":"IF(DAY(_xlfn.SINGLE(MaySun1))=1,IF(AND(YEAR(_xlfn.SINGLE(MaySun1)+34)=_xlfn.SINGLE(行事曆年份),MONTH(_xlfn.SINGLE(MaySun1)+34)=5),_xlfn.SINGLE(MaySun1)+34,\"\"),IF(AND(YEAR(_xlfn.SINGLE(MaySun1)+41)=_xlfn.SINGLE(行事曆年份),MONTH(_xlfn.SINGLE(MaySun1)+41)=5),_xlfn.SINGLE(MaySun1)+41,\"\"))","v":""},{"$f":"IF(DAY(_xlfn.SINGLE(MaySun1))=1,IF(AND(YEAR(_xlfn.SINGLE(MaySun1)+35)=_xlfn.SINGLE(行事曆年份),MONTH(_xlfn.SINGLE(MaySun1)+35)=5),_xlfn.SINGLE(MaySun1)+35,\"\"),IF(AND(YEAR(_xlfn.SINGLE(MaySun1)+42)=_xlfn.SINGLE(行事曆年份),MONTH(_xlfn.SINGLE(MaySun1)+42)=5),_xlfn.SINGLE(MaySun1)+42,\"\"))","v":""},null,{"$f":"IF(DAY(_xlfn.SINGLE(JunSun1))=1,IF(AND(YEAR(_xlfn.SINGLE(JunSun1)+29)=_xlfn.SINGLE(行事曆年份),MONTH(_xlfn.SINGLE(JunSun1)+29)=6),_xlfn.SINGLE(JunSun1)+29,\"\"),IF(AND(YEAR(_xlfn.SINGLE(JunSun1)+36)=_xlfn.SINGLE(行事曆年份),MONTH(_xlfn.SINGLE(JunSun1)+36)=6),_xlfn.SINGLE(JunSun1)+36,\"\"))","v":""},{"$f":"IF(DAY(_xlfn.SINGLE(JunSun1))=1,IF(AND(YEAR(_xlfn.SINGLE(JunSun1)+30)=_xlfn.SINGLE(行事曆年份),MONTH(_xlfn.SINGLE(JunSun1)+30)=6),_xlfn.SINGLE(JunSun1)+30,\"\"),IF(AND(YEAR(_xlfn.SINGLE(JunSun1)+37)=_xlfn.SINGLE(行事曆年份),MONTH(_xlfn.SINGLE(JunSun1)+37)=6),_xlfn.SINGLE(JunSun1)+37,\"\"))","v":""},{"$f":"IF(DAY(_xlfn.SINGLE(JunSun1))=1,IF(AND(YEAR(_xlfn.SINGLE(JunSun1)+31)=_xlfn.SINGLE(行事曆年份),MONTH(_xlfn.SINGLE(JunSun1)+31)=6),_xlfn.SINGLE(JunSun1)+31,\"\"),IF(AND(YEAR(_xlfn.SINGLE(JunSun1)+38)=_xlfn.SINGLE(行事曆年份),MONTH(_xlfn.SINGLE(JunSun1)+38)=6),_xlfn.SINGLE(JunSun1)+38,\"\"))","v":""},{"$f":"IF(DAY(_xlfn.SINGLE(JunSun1))=1,IF(AND(YEAR(_xlfn.SINGLE(JunSun1)+32)=_xlfn.SINGLE(行事曆年份),MONTH(_xlfn.SINGLE(JunSun1)+32)=6),_xlfn.SINGLE(JunSun1)+32,\"\"),IF(AND(YEAR(_xlfn.SINGLE(JunSun1)+39)=_xlfn.SINGLE(行事曆年份),MONTH(_xlfn.SINGLE(JunSun1)+39)=6),_xlfn.SINGLE(JunSun1)+39,\"\"))","v":""},{"$f":"IF(DAY(_xlfn.SINGLE(JunSun1))=1,IF(AND(YEAR(_xlfn.SINGLE(JunSun1)+33)=_xlfn.SINGLE(行事曆年份),MONTH(_xlfn.SINGLE(JunSun1)+33)=6),_xlfn.SINGLE(JunSun1)+33,\"\"),IF(AND(YEAR(_xlfn.SINGLE(JunSun1)+40)=_xlfn.SINGLE(行事曆年份),MONTH(_xlfn.SINGLE(JunSun1)+40)=6),_xlfn.SINGLE(JunSun1)+40,\"\"))","v":""},{"$f":"IF(DAY(_xlfn.SINGLE(JunSun1))=1,IF(AND(YEAR(_xlfn.SINGLE(JunSun1)+34)=_xlfn.SINGLE(行事曆年份),MONTH(_xlfn.SINGLE(JunSun1)+34)=6),_xlfn.SINGLE(JunSun1)+34,\"\"),IF(AND(YEAR(_xlfn.SINGLE(JunSun1)+41)=_xlfn.SINGLE(行事曆年份),MONTH(_xlfn.SINGLE(JunSun1)+41)=6),_xlfn.SINGLE(JunSun1)+41,\"\"))","v":""},{"$f":"IF(DAY(_xlfn.SINGLE(JunSun1))=1,IF(AND(YEAR(_xlfn.SINGLE(JunSun1)+35)=_xlfn.SINGLE(行事曆年份),MONTH(_xlfn.SINGLE(JunSun1)+35)=6),_xlfn.SINGLE(JunSun1)+35,\"\"),IF(AND(YEAR(_xlfn.SINGLE(JunSun1)+42)=_xlfn.SINGLE(行事曆年份),MONTH(_xlfn.SINGLE(JunSun1)+42)=6),_xlfn.SINGLE(JunSun1)+42,\"\"))","v":""}]
[]
["儲存格 C30 是 7 月標籤、儲存格 K30 是 8 月。",null,"七月",{"$nulls":7},"八月"]
["儲存格 C31 到 I37 是 7 月行事曆標籤、儲存格 K31 到 Q37 是 8 月行事曆標籤。儲存格 A39 是下一個說明",null,"週日","週一","週二","週三","週四","週五","週六",null,"週日","週一","週二","週三","週四","週五","週六"]
[null,null,{"$f":"IF(DAY(_xlfn.SINGLE(JulSun1))=1,\"\",IF(AND(YEAR(_xlfn.SINGLE(JulSun1)+1)=_xlfn.SINGLE(行事曆年份),MONTH(_xlfn.SINGLE(JulSun1)+1)=7),_xlfn.SINGLE(JulSun1)+1,\"\"))","v":""},{"$f":"IF(DAY(_xlfn.SINGLE(JulSun1))=1,\"\",IF(AND(YEAR(_xlfn.SINGLE(JulSun1)+2)=_xlfn.SINGLE(行事曆年份),MONTH(_xlfn.SINGLE(JulSun1)+2)=7),_xlfn.SINGLE(JulSun1)+2,\"\"))","v":""},{"$f":"IF(DAY(_xlfn.SINGLE(JulSun1))=1,\"\",IF(AND(YEAR(_xlfn.SINGLE(JulSun1)+3)=_xlfn.SINGLE(行事曆年份),MONTH(_xlfn.SINGLE(JulSun1)+3)=7),_xlfn.SINGLE(JulSun1)+3,\"\"))","v":""},{"$f":"IF(DAY(_xlfn.SINGLE(JulSun1))=1,\"\",IF(AND(YEAR(_xlfn.SINGLE(JulSun1)+4)=_xlfn.SINGLE(行事曆年份),MONTH(_xlfn.SINGLE(JulSun1)+4)=7),_xlfn.SINGLE(JulSun1)+4,\"\"))","v":""},{"$f":"IF(DAY(_xlfn.SINGLE(JulSun1))=1,\"\",IF(AND(YEAR(_xlfn.SINGLE(JulSun1)+5)=_xlfn.SINGLE(行事曆年份),MONTH(_xlfn.SINGLE(JulSun1)+5)=7),_xlfn.SINGLE(JulSun1)+5,\"\"))","v":""},{"$f":"IF(DAY(_xlfn.SINGLE(JulSun1))=1,\"\",IF(AND(YEAR(_xlfn.SINGLE(JulSun1)+6)=_xlfn.SINGLE(行事曆年份),MONTH(_xlfn.SINGLE(JulSun1)+6)=7),_xlfn.SINGLE(JulSun1)+6,\"\"))","v":"2022-07-01"},{"$f":"_xlfn.SINGLE(IF(DAY(_xlfn.SINGLE(JulSun1))=1,IF(AND(YEAR(_xlfn.SINGLE(JulSun1))=_xlfn.SINGLE(行事曆年份),MONTH(_xlfn.SINGLE(JulSun1))=7),JulSun1,\"\"),IF(AND(YEAR(_xlfn.SINGLE(JulSun1)+7)=_xlfn.SINGLE(行事曆年份),MONTH(_xlfn.SINGLE(JulSun1)+7)=7),_xlfn.SINGLE(JulSun1)+7,\"\")))","v":"2022-07-02"},null,{"$f":"IF(DAY(_xlfn.SINGLE(AugSun1))=1,\"\",IF(AND(YEAR(_xlfn.SINGLE(AugSun1)+1)=_xlfn.SINGLE(行事曆年份),MONTH(_xlfn.SINGLE(AugSun1)+1)=8),_xlfn.SINGLE(AugSun1)+1,\"\"))","v":""},{"$f":"IF(DAY(_xlfn.SINGLE(AugSun1))=1,\"\",IF(AND(YEAR(_xlfn.SINGLE(AugSun1)+2)=_xlfn.SINGLE(行事曆年份),MONTH(_xlfn.SINGLE(AugSun1)+2)=8),_xlfn.SINGLE(AugSun1)+2,\"\"))","v":"2022-08-01"},{"$f":"IF(DAY(_xlfn.SINGLE(AugSun1))=1,\"\",IF(AND(YEAR(_xlfn.SINGLE(AugSun1)+3)=_xlfn.SINGLE(行事曆年份),MONTH(_xlfn.SINGLE(AugSun1)+3)=8),_xlfn.SINGLE(AugSun1)+3,\"\"))","v":"2022-08-02"},{"$f":"IF(DAY(_xlfn.SINGLE(AugSun1))=1,\"\",IF(AND(YEAR(_xlfn.SINGLE(AugSun1)+4)=_xlfn.SINGLE(行事曆年份),MONTH(_xlfn.SINGLE(AugSun1)+4)=8),_xlfn.SINGLE(AugSun1)+4,\"\"))","v":"2022-08-03"},{"$f":"IF(DAY(_xlfn.SINGLE(AugSun1))=1,\"\",IF(AND(YEAR(_xlfn.SINGLE(AugSun1)+5)=_xlfn.SINGLE(行事曆年份),MONTH(_xlfn.SINGLE(AugSun1)+5)=8),_xlfn.SINGLE(AugSun1)+5,\"\"))","v":"2022-08-04"},{"$f":"IF(DAY(_xlfn.SINGLE(AugSun1))=1,\"\",IF(AND(YEAR(_xlfn.SINGLE(AugSun1)+6)=_xlfn.SINGLE(行事曆年份),MONTH(_xlfn.SINGLE(AugSun1)+6)=8),_xlfn.SINGLE(AugSun1)+6,\"\"))","v":"2022-08-05"},{"$f":"_xlfn.SINGLE(IF(DAY(_xlfn.SINGLE(AugSun1))=1,IF(AND(YEAR(_xlfn.SINGLE(AugSun1))=_xlfn.SINGLE(行事曆年份),MONTH(_xlfn.SINGLE(AugSun1))=8),AugSun1,\"\"),IF(AND(YEAR(_xlfn.SINGLE(AugSun1)+7)=_xlfn.SINGLE(行事曆年份),MONTH(_xlfn.SINGLE(AugSun1)+7)=8),_xlfn.SINGLE(AugSun1)+7,\"\")))","v":"2022-08-06"}]
[null,null,{"$f":"IF(DAY(_xlfn.SINGLE(JulSun1))=1,IF(AND(YEAR(_xlfn.SINGLE(JulSun1)+1)=_xlfn.SINGLE(行事曆年份),MONTH(_xlfn.SINGLE(JulSun1)+1)=7),_xlfn.SINGLE(JulSun1)+1,\"\"),IF(AND(YEAR(_xlfn.SINGLE(JulSun1)+8)=_xlfn.SINGLE(行事曆年份),MONTH(_xlfn.SINGLE(JulSun1)+8)=7),_xlfn.SINGLE(JulSun1)+8,\"\"))","v":"2022-07-03"},{"$f":"IF(DAY(_xlfn.SINGLE(JulSun1))=1,IF(AND(YEAR(_xlfn.SINGLE(JulSun1)+2)=_xlfn.SINGLE(行事曆年份),MONTH(_xlfn.SINGLE(JulSun1)+2)=7),_xlfn.SINGLE(JulSun1)+2,\"\"),IF(AND(YEAR(_xlfn.SINGLE(JulSun1)+9)=_xlfn.SINGLE(行事曆年份),MONTH(_xlfn.SINGLE(JulSun1)+9)=7),_xlfn.SINGLE(JulSun1)+9,\"\"))","v":"2022-07-04"},{"$f":"IF(DAY(_xlfn.SINGLE(JulSun1))=1,IF(AND(YEAR(_xlfn.SINGLE(JulSun1)+3)=_xlfn.SINGLE(行事曆年份),MONTH(_xlfn.SINGLE(JulSun1)+3)=7),_xlfn.SINGLE(JulSun1)+3,\"\"),IF(AND(YEAR(_xlfn.SINGLE(JulSun1)+10)=_xlfn.SINGLE(行事曆年份),MONTH(_xlfn.SINGLE(JulSun1)+10)=7),_xlfn.SINGLE(JulSun1)+10,\"\"))","v":"2022-07-05"},{"$f":"IF(DAY(_xlfn.SINGLE(JulSun1))=1,IF(AND(YEAR(_xlfn.SINGLE(JulSun1)+4)=_xlfn.SINGLE(行事曆年份),MONTH(_xlfn.SINGLE(JulSun1)+4)=7),_xlfn.SINGLE(JulSun1)+4,\"\"),IF(AND(YEAR(_xlfn.SINGLE(JulSun1)+11)=_xlfn.SINGLE(行事曆年份),MONTH(_xlfn.SINGLE(JulSun1)+11)=7),_xlfn.SINGLE(JulSun1)+11,\"\"))","v":"2022-07-06"},{"$f":"IF(DAY(_xlfn.SINGLE(JulSun1))=1,IF(AND(YEAR(_xlfn.SINGLE(JulSun1)+5)=_xlfn.SINGLE(行事曆年份),MONTH(_xlfn.SINGLE(JulSun1)+5)=7),_xlfn.SINGLE(JulSun1)+5,\"\"),IF(AND(YEAR(_xlfn.SINGLE(JulSun1)+12)=_xlfn.SINGLE(行事曆年份),MONTH(_xlfn.SINGLE(JulSun1)+12)=7),_xlfn.SINGLE(JulSun1)+12,\"\"))","v":"2022-07-07"},{"$f":"IF(DAY(_xlfn.SINGLE(JulSun1))=1,IF(AND(YEAR(_xlfn.SINGLE(JulSun1)+6)=_xlfn.SINGLE(行事曆年份),MONTH(_xlfn.SINGLE(JulSun1)+6)=7),_xlfn.SINGLE(JulSun1)+6,\"\"),IF(AND(YEAR(_xlfn.SINGLE(JulSun1)+13)=_xlfn.SINGLE(行事曆年份),MONTH(_xlfn.SINGLE(JulSun1)+13)=7),_xlfn.SINGLE(JulSun1)+13,\"\"))","v":"2022-07-08"},{"$f":"IF(DAY(_xlfn.SINGLE(JulSun1))=1,IF(AND(YEAR(_xlfn.SINGLE(JulSun1)+7)=_xlfn.SINGLE(行事曆年份),MONTH(_xlfn.SINGLE(JulSun1)+7)=7),_xlfn.SINGLE(JulSun1)+7,\"\"),IF(AND(YEAR(_xlfn.SINGLE(JulSun1)+14)=_xlfn.SINGLE(行事曆年份),MONTH(_xlfn.SINGLE(JulSun1)+14)=7),_xlfn.SINGLE(JulSun1)+14,\"\"))","v":"2022-07-09"},null,{"$f":"IF(DAY(_xlfn.SINGLE(AugSun1))=1,IF(AND(YEAR(_xlfn.SINGLE(AugSun1)+1)=_xlfn.SINGLE(行事曆年份),MONTH(_xlfn.SINGLE(AugSun1)+1)=8),_xlfn.SINGLE(AugSun1)+1,\"\"),IF(AND(YEAR(_xlfn.SINGLE(AugSun1)+8)=_xlfn.SINGLE(行事曆年份),MONTH(_xlfn.SINGLE(AugSun1)+8)=8),_xlfn.SINGLE(AugSun1)+8,\"\"))","v":"2022-08-07"},{"$f":"IF(DAY(_xlfn.SINGLE(AugSun1))=1,IF(AND(YEAR(_xlfn.SINGLE(AugSun1)+2)=_xlfn.SINGLE(行事曆年份),MONTH(_xlfn.SINGLE(AugSun1)+2)=8),_xlfn.SINGLE(AugSun1)+2,\"\"),IF(AND(YEAR(_xlfn.SINGLE(AugSun1)+9)=_xlfn.SINGLE(行事曆年份),MONTH(_xlfn.SINGLE(AugSun1)+9)=8),_xlfn.SINGLE(AugSun1)+9,\"\"))","v":"2022-08-08"},{"$f":"IF(DAY(_xlfn.SINGLE(AugSun1))=1,IF(AND(YEAR(_xlfn.SINGLE(AugSun1)+3)=_xlfn.SINGLE(行事曆年份),MONTH(_xlfn.SINGLE(AugSun1)+3)=8),_xlfn.SINGLE(AugSun1)+3,\"\"),IF(AND(YEAR(_xlfn.SINGLE(AugSun1)+10)=_xlfn.SINGLE(行事曆年份),MONTH(_xlfn.SINGLE(AugSun1)+10)=8),_xlfn.SINGLE(AugSun1)+10,\"\"))","v":"2022-08-09"},{"$f":"IF(DAY(_xlfn.SINGLE(AugSun1))=1,IF(AND(YEAR(_xlfn.SINGLE(AugSun1)+4)=_xlfn.SINGLE(行事曆年份),MONTH(_xlfn.SINGLE(AugSun1)+4)=8),_xlfn.SINGLE(AugSun1)+4,\"\"),IF(AND(YEAR(_xlfn.SINGLE(AugSun1)+11)=_xlfn.SINGLE(行事曆年份),MONTH(_xlfn.SINGLE(AugSun1)+11)=8),_xlfn.SINGLE(AugSun1)+11,\"\"))","v":"2022-08-10"},{"$f":"IF(DAY(_xlfn.SINGLE(AugSun1))=1,IF(AND(YEAR(_xlfn.SINGLE(AugSun1)+5)=_xlfn.SINGLE(行事曆年份),MONTH(_xlfn.SINGLE(AugSun1)+5)=8),_xlfn.SINGLE(AugSun1)+5,\"\"),IF(AND(YEAR(_xlfn.SINGLE(AugSun1)+12)=_xlfn.SINGLE(行事曆年份),MONTH(_xlfn.SINGLE(AugSun1)+12)=8),_xlfn.SINGLE(AugSun1)+12,\"\"))","v":"2022-08-11"},{"$f":"IF(DAY(_xlfn.SINGLE(AugSun1))=1,IF(AND(YEAR(_xlfn.SINGLE(AugSun1)+6)=_xlfn.SINGLE(行事曆年份),MONTH(_xlfn.SINGLE(AugSun1)+6)=8),_xlfn.SINGLE(AugSun1)+6,\"\"),IF(AND(YEAR(_xlfn.SINGLE(AugSun1)+13)=_xlfn.SINGLE(行事曆年份),MONTH(_xlfn.SINGLE(AugSun1)+13)=8),_xlfn.SINGLE(AugSun1)+13,\"\"))","v":"2022-08-12"},{"$f":"IF(DAY(_xlfn.SINGLE(AugSun1))=1,IF(AND(YEAR(_xlfn.SINGLE(AugSun1)+7)=_xlfn.SINGLE(行事曆年份),MONTH(_xlfn.SINGLE(AugSun1)+7)=8),_xlfn.SINGLE(AugSun1)+7,\"\"),IF(AND(YEAR(_xlfn.SINGLE(AugSun1)+14)=_xlfn.SINGLE(行事曆年份),MONTH(_xlfn.SINGLE(AugSun1)+14)=8),_xlfn.SINGLE(AugSun1)+14,\"\"))","v":"2022-08-13"}]
[null,null,{"$f":"IF(DAY(_xlfn.SINGLE(JulSun1))=1,IF(AND(YEAR(_xlfn.SINGLE(JulSun1)+8)=_xlfn.SINGLE(行事曆年份),MONTH(_xlfn.SINGLE(JulSun1)+8)=7),_xlfn.SINGLE(JulSun1)+8,\"\"),IF(AND(YEAR(_xlfn.SINGLE(JulSun1)+15)=_xlfn.SINGLE(行事曆年份),MONTH(_xlfn.SINGLE(JulSun1)+15)=7),_xlfn.SINGLE(JulSun1)+15,\"\"))","v":"2022-07-10"},{"$f":"IF(DAY(_xlfn.SINGLE(JulSun1))=1,IF(AND(YEAR(_xlfn.SINGLE(JulSun1)+9)=_xlfn.SINGLE(行事曆年份),MONTH(_xlfn.SINGLE(JulSun1)+9)=7),_xlfn.SINGLE(JulSun1)+9,\"\"),IF(AND(YEAR(_xlfn.SINGLE(JulSun1)+16)=_xlfn.SINGLE(行事曆年份),MONTH(_xlfn.SINGLE(JulSun1)+16)=7),_xlfn.SINGLE(JulSun1)+16,\"\"))","v":"2022-07-11"},{"$f":"IF(DAY(_xlfn.SINGLE(JulSun1))=1,IF(AND(YEAR(_xlfn.SINGLE(JulSun1)+10)=_xlfn.SINGLE(行事曆年份),MONTH(_xlfn.SINGLE(JulSun1)+10)=7),_xlfn.SINGLE(JulSun1)+10,\"\"),IF(AND(YEAR(_xlfn.SINGLE(JulSun1)+17)=_xlfn.SINGLE(行事曆年份),MONTH(_xlfn.SINGLE(JulSun1)+17)=7),_xlfn.SINGLE(JulSun1)+17,\"\"))","v":"2022-07-12"},{"$f":"IF(DAY(_xlfn.SINGLE(JulSun1))=1,IF(AND(YEAR(_xlfn.SINGLE(JulSun1)+11)=_xlfn.SINGLE(行事曆年份),MONTH(_xlfn.SINGLE(JulSun1)+11)=7),_xlfn.SINGLE(JulSun1)+11,\"\"),IF(AND(YEAR(_xlfn.SINGLE(JulSun1)+18)=_xlfn.SINGLE(行事曆年份),MONTH(_xlfn.SINGLE(JulSun1)+18)=7),_xlfn.SINGLE(JulSun1)+18,\"\"))","v":"2022-07-13"},{"$f":"IF(DAY(_xlfn.SINGLE(JulSun1))=1,IF(AND(YEAR(_xlfn.SINGLE(JulSun1)+12)=_xlfn.SINGLE(行事曆年份),MONTH(_xlfn.SINGLE(JulSun1)+12)=7),_xlfn.SINGLE(JulSun1)+12,\"\"),IF(AND(YEAR(_xlfn.SINGLE(JulSun1)+19)=_xlfn.SINGLE(行事曆年份),MONTH(_xlfn.SINGLE(JulSun1)+19)=7),_xlfn.SINGLE(JulSun1)+19,\"\"))","v":"2022-07-14"},{"$f":"IF(DAY(_xlfn.SINGLE(JulSun1))=1,IF(AND(YEAR(_xlfn.SINGLE(JulSun1)+13)=_xlfn.SINGLE(行事曆年份),MONTH(_xlfn.SINGLE(JulSun1)+13)=7),_xlfn.SINGLE(JulSun1)+13,\"\"),IF(AND(YEAR(_xlfn.SINGLE(JulSun1)+20)=_xlfn.SINGLE(行事曆年份),MONTH(_xlfn.SINGLE(JulSun1)+20)=7),_xlfn.SINGLE(JulSun1)+20,\"\"))","v":"2022-07-15"},{"$f":"IF(DAY(_xlfn.SINGLE(JulSun1))=1,IF(AND(YEAR(_xlfn.SINGLE(JulSun1)+14)=_xlfn.SINGLE(行事曆年份),MONTH(_xlfn.SINGLE(JulSun1)+14)=7),_xlfn.SINGLE(JulSun1)+14,\"\"),IF(AND(YEAR(_xlfn.SINGLE(JulSun1)+21)=_xlfn.SINGLE(行事曆年份),MONTH(_xlfn.SINGLE(JulSun1)+21)=7),_xlfn.SINGLE(JulSun1)+21,\"\"))","v":"2022-07-16"},null,{"$f":"IF(DAY(_xlfn.SINGLE(AugSun1))=1,IF(AND(YEAR(_xlfn.SINGLE(AugSun1)+8)=_xlfn.SINGLE(行事曆年份),MONTH(_xlfn.SINGLE(AugSun1)+8)=8),_xlfn.SINGLE(AugSun1)+8,\"\"),IF(AND(YEAR(_xlfn.SINGLE(AugSun1)+15)=_xlfn.SINGLE(行事曆年份),MONTH(_xlfn.SINGLE(AugSun1)+15)=8),_xlfn.SINGLE(AugSun1)+15,\"\"))","v":"2022-08-14"},{"$f":"IF(DAY(_xlfn.SINGLE(AugSun1))=1,IF(AND(YEAR(_xlfn.SINGLE(AugSun1)+9)=_xlfn.SINGLE(行事曆年份),MONTH(_xlfn.SINGLE(AugSun1)+9)=8),_xlfn.SINGLE(AugSun1)+9,\"\"),IF(AND(YEAR(_xlfn.SINGLE(AugSun1)+16)=_xlfn.SINGLE(行事曆年份),MONTH(_xlfn.SINGLE(AugSun1)+16)=8),_xlfn.SINGLE(AugSun1)+16,\"\"))","v":"2022-08-15"},{"$f":"IF(DAY(_xlfn.SINGLE(AugSun1))=1,IF(AND(YEAR(_xlfn.SINGLE(AugSun1)+10)=_xlfn.SINGLE(行事曆年份),MONTH(_xlfn.SINGLE(AugSun1)+10)=8),_xlfn.SINGLE(AugSun1)+10,\"\"),IF(AND(YEAR(_xlfn.SINGLE(AugSun1)+17)=_xlfn.SINGLE(行事曆年份),MONTH(_xlfn.SINGLE(AugSun1)+17)=8),_xlfn.SINGLE(AugSun1)+17,\"\"))","v":"2022-08-16"},{"$f":"IF(DAY(_xlfn.SINGLE(AugSun1))=1,IF(AND(YEAR(_xlfn.SINGLE(AugSun1)+11)=_xlfn.SINGLE(行事曆年份),MONTH(_xlfn.SINGLE(AugSun1)+11)=8),_xlfn.SINGLE(AugSun1)+11,\"\"),IF(AND(YEAR(_xlfn.SINGLE(AugSun1)+18)=_xlfn.SINGLE(行事曆年份),MONTH(_xlfn.SINGLE(AugSun1)+18)=8),_xlfn.SINGLE(AugSun1)+18,\"\"))","v":"2022-08-17"},{"$f":"IF(DAY(_xlfn.SINGLE(AugSun1))=1,IF(AND(YEAR(_xlfn.SINGLE(AugSun1)+12)=_xlfn.SINGLE(行事曆年份),MONTH(_xlfn.SINGLE(AugSun1)+12)=8),_xlfn.SINGLE(AugSun1)+12,\"\"),IF(AND(YEAR(_xlfn.SINGLE(AugSun1)+19)=_xlfn.SINGLE(行事曆年份),MONTH(_xlfn.SINGLE(AugSun1)+19)=8),_xlfn.SINGLE(AugSun1)+19,\"\"))","v":"2022-08-18"},{"$f":"IF(DAY(_xlfn.SINGLE(AugSun1))=1,IF(AND(YEAR(_xlfn.SINGLE(AugSun1)+13)=_xlfn.SINGLE(行事曆年份),MONTH(_xlfn.SINGLE(AugSun1)+13)=8),_xlfn.SINGLE(AugSun1)+13,\"\"),IF(AND(YEAR(_xlfn.SINGLE(AugSun1)+20)=_xlfn.SINGLE(行事曆年份),MONTH(_xlfn.SINGLE(AugSun1)+20)=8),_xlfn.SINGLE(AugSun1)+20,\"\"))","v":"2022-08-19"},{"$f":"IF(DAY(_xlfn.SINGLE(AugSun1))=1,IF(AND(YEAR(_xlfn.SINGLE(AugSun1)+14)=_xlfn.SINGLE(行事曆年份),MONTH(_xlfn.SINGLE(AugSun1)+14)=8),_xlfn.SINGLE(AugSun1)+14,\"\"),IF(AND(YEAR(_xlfn.SINGLE(AugSun1)+21)=_xlfn.SINGLE(行事曆年份),MONTH(_xlfn.SINGLE(AugSun1)+21)=8),_xlfn.SINGLE(AugSun1)+21,\"\"))","v":"2022-08-20"}]
[null,null,{"$f":"IF(DAY(_xlfn.SINGLE(JulSun1))=1,IF(AND(YEAR(_xlfn.SINGLE(JulSun1)+15)=_xlfn.SINGLE(行事曆年份),MONTH(_xlfn.SINGLE(JulSun1)+15)=7),_xlfn.SINGLE(JulSun1)+15,\"\"),IF(AND(YEAR(_xlfn.SINGLE(JulSun1)+22)=_xlfn.SINGLE(行事曆年份),MONTH(_xlfn.SINGLE(JulSun1)+22)=7),_xlfn.SINGLE(JulSun1)+22,\"\"))","v":"2022-07-17"},{"$f":"IF(DAY(_xlfn.SINGLE(JulSun1))=1,IF(AND(YEAR(_xlfn.SINGLE(JulSun1)+16)=_xlfn.SINGLE(行事曆年份),MONTH(_xlfn.SINGLE(JulSun1)+16)=7),_xlfn.SINGLE(JulSun1)+16,\"\"),IF(AND(YEAR(_xlfn.SINGLE(JulSun1)+23)=_xlfn.SINGLE(行事曆年份),MONTH(_xlfn.SINGLE(JulSun1)+23)=7),_xlfn.SINGLE(JulSun1)+23,\"\"))","v":"2022-07-18"},{"$f":"IF(DAY(_xlfn.SINGLE(JulSun1))=1,IF(AND(YEAR(_xlfn.SINGLE(JulSun1)+17)=_xlfn.SINGLE(行事曆年份),MONTH(_xlfn.SINGLE(JulSun1)+17)=7),_xlfn.SINGLE(JulSun1)+17,\"\"),IF(AND(YEAR(_xlfn.SINGLE(JulSun1)+24)=_xlfn.SINGLE(行事曆年份),MONTH(_xlfn.SINGLE(JulSun1)+24)=7),_xlfn.SINGLE(JulSun1)+24,\"\"))","v":"2022-07-19"},{"$f":"IF(DAY(_xlfn.SINGLE(JulSun1))=1,IF(AND(YEAR(_xlfn.SINGLE(JulSun1)+18)=_xlfn.SINGLE(行事曆年份),MONTH(_xlfn.SINGLE(JulSun1)+18)=7),_xlfn.SINGLE(JulSun1)+18,\"\"),IF(AND(YEAR(_xlfn.SINGLE(JulSun1)+25)=_xlfn.SINGLE(行事曆年份),MONTH(_xlfn.SINGLE(JulSun1)+25)=7),_xlfn.SINGLE(JulSun1)+25,\"\"))","v":"2022-07-20"},{"$f":"IF(DAY(_xlfn.SINGLE(JulSun1))=1,IF(AND(YEAR(_xlfn.SINGLE(JulSun1)+19)=_xlfn.SINGLE(行事曆年份),MONTH(_xlfn.SINGLE(JulSun1)+19)=7),_xlfn.SINGLE(JulSun1)+19,\"\"),IF(AND(YEAR(_xlfn.SINGLE(JulSun1)+26)=_xlfn.SINGLE(行事曆年份),MONTH(_xlfn.SINGLE(JulSun1)+26)=7),_xlfn.SINGLE(JulSun1)+26,\"\"))","v":"2022-07-21"},{"$f":"IF(DAY(_xlfn.SINGLE(JulSun1))=1,IF(AND(YEAR(_xlfn.SINGLE(JulSun1)+20)=_xlfn.SINGLE(行事曆年份),MONTH(_xlfn.SINGLE(JulSun1)+20)=7),_xlfn.SINGLE(JulSun1)+20,\"\"),IF(AND(YEAR(_xlfn.SINGLE(JulSun1)+27)=_xlfn.SINGLE(行事曆年份),MONTH(_xlfn.SINGLE(JulSun1)+27)=7),_xlfn.SINGLE(JulSun1)+27,\"\"))","v":"2022-07-22"},{"$f":"IF(DAY(_xlfn.SINGLE(JulSun1))=1,IF(AND(YEAR(_xlfn.SINGLE(JulSun1)+21)=_xlfn.SINGLE(行事曆年份),MONTH(_xlfn.SINGLE(JulSun1)+21)=7),_xlfn.SINGLE(JulSun1)+21,\"\"),IF(AND(YEAR(_xlfn.SINGLE(JulSun1)+28)=_xlfn.SINGLE(行事曆年份),MONTH(_xlfn.SINGLE(JulSun1)+28)=7),_xlfn.SINGLE(JulSun1)+28,\"\"))","v":"2022-07-23"},null,{"$f":"IF(DAY(_xlfn.SINGLE(AugSun1))=1,IF(AND(YEAR(_xlfn.SINGLE(AugSun1)+15)=_xlfn.SINGLE(行事曆年份),MONTH(_xlfn.SINGLE(AugSun1)+15)=8),_xlfn.SINGLE(AugSun1)+15,\"\"),IF(AND(YEAR(_xlfn.SINGLE(AugSun1)+22)=_xlfn.SINGLE(行事曆年份),MONTH(_xlfn.SINGLE(AugSun1)+22)=8),_xlfn.SINGLE(AugSun1)+22,\"\"))","v":"2022-08-21"},{"$f":"IF(DAY(_xlfn.SINGLE(AugSun1))=1,IF(AND(YEAR(_xlfn.SINGLE(AugSun1)+16)=_xlfn.SINGLE(行事曆年份),MONTH(_xlfn.SINGLE(AugSun1)+16)=8),_xlfn.SINGLE(AugSun1)+16,\"\"),IF(AND(YEAR(_xlfn.SINGLE(AugSun1)+23)=_xlfn.SINGLE(行事曆年份),MONTH(_xlfn.SINGLE(AugSun1)+23)=8),_xlfn.SINGLE(AugSun1)+23,\"\"))","v":"2022-08-22"},{"$f":"IF(DAY(_xlfn.SINGLE(AugSun1))=1,IF(AND(YEAR(_xlfn.SINGLE(AugSun1)+17)=_xlfn.SINGLE(行事曆年份),MONTH(_xlfn.SINGLE(AugSun1)+17)=8),_xlfn.SINGLE(AugSun1)+17,\"\"),IF(AND(YEAR(_xlfn.SINGLE(AugSun1)+24)=_xlfn.SINGLE(行事曆年份),MONTH(_xlfn.SINGLE(AugSun1)+24)=8),_xlfn.SINGLE(AugSun1)+24,\"\"))","v":"2022-08-23"},{"$f":"IF(DAY(_xlfn.SINGLE(AugSun1))=1,IF(AND(YEAR(_xlfn.SINGLE(AugSun1)+18)=_xlfn.SINGLE(行事曆年份),MONTH(_xlfn.SINGLE(AugSun1)+18)=8),_xlfn.SINGLE(AugSun1)+18,\"\"),IF(AND(YEAR(_xlfn.SINGLE(AugSun1)+25)=_xlfn.SINGLE(行事曆年份),MONTH(_xlfn.SINGLE(AugSun1)+25)=8),_xlfn.SINGLE(AugSun1)+25,\"\"))","v":"2022-08-24"},{"$f":"IF(DAY(_xlfn.SINGLE(AugSun1))=1,IF(AND(YEAR(_xlfn.SINGLE(AugSun1)+19)=_xlfn.SINGLE(行事曆年份),MONTH(_xlfn.SINGLE(AugSun1)+19)=8),_xlfn.SINGLE(AugSun1)+19,\"\"),IF(AND(YEAR(_xlfn.SINGLE(AugSun1)+26)=_xlfn.SINGLE(行事曆年份),MONTH(_xlfn.SINGLE(AugSun1)+26)=8),_xlfn.SINGLE(AugSun1)+26,\"\"))","v":"2022-08-25"},{"$f":"IF(DAY(_xlfn.SINGLE(AugSun1))=1,IF(AND(YEAR(_xlfn.SINGLE(AugSun1)+20)=_xlfn.SINGLE(行事曆年份),MONTH(_xlfn.SINGLE(AugSun1)+20)=8),_xlfn.SINGLE(AugSun1)+20,\"\"),IF(AND(YEAR(_xlfn.SINGLE(AugSun1)+27)=_xlfn.SINGLE(行事曆年份),MONTH(_xlfn.SINGLE(AugSun1)+27)=8),_xlfn.SINGLE(AugSun1)+27,\"\"))","v":"2022-08-26"},{"$f":"IF(DAY(_xlfn.SINGLE(AugSun1))=1,IF(AND(YEAR(_xlfn.SINGLE(AugSun1)+21)=_xlfn.SINGLE(行事曆年份),MONTH(_xlfn.SINGLE(AugSun1)+21)=8),_xlfn.SINGLE(AugSun1)+21,\"\"),IF(AND(YEAR(_xlfn.SINGLE(AugSun1)+28)=_xlfn.SINGLE(行事曆年份),MONTH(_xlfn.SINGLE(AugSun1)+28)=8),_xlfn.SINGLE(AugSun1)+28,\"\"))","v":"2022-08-27"}]
[null,null,{"$f":"IF(DAY(_xlfn.SINGLE(JulSun1))=1,IF(AND(YEAR(_xlfn.SINGLE(JulSun1)+22)=_xlfn.SINGLE(行事曆年份),MONTH(_xlfn.SINGLE(JulSun1)+22)=7),_xlfn.SINGLE(JulSun1)+22,\"\"),IF(AND(YEAR(_xlfn.SINGLE(JulSun1)+29)=_xlfn.SINGLE(行事曆年份),MONTH(_xlfn.SINGLE(JulSun1)+29)=7),_xlfn.SINGLE(JulSun1)+29,\"\"))","v":"2022-07-24"},{"$f":"IF(DAY(_xlfn.SINGLE(JulSun1))=1,IF(AND(YEAR(_xlfn.SINGLE(JulSun1)+23)=_xlfn.SINGLE(行事曆年份),MONTH(_xlfn.SINGLE(JulSun1)+23)=7),_xlfn.SINGLE(JulSun1)+23,\"\"),IF(AND(YEAR(_xlfn.SINGLE(JulSun1)+30)=_xlfn.SINGLE(行事曆年份),MONTH(_xlfn.SINGLE(JulSun1)+30)=7),_xlfn.SINGLE(JulSun1)+30,\"\"))","v":"2022-07-25"},{"$f":"IF(DAY(_xlfn.SINGLE(JulSun1))=1,IF(AND(YEAR(_xlfn.SINGLE(JulSun1)+24)=_xlfn.SINGLE(行事曆年份),MONTH(_xlfn.SINGLE(JulSun1)+24)=7),_xlfn.SINGLE(JulSun1)+24,\"\"),IF(AND(YEAR(_xlfn.SINGLE(JulSun1)+31)=_xlfn.SINGLE(行事曆年份),MONTH(_xlfn.SINGLE(JulSun1)+31)=7),_xlfn.SINGLE(JulSun1)+31,\"\"))","v":"2022-07-26"},{"$f":"IF(DAY(_xlfn.SINGLE(JulSun1))=1,IF(AND(YEAR(_xlfn.SINGLE(JulSun1)+25)=_xlfn.SINGLE(行事曆年份),MONTH(_xlfn.SINGLE(JulSun1)+25)=7),_xlfn.SINGLE(JulSun1)+25,\"\"),IF(AND(YEAR(_xlfn.SINGLE(JulSun1)+32)=_xlfn.SINGLE(行事曆年份),MONTH(_xlfn.SINGLE(JulSun1)+32)=7),_xlfn.SINGLE(JulSun1)+32,\"\"))","v":"2022-07-27"},{"$f":"IF(DAY(_xlfn.SINGLE(JulSun1))=1,IF(AND(YEAR(_xlfn.SINGLE(JulSun1)+26)=_xlfn.SINGLE(行事曆年份),MONTH(_xlfn.SINGLE(JulSun1)+26)=7),_xlfn.SINGLE(JulSun1)+26,\"\"),IF(AND(YEAR(_xlfn.SINGLE(JulSun1)+33)=_xlfn.SINGLE(行事曆年份),MONTH(_xlfn.SINGLE(JulSun1)+33)=7),_xlfn.SINGLE(JulSun1)+33,\"\"))","v":"2022-07-28"},{"$f":"IF(DAY(_xlfn.SINGLE(JulSun1))=1,IF(AND(YEAR(_xlfn.SINGLE(JulSun1)+27)=_xlfn.SINGLE(行事曆年份),MONTH(_xlfn.SINGLE(JulSun1)+27)=7),_xlfn.SINGLE(JulSun1)+27,\"\"),IF(AND(YEAR(_xlfn.SINGLE(JulSun1)+34)=_xlfn.SINGLE(行事曆年份),MONTH(_xlfn.SINGLE(JulSun1)+34)=7),_xlfn.SINGLE(JulSun1)+34,\"\"))","v":"2022-07-29"},{"$f":"IF(DAY(_xlfn.SINGLE(JulSun1))=1,IF(AND(YEAR(_xlfn.SINGLE(JulSun1)+28)=_xlfn.SINGLE(行事曆年份),MONTH(_xlfn.SINGLE(JulSun1)+28)=7),_xlfn.SINGLE(JulSun1)+28,\"\"),IF(AND(YEAR(_xlfn.SINGLE(JulSun1)+35)=_xlfn.SINGLE(行事曆年份),MONTH(_xlfn.SINGLE(JulSun1)+35)=7),_xlfn.SINGLE(JulSun1)+35,\"\"))","v":"2022-07-30"},null,{"$f":"IF(DAY(_xlfn.SINGLE(AugSun1))=1,IF(AND(YEAR(_xlfn.SINGLE(AugSun1)+22)=_xlfn.SINGLE(行事曆年份),MONTH(_xlfn.SINGLE(AugSun1)+22)=8),_xlfn.SINGLE(AugSun1)+22,\"\"),IF(AND(YEAR(_xlfn.SINGLE(AugSun1)+29)=_xlfn.SINGLE(行事曆年份),MONTH(_xlfn.SINGLE(AugSun1)+29)=8),_xlfn.SINGLE(AugSun1)+29,\"\"))","v":"2022-08-28"},{"$f":"IF(DAY(_xlfn.SINGLE(AugSun1))=1,IF(AND(YEAR(_xlfn.SINGLE(AugSun1)+23)=_xlfn.SINGLE(行事曆年份),MONTH(_xlfn.SINGLE(AugSun1)+23)=8),_xlfn.SINGLE(AugSun1)+23,\"\"),IF(AND(YEAR(_xlfn.SINGLE(AugSun1)+30)=_xlfn.SINGLE(行事曆年份),MONTH(_xlfn.SINGLE(AugSun1)+30)=8),_xlfn.SINGLE(AugSun1)+30,\"\"))","v":"2022-08-29"},{"$f":"IF(DAY(_xlfn.SINGLE(AugSun1))=1,IF(AND(YEAR(_xlfn.SINGLE(AugSun1)+24)=_xlfn.SINGLE(行事曆年份),MONTH(_xlfn.SINGLE(AugSun1)+24)=8),_xlfn.SINGLE(AugSun1)+24,\"\"),IF(AND(YEAR(_xlfn.SINGLE(AugSun1)+31)=_xlfn.SINGLE(行事曆年份),MONTH(_xlfn.SINGLE(AugSun1)+31)=8),_xlfn.SINGLE(AugSun1)+31,\"\"))","v":"2022-08-30"},{"$f":"IF(DAY(_xlfn.SINGLE(AugSun1))=1,IF(AND(YEAR(_xlfn.SINGLE(AugSun1)+25)=_xlfn.SINGLE(行事曆年份),MONTH(_xlfn.SINGLE(AugSun1)+25)=8),_xlfn.SINGLE(AugSun1)+25,\"\"),IF(AND(YEAR(_xlfn.SINGLE(AugSun1)+32)=_xlfn.SINGLE(行事曆年份),MONTH(_xlfn.SINGLE(AugSun1)+32)=8),_xlfn.SINGLE(AugSun1)+32,\"\"))","v":"2022-08-31"},{"$f":"IF(DAY(_xlfn.SINGLE(AugSun1))=1,IF(AND(YEAR(_xlfn.SINGLE(AugSun1)+26)=_xlfn.SINGLE(行事曆年份),MONTH(_xlfn.SINGLE(AugSun1)+26)=8),_xlfn.SINGLE(AugSun1)+26,\"\"),IF(AND(YEAR(_xlfn.SINGLE(AugSun1)+33)=_xlfn.SINGLE(行事曆年份),MONTH(_xlfn.SINGLE(AugSun1)+33)=8),_xlfn.SINGLE(AugSun1)+33,\"\"))","v":""},{"$f":"IF(DAY(_xlfn.SINGLE(AugSun1))=1,IF(AND(YEAR(_xlfn.SINGLE(AugSun1)+27)=_xlfn.SINGLE(行事曆年份),MONTH(_xlfn.SINGLE(AugSun1)+27)=8),_xlfn.SINGLE(AugSun1)+27,\"\"),IF(AND(YEAR(_xlfn.SINGLE(AugSun1)+34)=_xlfn.SINGLE(行事曆年份),MONTH(_xlfn.SINGLE(AugSun1)+34)=8),_xlfn.SINGLE(AugSun1)+34,\"\"))","v":""},{"$f":"IF(DAY(_xlfn.SINGLE(AugSun1))=1,IF(AND(YEAR(_xlfn.SINGLE(AugSun1)+28)=_xlfn.SINGLE(行事曆年份),MONTH(_xlfn.SINGLE(AugSun1)+28)=8),_xlfn.SINGLE(AugSun1)+28,\"\"),IF(AND(YEAR(_xlfn.SINGLE(AugSun1)+35)=_xlfn.SINGLE(行事曆年份),MONTH(_xlfn.SINGLE(AugSun1)+35)=8),_xlfn.SINGLE(AugSun1)+35,\"\"))","v":""}]
[null,null,{"$f":"IF(DAY(_xlfn.SINGLE(JulSun1))=1,IF(AND(YEAR(_xlfn.SINGLE(JulSun1)+29)=_xlfn.SINGLE(行事曆年份),MONTH(_xlfn.SINGLE(JulSun1)+29)=7),_xlfn.SINGLE(JulSun1)+29,\"\"),IF(AND(YEAR(_xlfn.SINGLE(JulSun1)+36)=_xlfn.SINGLE(行事曆年份),MONTH(_xlfn.SINGLE(JulSun1)+36)=7),_xlfn.SINGLE(JulSun1)+36,\"\"))","v":"2022-07-31"},{"$f":"IF(DAY(_xlfn.SINGLE(JulSun1))=1,IF(AND(YEAR(_xlfn.SINGLE(JulSun1)+30)=_xlfn.SINGLE(行事曆年份),MONTH(_xlfn.SINGLE(JulSun1)+30)=7),_xlfn.SINGLE(JulSun1)+30,\"\"),IF(AND(YEAR(_xlfn.SINGLE(JulSun1)+37)=_xlfn.SINGLE(行事曆年份),MONTH(_xlfn.SINGLE(JulSun1)+37)=7),_xlfn.SINGLE(JulSun1)+37,\"\"))","v":""},{"$f":"IF(DAY(_xlfn.SINGLE(JulSun1))=1,IF(AND(YEAR(_xlfn.SINGLE(JulSun1)+31)=_xlfn.SINGLE(行事曆年份),MONTH(_xlfn.SINGLE(JulSun1)+31)=7),_xlfn.SINGLE(JulSun1)+31,\"\"),IF(AND(YEAR(_xlfn.SINGLE(JulSun1)+38)=_xlfn.SINGLE(行事曆年份),MONTH(_xlfn.SINGLE(JulSun1)+38)=7),_xlfn.SINGLE(JulSun1)+38,\"\"))","v":""},{"$f":"IF(DAY(_xlfn.SINGLE(JulSun1))=1,IF(AND(YEAR(_xlfn.SINGLE(JulSun1)+32)=_xlfn.SINGLE(行事曆年份),MONTH(_xlfn.SINGLE(JulSun1)+32)=7),_xlfn.SINGLE(JulSun1)+32,\"\"),IF(AND(YEAR(_xlfn.SINGLE(JulSun1)+39)=_xlfn.SINGLE(行事曆年份),MONTH(_xlfn.SINGLE(JulSun1)+39)=7),_xlfn.SINGLE(JulSun1)+39,\"\"))","v":""},{"$f":"IF(DAY(_xlfn.SINGLE(JulSun1))=1,IF(AND(YEAR(_xlfn.SINGLE(JulSun1)+33)=_xlfn.SINGLE(行事曆年份),MONTH(_xlfn.SINGLE(JulSun1)+33)=7),_xlfn.SINGLE(JulSun1)+33,\"\"),IF(AND(YEAR(_xlfn.SINGLE(JulSun1)+40)=_xlfn.SINGLE(行事曆年份),MONTH(_xlfn.SINGLE(JulSun1)+40)=7),_xlfn.SINGLE(JulSun1)+40,\"\"))","v":""},{"$f":"IF(DAY(_xlfn.SINGLE(JulSun1))=1,IF(AND(YEAR(_xlfn.SINGLE(JulSun1)+34)=_xlfn.SINGLE(行事曆年份),MONTH(_xlfn.SINGLE(JulSun1)+34)=7),_xlfn.SINGLE(JulSun1)+34,\"\"),IF(AND(YEAR(_xlfn.SINGLE(JulSun1)+41)=_xlfn.SINGLE(行事曆年份),MONTH(_xlfn.SINGLE(JulSun1)+41)=7),_xlfn.SINGLE(JulSun1)+41,\"\"))","v":""},{"$f":"IF(DAY(_xlfn.SINGLE(JulSun1))=1,IF(AND(YEAR(_xlfn.SINGLE(JulSun1)+35)=_xlfn.SINGLE(行事曆年份),MONTH(_xlfn.SINGLE(JulSun1)+35)=7),_xlfn.SINGLE(JulSun1)+35,\"\"),IF(AND(YEAR(_xlfn.SINGLE(JulSun1)+42)=_xlfn.SINGLE(行事曆年份),MONTH(_xlfn.SINGLE(JulSun1)+42)=7),_xlfn.SINGLE(JulSun1)+42,\"\"))","v":""},null,{"$f":"IF(DAY(_xlfn.SINGLE(AugSun1))=1,IF(AND(YEAR(_xlfn.SINGLE(AugSun1)+29)=_xlfn.SINGLE(行事曆年份),MONTH(_xlfn.SINGLE(AugSun1)+29)=8),_xlfn.SINGLE(AugSun1)+29,\"\"),IF(AND(YEAR(_xlfn.SINGLE(AugSun1)+36)=_xlfn.SINGLE(行事曆年份),MONTH(_xlfn.SINGLE(AugSun1)+36)=8),_xlfn.SINGLE(AugSun1)+36,\"\"))","v":""},{"$f":"IF(DAY(_xlfn.SINGLE(AugSun1))=1,IF(AND(YEAR(_xlfn.SINGLE(AugSun1)+30)=_xlfn.SINGLE(行事曆年份),MONTH(_xlfn.SINGLE(AugSun1)+30)=8),_xlfn.SINGLE(AugSun1)+30,\"\"),IF(AND(YEAR(_xlfn.SINGLE(AugSun1)+37)=_xlfn.SINGLE(行事曆年份),MONTH(_xlfn.SINGLE(AugSun1)+37)=8),_xlfn.SINGLE(AugSun1)+37,\"\"))","v":""},{"$f":"IF(DAY(_xlfn.SINGLE(AugSun1))=1,IF(AND(YEAR(_xlfn.SINGLE(AugSun1)+31)=_xlfn.SINGLE(行事曆年份),MONTH(_xlfn.SINGLE(AugSun1)+31)=8),_xlfn.SINGLE(AugSun1)+31,\"\"),IF(AND(YEAR(_xlfn.SINGLE(AugSun1)+38)=_xlfn.SINGLE(行事曆年份),MONTH(_xlfn.SINGLE(AugSun1)+38)=8),_xlfn.SINGLE(AugSun1)+38,\"\"))","v":""},{"$f":"IF(DAY(_xlfn.SINGLE(AugSun1))=1,IF(AND(YEAR(_xlfn.SINGLE(AugSun1)+32)=_xlfn.SINGLE(行事曆年份),MONTH(_xlfn.SINGLE(AugSun1)+32)=8),_xlfn.SINGLE(AugSun1)+32,\"\"),IF(AND(YEAR(_xlfn.SINGLE(AugSun1)+39)=_xlfn.SINGLE(行事曆年份),MONTH(_xlfn.SINGLE(AugSun1)+39)=8),_xlfn.SINGLE(AugSun1)+39,\"\"))","v":""},{"$f":"IF(DAY(_xlfn.SINGLE(AugSun1))=1,IF(AND(YEAR(_xlfn.SINGLE(AugSun1)+33)=_xlfn.SINGLE(行事曆年份),MONTH(_xlfn.SINGLE(AugSun1)+33)=8),_xlfn.SINGLE(AugSun1)+33,\"\"),IF(AND(YEAR(_xlfn.SINGLE(AugSun1)+40)=_xlfn.SINGLE(行事曆年份),MONTH(_xlfn.SINGLE(AugSun1)+40)=8),_xlfn.SINGLE(AugSun1)+40,\"\"))","v":""},{"$f":"IF(DAY(_xlfn.SINGLE(AugSun1))=1,IF(AND(YEAR(_xlfn.SINGLE(AugSun1)+34)=_xlfn.SINGLE(行事曆年份),MONTH(_xlfn.SINGLE(AugSun1)+34)=8),_xlfn.SINGLE(AugSun1)+34,\"\"),IF(AND(YEAR(_xlfn.SINGLE(AugSun1)+41)=_xlfn.SINGLE(行事曆年份),MONTH(_xlfn.SINGLE(AugSun1)+41)=8),_xlfn.SINGLE(AugSun1)+41,\"\"))","v":""},{"$f":"IF(DAY(_xlfn.SINGLE(AugSun1))=1,IF(AND(YEAR(_xlfn.SINGLE(AugSun1)+35)=_xlfn.SINGLE(行事曆年份),MONTH(_xlfn.SINGLE(AugSun1)+35)=8),_xlfn.SINGLE(AugSun1)+35,\"\"),IF(AND(YEAR(_xlfn.SINGLE(AugSun1)+42)=_xlfn.SINGLE(行事曆年份),MONTH(_xlfn.SINGLE(AugSun1)+42)=8),_xlfn.SINGLE(AugSun1)+42,\"\"))","v":""}]
[]
["儲存格 C39 是 9 月標籤、儲存格 K39 是 10 月。",null,"九月",{"$nulls":7},"十月"]
["儲存格 C40 到 I46 是 9 月行事曆標籤、儲存格 K40 到 Q46 是 10 月行事曆標籤。儲存格 A44 是下一個說明",null,"週日","週一","週二","週三","週四","週五","週六",null,"週日","週一","週二","週三","週四","週五","週六"]
[null,null,{"$f":"IF(DAY(_xlfn.SINGLE(SepSun1))=1,\"\",IF(AND(YEAR(_xlfn.SINGLE(SepSun1)+1)=_xlfn.SINGLE(行事曆年份),MONTH(_xlfn.SINGLE(SepSun1)+1)=9),_xlfn.SINGLE(SepSun1)+1,\"\"))","v":""},{"$f":"IF(DAY(_xlfn.SINGLE(SepSun1))=1,\"\",IF(AND(YEAR(_xlfn.SINGLE(SepSun1)+2)=_xlfn.SINGLE(行事曆年份),MONTH(_xlfn.SINGLE(SepSun1)+2)=9),_xlfn.SINGLE(SepSun1)+2,\"\"))","v":""},{"$f":"IF(DAY(_xlfn.SINGLE(SepSun1))=1,\"\",IF(AND(YEAR(_xlfn.SINGLE(SepSun1)+3)=_xlfn.SINGLE(行事曆年份),MONTH(_xlfn.SINGLE(SepSun1)+3)=9),_xlfn.SINGLE(SepSun1)+3,\"\"))","v":""},{"$f":"IF(DAY(_xlfn.SINGLE(SepSun1))=1,\"\",IF(AND(YEAR(_xlfn.SINGLE(SepSun1)+4)=_xlfn.SINGLE(行事曆年份),MONTH(_xlfn.SINGLE(SepSun1)+4)=9),_xlfn.SINGLE(SepSun1)+4,\"\"))","v":""},{"$f":"IF(DAY(_xlfn.SINGLE(SepSun1))=1,\"\",IF(AND(YEAR(_xlfn.SINGLE(SepSun1)+5)=_xlfn.SINGLE(行事曆年份),MONTH(_xlfn.SINGLE(SepSun1)+5)=9),_xlfn.SINGLE(SepSun1)+5,\"\"))","v":"2022-09-01"},{"$f":"IF(DAY(_xlfn.SINGLE(SepSun1))=1,\"\",IF(AND(YEAR(_xlfn.SINGLE(SepSun1)+6)=_xlfn.SINGLE(行事曆年份),MONTH(_xlfn.SINGLE(SepSun1)+6)=9),_xlfn.SINGLE(SepSun1)+6,\"\"))","v":"2022-09-02"},{"$f":"_xlfn.SINGLE(IF(DAY(_xlfn.SINGLE(SepSun1))=1,IF(AND(YEAR(_xlfn.SINGLE(SepSun1))=_xlfn.SINGLE(行事曆年份),MONTH(_xlfn.SINGLE(SepSun1))=9),SepSun1,\"\"),IF(AND(YEAR(_xlfn.SINGLE(SepSun1)+7)=_xlfn.SINGLE(行事曆年份),MONTH(_xlfn.SINGLE(SepSun1)+7)=9),_xlfn.SINGLE(SepSun1)+7,\"\")))","v":"2022-09-03"},null,{"$f":"IF(DAY(_xlfn.SINGLE(OctSun1))=1,\"\",IF(AND(YEAR(_xlfn.SINGLE(OctSun1)+1)=_xlfn.SINGLE(行事曆年份),MONTH(_xlfn.SINGLE(OctSun1)+1)=10),_xlfn.SINGLE(OctSun1)+1,\"\"))","v":""},{"$f":"IF(DAY(_xlfn.SINGLE(OctSun1))=1,\"\",IF(AND(YEAR(_xlfn.SINGLE(OctSun1)+2)=_xlfn.SINGLE(行事曆年份),MONTH(_xlfn.SINGLE(OctSun1)+2)=10),_xlfn.SINGLE(OctSun1)+2,\"\"))","v":""},{"$f":"IF(DAY(_xlfn.SINGLE(OctSun1))=1,\"\",IF(AND(YEAR(_xlfn.SINGLE(OctSun1)+3)=_xlfn.SINGLE(行事曆年份),MONTH(_xlfn.SINGLE(OctSun1)+3)=10),_xlfn.SINGLE(OctSun1)+3,\"\"))","v":""},{"$f":"IF(DAY(_xlfn.SINGLE(OctSun1))=1,\"\",IF(AND(YEAR(_xlfn.SINGLE(OctSun1)+4)=_xlfn.SINGLE(行事曆年份),MONTH(_xlfn.SINGLE(OctSun1)+4)=10),_xlfn.SINGLE(OctSun1)+4,\"\"))","v":""},{"$f":"IF(DAY(_xlfn.SINGLE(OctSun1))=1,\"\",IF(AND(YEAR(_xlfn.SINGLE(OctSun1)+5)=_xlfn.SINGLE(行事曆年份),MONTH(_xlfn.SINGLE(OctSun1)+5)=10),_xlfn.SINGLE(OctSun1)+5,\"\"))","v":""},{"$f":"IF(DAY(_xlfn.SINGLE(OctSun1))=1,\"\",IF(AND(YEAR(_xlfn.SINGLE(OctSun1)+6)=_xlfn.SINGLE(行事曆年份),MONTH(_xlfn.SINGLE(OctSun1)+6)=10),_xlfn.SINGLE(OctSun1)+6,\"\"))","v":""},{"$f":"_xlfn.SINGLE(IF(DAY(_xlfn.SINGLE(OctSun1))=1,IF(AND(YEAR(_xlfn.SINGLE(OctSun1))=_xlfn.SINGLE(行事曆年份),MONTH(_xlfn.SINGLE(OctSun1))=10),OctSun1,\"\"),IF(AND(YEAR(_xlfn.SINGLE(OctSun1)+7)=_xlfn.SINGLE(行事曆年份),MONTH(_xlfn.SINGLE(OctSun1)+7)=10),_xlfn.SINGLE(OctSun1)+7,\"\")))","v":"2022-10-01"}]
[null,null,{"$f":"IF(DAY(_xlfn.SINGLE(SepSun1))=1,IF(AND(YEAR(_xlfn.SINGLE(SepSun1)+1)=_xlfn.SINGLE(行事曆年份),MONTH(_xlfn.SINGLE(SepSun1)+1)=9),_xlfn.SINGLE(SepSun1)+1,\"\"),IF(AND(YEAR(_xlfn.SINGLE(SepSun1)+8)=_xlfn.SINGLE(行事曆年份),MONTH(_xlfn.SINGLE(SepSun1)+8)=9),_xlfn.SINGLE(SepSun1)+8,\"\"))","v":"2022-09-04"},{"$f":"IF(DAY(_xlfn.SINGLE(SepSun1))=1,IF(AND(YEAR(_xlfn.SINGLE(SepSun1)+2)=_xlfn.SINGLE(行事曆年份),MONTH(_xlfn.SINGLE(SepSun1)+2)=9),_xlfn.SINGLE(SepSun1)+2,\"\"),IF(AND(YEAR(_xlfn.SINGLE(SepSun1)+9)=_xlfn.SINGLE(行事曆年份),MONTH(_xlfn.SINGLE(SepSun1)+9)=9),_xlfn.SINGLE(SepSun1)+9,\"\"))","v":"2022-09-05"},{"$f":"IF(DAY(_xlfn.SINGLE(SepSun1))=1,IF(AND(YEAR(_xlfn.SINGLE(SepSun1)+3)=_xlfn.SINGLE(行事曆年份),MONTH(_xlfn.SINGLE(SepSun1)+3)=9),_xlfn.SINGLE(SepSun1)+3,\"\"),IF(AND(YEAR(_xlfn.SINGLE(SepSun1)+10)=_xlfn.SINGLE(行事曆年份),MONTH(_xlfn.SINGLE(SepSun1)+10)=9),_xlfn.SINGLE(SepSun1)+10,\"\"))","v":"2022-09-06"},{"$f":"IF(DAY(_xlfn.SINGLE(SepSun1))=1,IF(AND(YEAR(_xlfn.SINGLE(SepSun1)+4)=_xlfn.SINGLE(行事曆年份),MONTH(_xlfn.SINGLE(SepSun1)+4)=9),_xlfn.SINGLE(SepSun1)+4,\"\"),IF(AND(YEAR(_xlfn.SINGLE(SepSun1)+11)=_xlfn.SINGLE(行事曆年份),MONTH(_xlfn.SINGLE(SepSun1)+11)=9),_xlfn.SINGLE(SepSun1)+11,\"\"))","v":"2022-09-07"},{"$f":"IF(DAY(_xlfn.SINGLE(SepSun1))=1,IF(AND(YEAR(_xlfn.SINGLE(SepSun1)+5)=_xlfn.SINGLE(行事曆年份),MONTH(_xlfn.SINGLE(SepSun1)+5)=9),_xlfn.SINGLE(SepSun1)+5,\"\"),IF(AND(YEAR(_xlfn.SINGLE(SepSun1)+12)=_xlfn.SINGLE(行事曆年份),MONTH(_xlfn.SINGLE(SepSun1)+12)=9),_xlfn.SINGLE(SepSun1)+12,\"\"))","v":"2022-09-08"},{"$f":"IF(DAY(_xlfn.SINGLE(SepSun1))=1,IF(AND(YEAR(_xlfn.SINGLE(SepSun1)+6)=_xlfn.SINGLE(行事曆年份),MONTH(_xlfn.SINGLE(SepSun1)+6)=9),_xlfn.SINGLE(SepSun1)+6,\"\"),IF(AND(YEAR(_xlfn.SINGLE(SepSun1)+13)=_xlfn.SINGLE(行事曆年份),MONTH(_xlfn.SINGLE(SepSun1)+13)=9),_xlfn.SINGLE(SepSun1)+13,\"\"))","v":"2022-09-09"},{"$f":"IF(DAY(_xlfn.SINGLE(SepSun1))=1,IF(AND(YEAR(_xlfn.SINGLE(SepSun1)+7)=_xlfn.SINGLE(行事曆年份),MONTH(_xlfn.SINGLE(SepSun1)+7)=9),_xlfn.SINGLE(SepSun1)+7,\"\"),IF(AND(YEAR(_xlfn.SINGLE(SepSun1)+14)=_xlfn.SINGLE(行事曆年份),MONTH(_xlfn.SINGLE(SepSun1)+14)=9),_xlfn.SINGLE(SepSun1)+14,\"\"))","v":"2022-09-10"},null,{"$f":"IF(DAY(_xlfn.SINGLE(OctSun1))=1,IF(AND(YEAR(_xlfn.SINGLE(OctSun1)+1)=_xlfn.SINGLE(行事曆年份),MONTH(_xlfn.SINGLE(OctSun1)+1)=10),_xlfn.SINGLE(OctSun1)+1,\"\"),IF(AND(YEAR(_xlfn.SINGLE(OctSun1)+8)=_xlfn.SINGLE(行事曆年份),MONTH(_xlfn.SINGLE(OctSun1)+8)=10),_xlfn.SINGLE(OctSun1)+8,\"\"))","v":"2022-10-02"},{"$f":"IF(DAY(_xlfn.SINGLE(OctSun1))=1,IF(AND(YEAR(_xlfn.SINGLE(OctSun1)+2)=_xlfn.SINGLE(行事曆年份),MONTH(_xlfn.SINGLE(OctSun1)+2)=10),_xlfn.SINGLE(OctSun1)+2,\"\"),IF(AND(YEAR(_xlfn.SINGLE(OctSun1)+9)=_xlfn.SINGLE(行事曆年份),MONTH(_xlfn.SINGLE(OctSun1)+9)=10),_xlfn.SINGLE(OctSun1)+9,\"\"))","v":"2022-10-03"},{"$f":"IF(DAY(_xlfn.SINGLE(OctSun1))=1,IF(AND(YEAR(_xlfn.SINGLE(OctSun1)+3)=_xlfn.SINGLE(行事曆年份),MONTH(_xlfn.SINGLE(OctSun1)+3)=10),_xlfn.SINGLE(OctSun1)+3,\"\"),IF(AND(YEAR(_xlfn.SINGLE(OctSun1)+10)=_xlfn.SINGLE(行事曆年份),MONTH(_xlfn.SINGLE(OctSun1)+10)=10),_xlfn.SINGLE(OctSun1)+10,\"\"))","v":"2022-10-04"},{"$f":"IF(DAY(_xlfn.SINGLE(OctSun1))=1,IF(AND(YEAR(_xlfn.SINGLE(OctSun1)+4)=_xlfn.SINGLE(行事曆年份),MONTH(_xlfn.SINGLE(OctSun1)+4)=10),_xlfn.SINGLE(OctSun1)+4,\"\"),IF(AND(YEAR(_xlfn.SINGLE(OctSun1)+11)=_xlfn.SINGLE(行事曆年份),MONTH(_xlfn.SINGLE(OctSun1)+11)=10),_xlfn.SINGLE(OctSun1)+11,\"\"))","v":"2022-10-05"},{"$f":"IF(DAY(_xlfn.SINGLE(OctSun1))=1,IF(AND(YEAR(_xlfn.SINGLE(OctSun1)+5)=_xlfn.SINGLE(行事曆年份),MONTH(_xlfn.SINGLE(OctSun1)+5)=10),_xlfn.SINGLE(OctSun1)+5,\"\"),IF(AND(YEAR(_xlfn.SINGLE(OctSun1)+12)=_xlfn.SINGLE(行事曆年份),MONTH(_xlfn.SINGLE(OctSun1)+12)=10),_xlfn.SINGLE(OctSun1)+12,\"\"))","v":"2022-10-06"},{"$f":"IF(DAY(_xlfn.SINGLE(OctSun1))=1,IF(AND(YEAR(_xlfn.SINGLE(OctSun1)+6)=_xlfn.SINGLE(行事曆年份),MONTH(_xlfn.SINGLE(OctSun1)+6)=10),_xlfn.SINGLE(OctSun1)+6,\"\"),IF(AND(YEAR(_xlfn.SINGLE(OctSun1)+13)=_xlfn.SINGLE(行事曆年份),MONTH(_xlfn.SINGLE(OctSun1)+13)=10),_xlfn.SINGLE(OctSun1)+13,\"\"))","v":"2022-10-07"},{"$f":"IF(DAY(_xlfn.SINGLE(OctSun1))=1,IF(AND(YEAR(_xlfn.SINGLE(OctSun1)+7)=_xlfn.SINGLE(行事曆年份),MONTH(_xlfn.SINGLE(OctSun1)+7)=10),_xlfn.SINGLE(OctSun1)+7,\"\"),IF(AND(YEAR(_xlfn.SINGLE(OctSun1)+14)=_xlfn.SINGLE(行事曆年份),MONTH(_xlfn.SINGLE(OctSun1)+14)=10),_xlfn.SINGLE(OctSun1)+14,\"\"))","v":"2022-10-08"}]
[null,null,{"$f":"IF(DAY(_xlfn.SINGLE(SepSun1))=1,IF(AND(YEAR(_xlfn.SINGLE(SepSun1)+8)=_xlfn.SINGLE(行事曆年份),MONTH(_xlfn.SINGLE(SepSun1)+8)=9),_xlfn.SINGLE(SepSun1)+8,\"\"),IF(AND(YEAR(_xlfn.SINGLE(SepSun1)+15)=_xlfn.SINGLE(行事曆年份),MONTH(_xlfn.SINGLE(SepSun1)+15)=9),_xlfn.SINGLE(SepSun1)+15,\"\"))","v":"2022-09-11"},{"$f":"IF(DAY(_xlfn.SINGLE(SepSun1))=1,IF(AND(YEAR(_xlfn.SINGLE(SepSun1)+9)=_xlfn.SINGLE(行事曆年份),MONTH(_xlfn.SINGLE(SepSun1)+9)=9),_xlfn.SINGLE(SepSun1)+9,\"\"),IF(AND(YEAR(_xlfn.SINGLE(SepSun1)+16)=_xlfn.SINGLE(行事曆年份),MONTH(_xlfn.SINGLE(SepSun1)+16)=9),_xlfn.SINGLE(SepSun1)+16,\"\"))","v":"2022-09-12"},{"$f":"IF(DAY(_xlfn.SINGLE(SepSun1))=1,IF(AND(YEAR(_xlfn.SINGLE(SepSun1)+10)=_xlfn.SINGLE(行事曆年份),MONTH(_xlfn.SINGLE(SepSun1)+10)=9),_xlfn.SINGLE(SepSun1)+10,\"\"),IF(AND(YEAR(_xlfn.SINGLE(SepSun1)+17)=_xlfn.SINGLE(行事曆年份),MONTH(_xlfn.SINGLE(SepSun1)+17)=9),_xlfn.SINGLE(SepSun1)+17,\"\"))","v":"2022-09-13"},{"$f":"IF(DAY(_xlfn.SINGLE(SepSun1))=1,IF(AND(YEAR(_xlfn.SINGLE(SepSun1)+11)=_xlfn.SINGLE(行事曆年份),MONTH(_xlfn.SINGLE(SepSun1)+11)=9),_xlfn.SINGLE(SepSun1)+11,\"\"),IF(AND(YEAR(_xlfn.SINGLE(SepSun1)+18)=_xlfn.SINGLE(行事曆年份),MONTH(_xlfn.SINGLE(SepSun1)+18)=9),_xlfn.SINGLE(SepSun1)+18,\"\"))","v":"2022-09-14"},{"$f":"IF(DAY(_xlfn.SINGLE(SepSun1))=1,IF(AND(YEAR(_xlfn.SINGLE(SepSun1)+12)=_xlfn.SINGLE(行事曆年份),MONTH(_xlfn.SINGLE(SepSun1)+12)=9),_xlfn.SINGLE(SepSun1)+12,\"\"),IF(AND(YEAR(_xlfn.SINGLE(SepSun1)+19)=_xlfn.SINGLE(行事曆年份),MONTH(_xlfn.SINGLE(SepSun1)+19)=9),_xlfn.SINGLE(SepSun1)+19,\"\"))","v":"2022-09-15"},{"$f":"IF(DAY(_xlfn.SINGLE(SepSun1))=1,IF(AND(YEAR(_xlfn.SINGLE(SepSun1)+13)=_xlfn.SINGLE(行事曆年份),MONTH(_xlfn.SINGLE(SepSun1)+13)=9),_xlfn.SINGLE(SepSun1)+13,\"\"),IF(AND(YEAR(_xlfn.SINGLE(SepSun1)+20)=_xlfn.SINGLE(行事曆年份),MONTH(_xlfn.SINGLE(SepSun1)+20)=9),_xlfn.SINGLE(SepSun1)+20,\"\"))","v":"2022-09-16"},{"$f":"IF(DAY(_xlfn.SINGLE(SepSun1))=1,IF(AND(YEAR(_xlfn.SINGLE(SepSun1)+14)=_xlfn.SINGLE(行事曆年份),MONTH(_xlfn.SINGLE(SepSun1)+14)=9),_xlfn.SINGLE(SepSun1)+14,\"\"),IF(AND(YEAR(_xlfn.SINGLE(SepSun1)+21)=_xlfn.SINGLE(行事曆年份),MONTH(_xlfn.SINGLE(SepSun1)+21)=9),_xlfn.SINGLE(SepSun1)+21,\"\"))","v":"2022-09-17"},null,{"$f":"IF(DAY(_xlfn.SINGLE(OctSun1))=1,IF(AND(YEAR(_xlfn.SINGLE(OctSun1)+8)=_xlfn.SINGLE(行事曆年份),MONTH(_xlfn.SINGLE(OctSun1)+8)=10),_xlfn.SINGLE(OctSun1)+8,\"\"),IF(AND(YEAR(_xlfn.SINGLE(OctSun1)+15)=_xlfn.SINGLE(行事曆年份),MONTH(_xlfn.SINGLE(OctSun1)+15)=10),_xlfn.SINGLE(OctSun1)+15,\"\"))","v":"2022-10-09"},{"$f":"IF(DAY(_xlfn.SINGLE(OctSun1))=1,IF(AND(YEAR(_xlfn.SINGLE(OctSun1)+9)=_xlfn.SINGLE(行事曆年份),MONTH(_xlfn.SINGLE(OctSun1)+9)=10),_xlfn.SINGLE(OctSun1)+9,\"\"),IF(AND(YEAR(_xlfn.SINGLE(OctSun1)+16)=_xlfn.SINGLE(行事曆年份),MONTH(_xlfn.SINGLE(OctSun1)+16)=10),_xlfn.SINGLE(OctSun1)+16,\"\"))","v":"2022-10-10"},{"$f":"IF(DAY(_xlfn.SINGLE(OctSun1))=1,IF(AND(YEAR(_xlfn.SINGLE(OctSun1)+10)=_xlfn.SINGLE(行事曆年份),MONTH(_xlfn.SINGLE(OctSun1)+10)=10),_xlfn.SINGLE(OctSun1)+10,\"\"),IF(AND(YEAR(_xlfn.SINGLE(OctSun1)+17)=_xlfn.SINGLE(行事曆年份),MONTH(_xlfn.SINGLE(OctSun1)+17)=10),_xlfn.SINGLE(OctSun1)+17,\"\"))","v":"2022-10-11"},{"$f":"IF(DAY(_xlfn.SINGLE(OctSun1))=1,IF(AND(YEAR(_xlfn.SINGLE(OctSun1)+11)=_xlfn.SINGLE(行事曆年份),MONTH(_xlfn.SINGLE(OctSun1)+11)=10),_xlfn.SINGLE(OctSun1)+11,\"\"),IF(AND(YEAR(_xlfn.SINGLE(OctSun1)+18)=_xlfn.SINGLE(行事曆年份),MONTH(_xlfn.SINGLE(OctSun1)+18)=10),_xlfn.SINGLE(OctSun1)+18,\"\"))","v":"2022-10-12"},{"$f":"IF(DAY(_xlfn.SINGLE(OctSun1))=1,IF(AND(YEAR(_xlfn.SINGLE(OctSun1)+12)=_xlfn.SINGLE(行事曆年份),MONTH(_xlfn.SINGLE(OctSun1)+12)=10),_xlfn.SINGLE(OctSun1)+12,\"\"),IF(AND(YEAR(_xlfn.SINGLE(OctSun1)+19)=_xlfn.SINGLE(行事曆年份),MONTH(_xlfn.SINGLE(OctSun1)+19)=10),_xlfn.SINGLE(OctSun1)+19,\"\"))","v":"2022-10-13"},{"$f":"IF(DAY(_xlfn.SINGLE(OctSun1))=1,IF(AND(YEAR(_xlfn.SINGLE(OctSun1)+13)=_xlfn.SINGLE(行事曆年份),MONTH(_xlfn.SINGLE(OctSun1)+13)=10),_xlfn.SINGLE(OctSun1)+13,\"\"),IF(AND(YEAR(_xlfn.SINGLE(OctSun1)+20)=_xlfn.SINGLE(行事曆年份),MONTH(_xlfn.SINGLE(OctSun1)+20)=10),_xlfn.SINGLE(OctSun1)+20,\"\"))","v":"2022-10-14"},{"$f":"IF(DAY(_xlfn.SINGLE(OctSun1))=1,IF(AND(YEAR(_xlfn.SINGLE(OctSun1)+14)=_xlfn.SINGLE(行事曆年份),MONTH(_xlfn.SINGLE(OctSun1)+14)=10),_xlfn.SINGLE(OctSun1)+14,\"\"),IF(AND(YEAR(_xlfn.SINGLE(OctSun1)+21)=_xlfn.SINGLE(行事曆年份),MONTH(_xlfn.SINGLE(OctSun1)+21)=10),_xlfn.SINGLE(OctSun1)+21,\"\"))","v":"2022-10-15"}]
["在儲存格 U44 中輸入街道地址",null,{"$f":"IF(DAY(_xlfn.SINGLE(SepSun1))=1,IF(AND(YEAR(_xlfn.SINGLE(SepSun1)+15)=_xlfn.SINGLE(行事曆年份),MONTH(_xlfn.SINGLE(SepSun1)+15)=9),_xlfn.SINGLE(SepSun1)+15,\"\"),IF(AND(YEAR(_xlfn.SINGLE(SepSun1)+22)=_xlfn.SINGLE(行事曆年份),MONTH(_xlfn.SINGLE(SepSun1)+22)=9),_xlfn.SINGLE(SepSun1)+22,\"\"))","v":"2022-09-18"},{"$f":"IF(DAY(_xlfn.SINGLE(SepSun1))=1,IF(AND(YEAR(_xlfn.SINGLE(SepSun1)+16)=_xlfn.SINGLE(行事曆年份),MONTH(_xlfn.SINGLE(SepSun1)+16)=9),_xlfn.SINGLE(SepSun1)+16,\"\"),IF(AND(YEAR(_xlfn.SINGLE(SepSun1)+23)=_xlfn.SINGLE(行事曆年份),MONTH(_xlfn.SINGLE(SepSun1)+23)=9),_xlfn.SINGLE(SepSun1)+23,\"\"))","v":"2022-09-19"},{"$f":"IF(DAY(_xlfn.SINGLE(SepSun1))=1,IF(AND(YEAR(_xlfn.SINGLE(SepSun1)+17)=_xlfn.SINGLE(行事曆年份),MONTH(_xlfn.SINGLE(SepSun1)+17)=9),_xlfn.SINGLE(SepSun1)+17,\"\"),IF(AND(YEAR(_xlfn.SINGLE(SepSun1)+24)=_xlfn.SINGLE(行事曆年份),MONTH(_xlfn.SINGLE(SepSun1)+24)=9),_xlfn.SINGLE(SepSun1)+24,\"\"))","v":"2022-09-20"},{"$f":"IF(DAY(_xlfn.SINGLE(SepSun1))=1,IF(AND(YEAR(_xlfn.SINGLE(SepSun1)+18)=_xlfn.SINGLE(行事曆年份),MONTH(_xlfn.SINGLE(SepSun1)+18)=9),_xlfn.SINGLE(SepSun1)+18,\"\"),IF(AND(YEAR(_xlfn.SINGLE(SepSun1)+25)=_xlfn.SINGLE(行事曆年份),MONTH(_xlfn.SINGLE(SepSun1)+25)=9),_xlfn.SINGLE(SepSun1)+25,\"\"))","v":"2022-09-21"},{"$f":"IF(DAY(_xlfn.SINGLE(SepSun1))=1,IF(AND(YEAR(_xlfn.SINGLE(SepSun1)+19)=_xlfn.SINGLE(行事曆年份),MONTH(_xlfn.SINGLE(SepSun1)+19)=9),_xlfn.SINGLE(SepSun1)+19,\"\"),IF(AND(YEAR(_xlfn.SINGLE(SepSun1)+26)=_xlfn.SINGLE(行事曆年份),MONTH(_xlfn.SINGLE(SepSun1)+26)=9),_xlfn.SINGLE(SepSun1)+26,\"\"))","v":"2022-09-22"},{"$f":"IF(DAY(_xlfn.SINGLE(SepSun1))=1,IF(AND(YEAR(_xlfn.SINGLE(SepSun1)+20)=_xlfn.SINGLE(行事曆年份),MONTH(_xlfn.SINGLE(SepSun1)+20)=9),_xlfn.SINGLE(SepSun1)+20,\"\"),IF(AND(YEAR(_xlfn.SINGLE(SepSun1)+27)=_xlfn.SINGLE(行事曆年份),MONTH(_xlfn.SINGLE(SepSun1)+27)=9),_xlfn.SINGLE(SepSun1)+27,\"\"))","v":"2022-09-23"},{"$f":"IF(DAY(_xlfn.SINGLE(SepSun1))=1,IF(AND(YEAR(_xlfn.SINGLE(SepSun1)+21)=_xlfn.SINGLE(行事曆年份),MONTH(_xlfn.SINGLE(SepSun1)+21)=9),_xlfn.SINGLE(SepSun1)+21,\"\"),IF(AND(YEAR(_xlfn.SINGLE(SepSun1)+28)=_xlfn.SINGLE(行事曆年份),MONTH(_xlfn.SINGLE(SepSun1)+28)=9),_xlfn.SINGLE(SepSun1)+28,\"\"))","v":"2022-09-24"},null,{"$f":"IF(DAY(_xlfn.SINGLE(OctSun1))=1,IF(AND(YEAR(_xlfn.SINGLE(OctSun1)+15)=_xlfn.SINGLE(行事曆年份),MONTH(_xlfn.SINGLE(OctSun1)+15)=10),_xlfn.SINGLE(OctSun1)+15,\"\"),IF(AND(YEAR(_xlfn.SINGLE(OctSun1)+22)=_xlfn.SINGLE(行事曆年份),MONTH(_xlfn.SINGLE(OctSun1)+22)=10),_xlfn.SINGLE(OctSun1)+22,\"\"))","v":"2022-10-16"},{"$f":"IF(DAY(_xlfn.SINGLE(OctSun1))=1,IF(AND(YEAR(_xlfn.SINGLE(OctSun1)+16)=_xlfn.SINGLE(行事曆年份),MONTH(_xlfn.SINGLE(OctSun1)+16)=10),_xlfn.SINGLE(OctSun1)+16,\"\"),IF(AND(YEAR(_xlfn.SINGLE(OctSun1)+23)=_xlfn.SINGLE(行事曆年份),MONTH(_xlfn.SINGLE(OctSun1)+23)=10),_xlfn.SINGLE(OctSun1)+23,\"\"))","v":"2022-10-17"},{"$f":"IF(DAY(_xlfn.SINGLE(OctSun1))=1,IF(AND(YEAR(_xlfn.SINGLE(OctSun1)+17)=_xlfn.SINGLE(行事曆年份),MONTH(_xlfn.SINGLE(OctSun1)+17)=10),_xlfn.SINGLE(OctSun1)+17,\"\"),IF(AND(YEAR(_xlfn.SINGLE(OctSun1)+24)=_xlfn.SINGLE(行事曆年份),MONTH(_xlfn.SINGLE(OctSun1)+24)=10),_xlfn.SINGLE(OctSun1)+24,\"\"))","v":"2022-10-18"},{"$f":"IF(DAY(_xlfn.SINGLE(OctSun1))=1,IF(AND(YEAR(_xlfn.SINGLE(OctSun1)+18)=_xlfn.SINGLE(行事曆年份),MONTH(_xlfn.SINGLE(OctSun1)+18)=10),_xlfn.SINGLE(OctSun1)+18,\"\"),IF(AND(YEAR(_xlfn.SINGLE(OctSun1)+25)=_xlfn.SINGLE(行事曆年份),MONTH(_xlfn.SINGLE(OctSun1)+25)=10),_xlfn.SINGLE(OctSun1)+25,\"\"))","v":"2022-10-19"},{"$f":"IF(DAY(_xlfn.SINGLE(OctSun1))=1,IF(AND(YEAR(_xlfn.SINGLE(OctSun1)+19)=_xlfn.SINGLE(行事曆年份),MONTH(_xlfn.SINGLE(OctSun1)+19)=10),_xlfn.SINGLE(OctSun1)+19,\"\"),IF(AND(YEAR(_xlfn.SINGLE(OctSun1)+26)=_xlfn.SINGLE(行事曆年份),MONTH(_xlfn.SINGLE(OctSun1)+26)=10),_xlfn.SINGLE(OctSun1)+26,\"\"))","v":"2022-10-20"},{"$f":"IF(DAY(_xlfn.SINGLE(OctSun1))=1,IF(AND(YEAR(_xlfn.SINGLE(OctSun1)+20)=_xlfn.SINGLE(行事曆年份),MONTH(_xlfn.SINGLE(OctSun1)+20)=10),_xlfn.SINGLE(OctSun1)+20,\"\"),IF(AND(YEAR(_xlfn.SINGLE(OctSun1)+27)=_xlfn.SINGLE(行事曆年份),MONTH(_xlfn.SINGLE(OctSun1)+27)=10),_xlfn.SINGLE(OctSun1)+27,\"\"))","v":"2022-10-21"},{"$f":"IF(DAY(_xlfn.SINGLE(OctSun1))=1,IF(AND(YEAR(_xlfn.SINGLE(OctSun1)+21)=_xlfn.SINGLE(行事曆年份),MONTH(_xlfn.SINGLE(OctSun1)+21)=10),_xlfn.SINGLE(OctSun1)+21,\"\"),IF(AND(YEAR(_xlfn.SINGLE(OctSun1)+28)=_xlfn.SINGLE(行事曆年份),MONTH(_xlfn.SINGLE(OctSun1)+28)=10),_xlfn.SINGLE(OctSun1)+28,\"\"))","v":"2022-10-22"},{"$nulls":3},"街道地址"]
["在儲存格 U45 中，輸入縣/市和郵遞區號。儲存格 A47 是下一個說明",null,{"$f":"IF(DAY(_xlfn.SINGLE(SepSun1))=1,IF(AND(YEAR(_xlfn.SINGLE(SepSun1)+22)=_xlfn.SINGLE(行事曆年份),MONTH(_xlfn.SINGLE(SepSun1)+22)=9),_xlfn.SINGLE(SepSun1)+22,\"\"),IF(AND(YEAR(_xlfn.SINGLE(SepSun1)+29)=_xlfn.SINGLE(行事曆年份),MONTH(_xlfn.SINGLE(SepSun1)+29)=9),_xlfn.SINGLE(SepSun1)+29,\"\"))","v":"2022-09-25"},{"$f":"IF(DAY(_xlfn.SINGLE(SepSun1))=1,IF(AND(YEAR(_xlfn.SINGLE(SepSun1)+23)=_xlfn.SINGLE(行事曆年份),MONTH(_xlfn.SINGLE(SepSun1)+23)=9),_xlfn.SINGLE(SepSun1)+23,\"\"),IF(AND(YEAR(_xlfn.SINGLE(SepSun1)+30)=_xlfn.SINGLE(行事曆年份),MONTH(_xlfn.SINGLE(SepSun1)+30)=9),_xlfn.SINGLE(SepSun1)+30,\"\"))","v":"2022-09-26"},{"$f":"IF(DAY(_xlfn.SINGLE(SepSun1))=1,IF(AND(YEAR(_xlfn.SINGLE(SepSun1)+24)=_xlfn.SINGLE(行事曆年份),MONTH(_xlfn.SINGLE(SepSun1)+24)=9),_xlfn.SINGLE(SepSun1)+24,\"\"),IF(AND(YEAR(_xlfn.SINGLE(SepSun1)+31)=_xlfn.SINGLE(行事曆年份),MONTH(_xlfn.SINGLE(SepSun1)+31)=9),_xlfn.SINGLE(SepSun1)+31,\"\"))","v":"2022-09-27"},{"$f":"IF(DAY(_xlfn.SINGLE(SepSun1))=1,IF(AND(YEAR(_xlfn.SINGLE(SepSun1)+25)=_xlfn.SINGLE(行事曆年份),MONTH(_xlfn.SINGLE(SepSun1)+25)=9),_xlfn.SINGLE(SepSun1)+25,\"\"),IF(AND(YEAR(_xlfn.SINGLE(SepSun1)+32)=_xlfn.SINGLE(行事曆年份),MONTH(_xlfn.SINGLE(SepSun1)+32)=9),_xlfn.SINGLE(SepSun1)+32,\"\"))","v":"2022-09-28"},{"$f":"IF(DAY(_xlfn.SINGLE(SepSun1))=1,IF(AND(YEAR(_xlfn.SINGLE(SepSun1)+26)=_xlfn.SINGLE(行事曆年份),MONTH(_xlfn.SINGLE(SepSun1)+26)=9),_xlfn.SINGLE(SepSun1)+26,\"\"),IF(AND(YEAR(_xlfn.SINGLE(SepSun1)+33)=_xlfn.SINGLE(行事曆年份),MONTH(_xlfn.SINGLE(SepSun1)+33)=9),_xlfn.SINGLE(SepSun1)+33,\"\"))","v":"2022-09-29"},{"$f":"IF(DAY(_xlfn.SINGLE(SepSun1))=1,IF(AND(YEAR(_xlfn.SINGLE(SepSun1)+27)=_xlfn.SINGLE(行事曆年份),MONTH(_xlfn.SINGLE(SepSun1)+27)=9),_xlfn.SINGLE(SepSun1)+27,\"\"),IF(AND(YEAR(_xlfn.SINGLE(SepSun1)+34)=_xlfn.SINGLE(行事曆年份),MONTH(_xlfn.SINGLE(SepSun1)+34)=9),_xlfn.SINGLE(SepSun1)+34,\"\"))","v":"2022-09-30"},{"$f":"IF(DAY(_xlfn.SINGLE(SepSun1))=1,IF(AND(YEAR(_xlfn.SINGLE(SepSun1)+28)=_xlfn.SINGLE(行事曆年份),MONTH(_xlfn.SINGLE(SepSun1)+28)=9),_xlfn.SINGLE(SepSun1)+28,\"\"),IF(AND(YEAR(_xlfn.SINGLE(SepSun1)+35)=_xlfn.SINGLE(行事曆年份),MONTH(_xlfn.SINGLE(SepSun1)+35)=9),_xlfn.SINGLE(SepSun1)+35,\"\"))","v":""},null,{"$f":"IF(DAY(_xlfn.SINGLE(OctSun1))=1,IF(AND(YEAR(_xlfn.SINGLE(OctSun1)+22)=_xlfn.SINGLE(行事曆年份),MONTH(_xlfn.SINGLE(OctSun1)+22)=10),_xlfn.SINGLE(OctSun1)+22,\"\"),IF(AND(YEAR(_xlfn.SINGLE(OctSun1)+29)=_xlfn.SINGLE(行事曆年份),MONTH(_xlfn.SINGLE(OctSun1)+29)=10),_xlfn.SINGLE(OctSun1)+29,\"\"))","v":"2022-10-23"},{"$f":"IF(DAY(_xlfn.SINGLE(OctSun1))=1,IF(AND(YEAR(_xlfn.SINGLE(OctSun1)+23)=_xlfn.SINGLE(行事曆年份),MONTH(_xlfn.SINGLE(OctSun1)+23)=10),_xlfn.SINGLE(OctSun1)+23,\"\"),IF(AND(YEAR(_xlfn.SINGLE(OctSun1)+30)=_xlfn.SINGLE(行事曆年份),MONTH(_xlfn.SINGLE(OctSun1)+30)=10),_xlfn.SINGLE(OctSun1)+30,\"\"))","v":"2022-10-24"},{"$f":"IF(DAY(_xlfn.SINGLE(OctSun1))=1,IF(AND(YEAR(_xlfn.SINGLE(OctSun1)+24)=_xlfn.SINGLE(行事曆年份),MONTH(_xlfn.SINGLE(OctSun1)+24)=10),_xlfn.SINGLE(OctSun1)+24,\"\"),IF(AND(YEAR(_xlfn.SINGLE(OctSun1)+31)=_xlfn.SINGLE(行事曆年份),MONTH(_xlfn.SINGLE(OctSun1)+31)=10),_xlfn.SINGLE(OctSun1)+31,\"\"))","v":"2022-10-25"},{"$f":"IF(DAY(_xlfn.SINGLE(OctSun1))=1,IF(AND(YEAR(_xlfn.SINGLE(OctSun1)+25)=_xlfn.SINGLE(行事曆年份),MONTH(_xlfn.SINGLE(OctSun1)+25)=10),_xlfn.SINGLE(OctSun1)+25,\"\"),IF(AND(YEAR(_xlfn.SINGLE(OctSun1)+32)=_xlfn.SINGLE(行事曆年份),MONTH(_xlfn.SINGLE(OctSun1)+32)=10),_xlfn.SINGLE(OctSun1)+32,\"\"))","v":"2022-10-26"},{"$f":"IF(DAY(_xlfn.SINGLE(OctSun1))=1,IF(AND(YEAR(_xlfn.SINGLE(OctSun1)+26)=_xlfn.SINGLE(行事曆年份),MONTH(_xlfn.SINGLE(OctSun1)+26)=10),_xlfn.SINGLE(OctSun1)+26,\"\"),IF(AND(YEAR(_xlfn.SINGLE(OctSun1)+33)=_xlfn.SINGLE(行事曆年份),MONTH(_xlfn.SINGLE(OctSun1)+33)=10),_xlfn.SINGLE(OctSun1)+33,\"\"))","v":"2022-10-27"},{"$f":"IF(DAY(_xlfn.SINGLE(OctSun1))=1,IF(AND(YEAR(_xlfn.SINGLE(OctSun1)+27)=_xlfn.SINGLE(行事曆年份),MONTH(_xlfn.SINGLE(OctSun1)+27)=10),_xlfn.SINGLE(OctSun1)+27,\"\"),IF(AND(YEAR(_xlfn.SINGLE(OctSun1)+34)=_xlfn.SINGLE(行事曆年份),MONTH(_xlfn.SINGLE(OctSun1)+34)=10),_xlfn.SINGLE(OctSun1)+34,\"\"))","v":"2022-10-28"},{"$f":"IF(DAY(_xlfn.SINGLE(OctSun1))=1,IF(AND(YEAR(_xlfn.SINGLE(OctSun1)+28)=_xlfn.SINGLE(行事曆年份),MONTH(_xlfn.SINGLE(OctSun1)+28)=10),_xlfn.SINGLE(OctSun1)+28,\"\"),IF(AND(YEAR(_xlfn.SINGLE(OctSun1)+35)=_xlfn.SINGLE(行事曆年份),MONTH(_xlfn.SINGLE(OctSun1)+35)=10),_xlfn.SINGLE(OctSun1)+35,\"\"))","v":"2022-10-29"},{"$nulls":3},"郵遞區號，縣/市"]
[null,null,{"$f":"IF(DAY(_xlfn.SINGLE(SepSun1))=1,IF(AND(YEAR(_xlfn.SINGLE(SepSun1)+29)=_xlfn.SINGLE(行事曆年份),MONTH(_xlfn.SINGLE(SepSun1)+29)=9),_xlfn.SINGLE(SepSun1)+29,\"\"),IF(AND(YEAR(_xlfn.SINGLE(SepSun1)+36)=_xlfn.SINGLE(行事曆年份),MONTH(_xlfn.SINGLE(SepSun1)+36)=9),_xlfn.SINGLE(SepSun1)+36,\"\"))","v":""},{"$f":"IF(DAY(_xlfn.SINGLE(SepSun1))=1,IF(AND(YEAR(_xlfn.SINGLE(SepSun1)+30)=_xlfn.SINGLE(行事曆年份),MONTH(_xlfn.SINGLE(SepSun1)+30)=9),_xlfn.SINGLE(SepSun1)+30,\"\"),IF(AND(YEAR(_xlfn.SINGLE(SepSun1)+37)=_xlfn.SINGLE(行事曆年份),MONTH(_xlfn.SINGLE(SepSun1)+37)=9),_xlfn.SINGLE(SepSun1)+37,\"\"))","v":""},{"$f":"IF(DAY(_xlfn.SINGLE(SepSun1))=1,IF(AND(YEAR(_xlfn.SINGLE(SepSun1)+31)=_xlfn.SINGLE(行事曆年份),MONTH(_xlfn.SINGLE(SepSun1)+31)=9),_xlfn.SINGLE(SepSun1)+31,\"\"),IF(AND(YEAR(_xlfn.SINGLE(SepSun1)+38)=_xlfn.SINGLE(行事曆年份),MONTH(_xlfn.SINGLE(SepSun1)+38)=9),_xlfn.SINGLE(SepSun1)+38,\"\"))","v":""},{"$f":"IF(DAY(_xlfn.SINGLE(SepSun1))=1,IF(AND(YEAR(_xlfn.SINGLE(SepSun1)+32)=_xlfn.SINGLE(行事曆年份),MONTH(_xlfn.SINGLE(SepSun1)+32)=9),_xlfn.SINGLE(SepSun1)+32,\"\"),IF(AND(YEAR(_xlfn.SINGLE(SepSun1)+39)=_xlfn.SINGLE(行事曆年份),MONTH(_xlfn.SINGLE(SepSun1)+39)=9),_xlfn.SINGLE(SepSun1)+39,\"\"))","v":""},{"$f":"IF(DAY(_xlfn.SINGLE(SepSun1))=1,IF(AND(YEAR(_xlfn.SINGLE(SepSun1)+33)=_xlfn.SINGLE(行事曆年份),MONTH(_xlfn.SINGLE(SepSun1)+33)=9),_xlfn.SINGLE(SepSun1)+33,\"\"),IF(AND(YEAR(_xlfn.SINGLE(SepSun1)+40)=_xlfn.SINGLE(行事曆年份),MONTH(_xlfn.SINGLE(SepSun1)+40)=9),_xlfn.SINGLE(SepSun1)+40,\"\"))","v":""},{"$f":"IF(DAY(_xlfn.SINGLE(SepSun1))=1,IF(AND(YEAR(_xlfn.SINGLE(SepSun1)+34)=_xlfn.SINGLE(行事曆年份),MONTH(_xlfn.SINGLE(SepSun1)+34)=9),_xlfn.SINGLE(SepSun1)+34,\"\"),IF(AND(YEAR(_xlfn.SINGLE(SepSun1)+41)=_xlfn.SINGLE(行事曆年份),MONTH(_xlfn.SINGLE(SepSun1)+41)=9),_xlfn.SINGLE(SepSun1)+41,\"\"))","v":""},{"$f":"IF(DAY(_xlfn.SINGLE(SepSun1))=1,IF(AND(YEAR(_xlfn.SINGLE(SepSun1)+35)=_xlfn.SINGLE(行事曆年份),MONTH(_xlfn.SINGLE(SepSun1)+35)=9),_xlfn.SINGLE(SepSun1)+35,\"\"),IF(AND(YEAR(_xlfn.SINGLE(SepSun1)+42)=_xlfn.SINGLE(行事曆年份),MONTH(_xlfn.SINGLE(SepSun1)+42)=9),_xlfn.SINGLE(SepSun1)+42,\"\"))","v":""},null,{"$f":"IF(DAY(_xlfn.SINGLE(OctSun1))=1,IF(AND(YEAR(_xlfn.SINGLE(OctSun1)+29)=_xlfn.SINGLE(行事曆年份),MONTH(_xlfn.SINGLE(OctSun1)+29)=10),_xlfn.SINGLE(OctSun1)+29,\"\"),IF(AND(YEAR(_xlfn.SINGLE(OctSun1)+36)=_xlfn.SINGLE(行事曆年份),MONTH(_xlfn.SINGLE(OctSun1)+36)=10),_xlfn.SINGLE(OctSun1)+36,\"\"))","v":"2022-10-30"},{"$f":"IF(DAY(_xlfn.SINGLE(OctSun1))=1,IF(AND(YEAR(_xlfn.SINGLE(OctSun1)+30)=_xlfn.SINGLE(行事曆年份),MONTH(_xlfn.SINGLE(OctSun1)+30)=10),_xlfn.SINGLE(OctSun1)+30,\"\"),IF(AND(YEAR(_xlfn.SINGLE(OctSun1)+37)=_xlfn.SINGLE(行事曆年份),MONTH(_xlfn.SINGLE(OctSun1)+37)=10),_xlfn.SINGLE(OctSun1)+37,\"\"))","v":"2022-10-31"},{"$f":"IF(DAY(_xlfn.SINGLE(OctSun1))=1,IF(AND(YEAR(_xlfn.SINGLE(OctSun1)+31)=_xlfn.SINGLE(行事曆年份),MONTH(_xlfn.SINGLE(OctSun1)+31)=10),_xlfn.SINGLE(OctSun1)+31,\"\"),IF(AND(YEAR(_xlfn.SINGLE(OctSun1)+38)=_xlfn.SINGLE(行事曆年份),MONTH(_xlfn.SINGLE(OctSun1)+38)=10),_xlfn.SINGLE(OctSun1)+38,\"\"))","v":""},{"$f":"IF(DAY(_xlfn.SINGLE(OctSun1))=1,IF(AND(YEAR(_xlfn.SINGLE(OctSun1)+32)=_xlfn.SINGLE(行事曆年份),MONTH(_xlfn.SINGLE(OctSun1)+32)=10),_xlfn.SINGLE(OctSun1)+32,\"\"),IF(AND(YEAR(_xlfn.SINGLE(OctSun1)+39)=_xlfn.SINGLE(行事曆年份),MONTH(_xlfn.SINGLE(OctSun1)+39)=10),_xlfn.SINGLE(OctSun1)+39,\"\"))","v":""},{"$f":"IF(DAY(_xlfn.SINGLE(OctSun1))=1,IF(AND(YEAR(_xlfn.SINGLE(OctSun1)+33)=_xlfn.SINGLE(行事曆年份),MONTH(_xlfn.SINGLE(OctSun1)+33)=10),_xlfn.SINGLE(OctSun1)+33,\"\"),IF(AND(YEAR(_xlfn.SINGLE(OctSun1)+40)=_xlfn.SINGLE(行事曆年份),MONTH(_xlfn.SINGLE(OctSun1)+40)=10),_xlfn.SINGLE(OctSun1)+40,\"\"))","v":""},{"$f":"IF(DAY(_xlfn.SINGLE(OctSun1))=1,IF(AND(YEAR(_xlfn.SINGLE(OctSun1)+34)=_xlfn.SINGLE(行事曆年份),MONTH(_xlfn.SINGLE(OctSun1)+34)=10),_xlfn.SINGLE(OctSun1)+34,\"\"),IF(AND(YEAR(_xlfn.SINGLE(OctSun1)+41)=_xlfn.SINGLE(行事曆年份),MONTH(_xlfn.SINGLE(OctSun1)+41)=10),_xlfn.SINGLE(OctSun1)+41,\"\"))","v":""},{"$f":"IF(DAY(_xlfn.SINGLE(OctSun1))=1,IF(AND(YEAR(_xlfn.SINGLE(OctSun1)+35)=_xlfn.SINGLE(行事曆年份),MONTH(_xlfn.SINGLE(OctSun1)+35)=10),_xlfn.SINGLE(OctSun1)+35,\"\"),IF(AND(YEAR(_xlfn.SINGLE(OctSun1)+42)=_xlfn.SINGLE(行事曆年份),MONTH(_xlfn.SINGLE(OctSun1)+42)=10),_xlfn.SINGLE(OctSun1)+42,\"\"))","v":""}]
["在儲存格 U47 中，輸入公司電話號碼",{"$nulls":19},"電話"]
["儲存格 C48 是 11 月標籤、儲存格 K48 是 12 月。在儲存格 U48 中輸入電子郵件地址",null,"十一月",{"$nulls":7},"十二月",{"$nulls":9},"電子郵件"]
["儲存格 C49 到 I55 是 11 月行事曆標籤、儲存格 K49 到 Q55 是 12 月行事曆標籤。儲存格 A51 是下一個說明",null,"週日","週一","週二","週三","週四","週五","週六",null,"週日","週一","週二","週三","週四","週五","週六",{"$nulls":3},"網站"]
[null,null,{"$f":"IF(DAY(_xlfn.SINGLE(NovSun1))=1,\"\",IF(AND(YEAR(_xlfn.SINGLE(NovSun1)+1)=_xlfn.SINGLE(行事曆年份),MONTH(_xlfn.SINGLE(NovSun1)+1)=11),_xlfn.SINGLE(NovSun1)+1,\"\"))","v":""},{"$f":"IF(DAY(_xlfn.SINGLE(NovSun1))=1,\"\",IF(AND(YEAR(_xlfn.SINGLE(NovSun1)+2)=_xlfn.SINGLE(行事曆年份),MONTH(_xlfn.SINGLE(NovSun1)+2)=11),_xlfn.SINGLE(NovSun1)+2,\"\"))","v":""},{"$f":"IF(DAY(_xlfn.SINGLE(NovSun1))=1,\"\",IF(AND(YEAR(_xlfn.SINGLE(NovSun1)+3)=_xlfn.SINGLE(行事曆年份),MONTH(_xlfn.SINGLE(NovSun1)+3)=11),_xlfn.SINGLE(NovSun1)+3,\"\"))","v":"2022-11-01"},{"$f":"IF(DAY(_xlfn.SINGLE(NovSun1))=1,\"\",IF(AND(YEAR(_xlfn.SINGLE(NovSun1)+4)=_xlfn.SINGLE(行事曆年份),MONTH(_xlfn.SINGLE(NovSun1)+4)=11),_xlfn.SINGLE(NovSun1)+4,\"\"))","v":"2022-11-02"},{"$f":"IF(DAY(_xlfn.SINGLE(NovSun1))=1,\"\",IF(AND(YEAR(_xlfn.SINGLE(NovSun1)+5)=_xlfn.SINGLE(行事曆年份),MONTH(_xlfn.SINGLE(NovSun1)+5)=11),_xlfn.SINGLE(NovSun1)+5,\"\"))","v":"2022-11-03"},{"$f":"IF(DAY(_xlfn.SINGLE(NovSun1))=1,\"\",IF(AND(YEAR(_xlfn.SINGLE(NovSun1)+6)=_xlfn.SINGLE(行事曆年份),MONTH(_xlfn.SINGLE(NovSun1)+6)=11),_xlfn.SINGLE(NovSun1)+6,\"\"))","v":"2022-11-04"},{"$f":"_xlfn.SINGLE(IF(DAY(_xlfn.SINGLE(NovSun1))=1,IF(AND(YEAR(_xlfn.SINGLE(NovSun1))=_xlfn.SINGLE(行事曆年份),MONTH(_xlfn.SINGLE(NovSun1))=11),NovSun1,\"\"),IF(AND(YEAR(_xlfn.SINGLE(NovSun1)+7)=_xlfn.SINGLE(行事曆年份),MONTH(_xlfn.SINGLE(NovSun1)+7)=11),_xlfn.SINGLE(NovSun1)+7,\"\")))","v":"2022-11-05"},null,{"$f":"IF(DAY(_xlfn.SINGLE(DecSun1))=1,\"\",IF(AND(YEAR(_xlfn.SINGLE(DecSun1)+1)=_xlfn.SINGLE(行事曆年份),MONTH(_xlfn.SINGLE(DecSun1)+1)=12),_xlfn.SINGLE(DecSun1)+1,\"\"))","v":""},{"$f":"IF(DAY(_xlfn.SINGLE(DecSun1))=1,\"\",IF(AND(YEAR(_xlfn.SINGLE(DecSun1)+2)=_xlfn.SINGLE(行事曆年份),MONTH(_xlfn.SINGLE(DecSun1)+2)=12),_xlfn.SINGLE(DecSun1)+2,\"\"))","v":""},{"$f":"IF(DAY(_xlfn.SINGLE(DecSun1))=1,\"\",IF(AND(YEAR(_xlfn.SINGLE(DecSun1)+3)=_xlfn.SINGLE(行事曆年份),MONTH(_xlfn.SINGLE(DecSun1)+3)=12),_xlfn.SINGLE(DecSun1)+3,\"\"))","v":""},{"$f":"IF(DAY(_xlfn.SINGLE(DecSun1))=1,\"\",IF(AND(YEAR(_xlfn.SINGLE(DecSun1)+4)=_xlfn.SINGLE(行事曆年份),MONTH(_xlfn.SINGLE(DecSun1)+4)=12),_xlfn.SINGLE(DecSun1)+4,\"\"))","v":""},{"$f":"IF(DAY(_xlfn.SINGLE(DecSun1))=1,\"\",IF(AND(YEAR(_xlfn.SINGLE(DecSun1)+5)=_xlfn.SINGLE(行事曆年份),MONTH(_xlfn.SINGLE(DecSun1)+5)=12),_xlfn.SINGLE(DecSun1)+5,\"\"))","v":"2022-12-01"},{"$f":"IF(DAY(_xlfn.SINGLE(DecSun1))=1,\"\",IF(AND(YEAR(_xlfn.SINGLE(DecSun1)+6)=_xlfn.SINGLE(行事曆年份),MONTH(_xlfn.SINGLE(DecSun1)+6)=12),_xlfn.SINGLE(DecSun1)+6,\"\"))","v":"2022-12-02"},{"$f":"_xlfn.SINGLE(IF(DAY(_xlfn.SINGLE(DecSun1))=1,IF(AND(YEAR(_xlfn.SINGLE(DecSun1))=_xlfn.SINGLE(行事曆年份),MONTH(_xlfn.SINGLE(DecSun1))=12),DecSun1,\"\"),IF(AND(YEAR(_xlfn.SINGLE(DecSun1)+7)=_xlfn.SINGLE(行事曆年份),MONTH(_xlfn.SINGLE(DecSun1)+7)=12),_xlfn.SINGLE(DecSun1)+7,\"\")))","v":"2022-12-03"}]
["在儲存格 U51 中新增公司標誌",null,{"$f":"IF(DAY(_xlfn.SINGLE(NovSun1))=1,IF(AND(YEAR(_xlfn.SINGLE(NovSun1)+1)=_xlfn.SINGLE(行事曆年份),MONTH(_xlfn.SINGLE(NovSun1)+1)=11),_xlfn.SINGLE(NovSun1)+1,\"\"),IF(AND(YEAR(_xlfn.SINGLE(NovSun1)+8)=_xlfn.SINGLE(行事曆年份),MONTH(_xlfn.SINGLE(NovSun1)+8)=11),_xlfn.SINGLE(NovSun1)+8,\"\"))","v":"2022-11-06"},{"$f":"IF(DAY(_xlfn.SINGLE(NovSun1))=1,IF(AND(YEAR(_xlfn.SINGLE(NovSun1)+2)=_xlfn.SINGLE(行事曆年份),MONTH(_xlfn.SINGLE(NovSun1)+2)=11),_xlfn.SINGLE(NovSun1)+2,\"\"),IF(AND(YEAR(_xlfn.SINGLE(NovSun1)+9)=_xlfn.SINGLE(行事曆年份),MONTH(_xlfn.SINGLE(NovSun1)+9)=11),_xlfn.SINGLE(NovSun1)+9,\"\"))","v":"2022-11-07"},{"$f":"IF(DAY(_xlfn.SINGLE(NovSun1))=1,IF(AND(YEAR(_xlfn.SINGLE(NovSun1)+3)=_xlfn.SINGLE(行事曆年份),MONTH(_xlfn.SINGLE(NovSun1)+3)=11),_xlfn.SINGLE(NovSun1)+3,\"\"),IF(AND(YEAR(_xlfn.SINGLE(NovSun1)+10)=_xlfn.SINGLE(行事曆年份),MONTH(_xlfn.SINGLE(NovSun1)+10)=11),_xlfn.SINGLE(NovSun1)+10,\"\"))","v":"2022-11-08"},{"$f":"IF(DAY(_xlfn.SINGLE(NovSun1))=1,IF(AND(YEAR(_xlfn.SINGLE(NovSun1)+4)=_xlfn.SINGLE(行事曆年份),MONTH(_xlfn.SINGLE(NovSun1)+4)=11),_xlfn.SINGLE(NovSun1)+4,\"\"),IF(AND(YEAR(_xlfn.SINGLE(NovSun1)+11)=_xlfn.SINGLE(行事曆年份),MONTH(_xlfn.SINGLE(NovSun1)+11)=11),_xlfn.SINGLE(NovSun1)+11,\"\"))","v":"2022-11-09"},{"$f":"IF(DAY(_xlfn.SINGLE(NovSun1))=1,IF(AND(YEAR(_xlfn.SINGLE(NovSun1)+5)=_xlfn.SINGLE(行事曆年份),MONTH(_xlfn.SINGLE(NovSun1)+5)=11),_xlfn.SINGLE(NovSun1)+5,\"\"),IF(AND(YEAR(_xlfn.SINGLE(NovSun1)+12)=_xlfn.SINGLE(行事曆年份),MONTH(_xlfn.SINGLE(NovSun1)+12)=11),_xlfn.SINGLE(NovSun1)+12,\"\"))","v":"2022-11-10"},{"$f":"IF(DAY(_xlfn.SINGLE(NovSun1))=1,IF(AND(YEAR(_xlfn.SINGLE(NovSun1)+6)=_xlfn.SINGLE(行事曆年份),MONTH(_xlfn.SINGLE(NovSun1)+6)=11),_xlfn.SINGLE(NovSun1)+6,\"\"),IF(AND(YEAR(_xlfn.SINGLE(NovSun1)+13)=_xlfn.SINGLE(行事曆年份),MONTH(_xlfn.SINGLE(NovSun1)+13)=11),_xlfn.SINGLE(NovSun1)+13,\"\"))","v":"2022-11-11"},{"$f":"IF(DAY(_xlfn.SINGLE(NovSun1))=1,IF(AND(YEAR(_xlfn.SINGLE(NovSun1)+7)=_xlfn.SINGLE(行事曆年份),MONTH(_xlfn.SINGLE(NovSun1)+7)=11),_xlfn.SINGLE(NovSun1)+7,\"\"),IF(AND(YEAR(_xlfn.SINGLE(NovSun1)+14)=_xlfn.SINGLE(行事曆年份),MONTH(_xlfn.SINGLE(NovSun1)+14)=11),_xlfn.SINGLE(NovSun1)+14,\"\"))","v":"2022-11-12"},null,{"$f":"IF(DAY(_xlfn.SINGLE(DecSun1))=1,IF(AND(YEAR(_xlfn.SINGLE(DecSun1)+1)=_xlfn.SINGLE(行事曆年份),MONTH(_xlfn.SINGLE(DecSun1)+1)=12),_xlfn.SINGLE(DecSun1)+1,\"\"),IF(AND(YEAR(_xlfn.SINGLE(DecSun1)+8)=_xlfn.SINGLE(行事曆年份),MONTH(_xlfn.SINGLE(DecSun1)+8)=12),_xlfn.SINGLE(DecSun1)+8,\"\"))","v":"2022-12-04"},{"$f":"IF(DAY(_xlfn.SINGLE(DecSun1))=1,IF(AND(YEAR(_xlfn.SINGLE(DecSun1)+2)=_xlfn.SINGLE(行事曆年份),MONTH(_xlfn.SINGLE(DecSun1)+2)=12),_xlfn.SINGLE(DecSun1)+2,\"\"),IF(AND(YEAR(_xlfn.SINGLE(DecSun1)+9)=_xlfn.SINGLE(行事曆年份),MONTH(_xlfn.SINGLE(DecSun1)+9)=12),_xlfn.SINGLE(DecSun1)+9,\"\"))","v":"2022-12-05"},{"$f":"IF(DAY(_xlfn.SINGLE(DecSun1))=1,IF(AND(YEAR(_xlfn.SINGLE(DecSun1)+3)=_xlfn.SINGLE(行事曆年份),MONTH(_xlfn.SINGLE(DecSun1)+3)=12),_xlfn.SINGLE(DecSun1)+3,\"\"),IF(AND(YEAR(_xlfn.SINGLE(DecSun1)+10)=_xlfn.SINGLE(行事曆年份),MONTH(_xlfn.SINGLE(DecSun1)+10)=12),_xlfn.SINGLE(DecSun1)+10,\"\"))","v":"2022-12-06"},{"$f":"IF(DAY(_xlfn.SINGLE(DecSun1))=1,IF(AND(YEAR(_xlfn.SINGLE(DecSun1)+4)=_xlfn.SINGLE(行事曆年份),MONTH(_xlfn.SINGLE(DecSun1)+4)=12),_xlfn.SINGLE(DecSun1)+4,\"\"),IF(AND(YEAR(_xlfn.SINGLE(DecSun1)+11)=_xlfn.SINGLE(行事曆年份),MONTH(_xlfn.SINGLE(DecSun1)+11)=12),_xlfn.SINGLE(DecSun1)+11,\"\"))","v":"2022-12-07"},{"$f":"IF(DAY(_xlfn.SINGLE(DecSun1))=1,IF(AND(YEAR(_xlfn.SINGLE(DecSun1)+5)=_xlfn.SINGLE(行事曆年份),MONTH(_xlfn.SINGLE(DecSun1)+5)=12),_xlfn.SINGLE(DecSun1)+5,\"\"),IF(AND(YEAR(_xlfn.SINGLE(DecSun1)+12)=_xlfn.SINGLE(行事曆年份),MONTH(_xlfn.SINGLE(DecSun1)+12)=12),_xlfn.SINGLE(DecSun1)+12,\"\"))","v":"2022-12-08"},{"$f":"IF(DAY(_xlfn.SINGLE(DecSun1))=1,IF(AND(YEAR(_xlfn.SINGLE(DecSun1)+6)=_xlfn.SINGLE(行事曆年份),MONTH(_xlfn.SINGLE(DecSun1)+6)=12),_xlfn.SINGLE(DecSun1)+6,\"\"),IF(AND(YEAR(_xlfn.SINGLE(DecSun1)+13)=_xlfn.SINGLE(行事曆年份),MONTH(_xlfn.SINGLE(DecSun1)+13)=12),_xlfn.SINGLE(DecSun1)+13,\"\"))","v":"2022-12-09"},{"$f":"IF(DAY(_xlfn.SINGLE(DecSun1))=1,IF(AND(YEAR(_xlfn.SINGLE(DecSun1)+7)=_xlfn.SINGLE(行事曆年份),MONTH(_xlfn.SINGLE(DecSun1)+7)=12),_xlfn.SINGLE(DecSun1)+7,\"\"),IF(AND(YEAR(_xlfn.SINGLE(DecSun1)+14)=_xlfn.SINGLE(行事曆年份),MONTH(_xlfn.SINGLE(DecSun1)+14)=12),_xlfn.SINGLE(DecSun1)+14,\"\"))","v":"2022-12-10"},{"$nulls":3},"此儲存格為標誌預留位置。"]
[null,null,{"$f":"IF(DAY(_xlfn.SINGLE(NovSun1))=1,IF(AND(YEAR(_xlfn.SINGLE(NovSun1)+8)=_xlfn.SINGLE(行事曆年份),MONTH(_xlfn.SINGLE(NovSun1)+8)=11),_xlfn.SINGLE(NovSun1)+8,\"\"),IF(AND(YEAR(_xlfn.SINGLE(NovSun1)+15)=_xlfn.SINGLE(行事曆年份),MONTH(_xlfn.SINGLE(NovSun1)+15)=11),_xlfn.SINGLE(NovSun1)+15,\"\"))","v":"2022-11-13"},{"$f":"IF(DAY(_xlfn.SINGLE(NovSun1))=1,IF(AND(YEAR(_xlfn.SINGLE(NovSun1)+9)=_xlfn.SINGLE(行事曆年份),MONTH(_xlfn.SINGLE(NovSun1)+9)=11),_xlfn.SINGLE(NovSun1)+9,\"\"),IF(AND(YEAR(_xlfn.SINGLE(NovSun1)+16)=_xlfn.SINGLE(行事曆年份),MONTH(_xlfn.SINGLE(NovSun1)+16)=11),_xlfn.SINGLE(NovSun1)+16,\"\"))","v":"2022-11-14"},{"$f":"IF(DAY(_xlfn.SINGLE(NovSun1))=1,IF(AND(YEAR(_xlfn.SINGLE(NovSun1)+10)=_xlfn.SINGLE(行事曆年份),MONTH(_xlfn.SINGLE(NovSun1)+10)=11),_xlfn.SINGLE(NovSun1)+10,\"\"),IF(AND(YEAR(_xlfn.SINGLE(NovSun1)+17)=_xlfn.SINGLE(行事曆年份),MONTH(_xlfn.SINGLE(NovSun1)+17)=11),_xlfn.SINGLE(NovSun1)+17,\"\"))","v":"2022-11-15"},{"$f":"IF(DAY(_xlfn.SINGLE(NovSun1))=1,IF(AND(YEAR(_xlfn.SINGLE(NovSun1)+11)=_xlfn.SINGLE(行事曆年份),MONTH(_xlfn.SINGLE(NovSun1)+11)=11),_xlfn.SINGLE(NovSun1)+11,\"\"),IF(AND(YEAR(_xlfn.SINGLE(NovSun1)+18)=_xlfn.SINGLE(行事曆年份),MONTH(_xlfn.SINGLE(NovSun1)+18)=11),_xlfn.SINGLE(NovSun1)+18,\"\"))","v":"2022-11-16"},{"$f":"IF(DAY(_xlfn.SINGLE(NovSun1))=1,IF(AND(YEAR(_xlfn.SINGLE(NovSun1)+12)=_xlfn.SINGLE(行事曆年份),MONTH(_xlfn.SINGLE(NovSun1)+12)=11),_xlfn.SINGLE(NovSun1)+12,\"\"),IF(AND(YEAR(_xlfn.SINGLE(NovSun1)+19)=_xlfn.SINGLE(行事曆年份),MONTH(_xlfn.SINGLE(NovSun1)+19)=11),_xlfn.SINGLE(NovSun1)+19,\"\"))","v":"2022-11-17"},{"$f":"IF(DAY(_xlfn.SINGLE(NovSun1))=1,IF(AND(YEAR(_xlfn.SINGLE(NovSun1)+13)=_xlfn.SINGLE(行事曆年份),MONTH(_xlfn.SINGLE(NovSun1)+13)=11),_xlfn.SINGLE(NovSun1)+13,\"\"),IF(AND(YEAR(_xlfn.SINGLE(NovSun1)+20)=_xlfn.SINGLE(行事曆年份),MONTH(_xlfn.SINGLE(NovSun1)+20)=11),_xlfn.SINGLE(NovSun1)+20,\"\"))","v":"2022-11-18"},{"$f":"IF(DAY(_xlfn.SINGLE(NovSun1))=1,IF(AND(YEAR(_xlfn.SINGLE(NovSun1)+14)=_xlfn.SINGLE(行事曆年份),MONTH(_xlfn.SINGLE(NovSun1)+14)=11),_xlfn.SINGLE(NovSun1)+14,\"\"),IF(AND(YEAR(_xlfn.SINGLE(NovSun1)+21)=_xlfn.SINGLE(行事曆年份),MONTH(_xlfn.SINGLE(NovSun1)+21)=11),_xlfn.SINGLE(NovSun1)+21,\"\"))","v":"2022-11-19"},null,{"$f":"IF(DAY(_xlfn.SINGLE(DecSun1))=1,IF(AND(YEAR(_xlfn.SINGLE(DecSun1)+8)=_xlfn.SINGLE(行事曆年份),MONTH(_xlfn.SINGLE(DecSun1)+8)=12),_xlfn.SINGLE(DecSun1)+8,\"\"),IF(AND(YEAR(_xlfn.SINGLE(DecSun1)+15)=_xlfn.SINGLE(行事曆年份),MONTH(_xlfn.SINGLE(DecSun1)+15)=12),_xlfn.SINGLE(DecSun1)+15,\"\"))","v":"2022-12-11"},{"$f":"IF(DAY(_xlfn.SINGLE(DecSun1))=1,IF(AND(YEAR(_xlfn.SINGLE(DecSun1)+9)=_xlfn.SINGLE(行事曆年份),MONTH(_xlfn.SINGLE(DecSun1)+9)=12),_xlfn.SINGLE(DecSun1)+9,\"\"),IF(AND(YEAR(_xlfn.SINGLE(DecSun1)+16)=_xlfn.SINGLE(行事曆年份),MONTH(_xlfn.SINGLE(DecSun1)+16)=12),_xlfn.SINGLE(DecSun1)+16,\"\"))","v":"2022-12-12"},{"$f":"IF(DAY(_xlfn.SINGLE(DecSun1))=1,IF(AND(YEAR(_xlfn.SINGLE(DecSun1)+10)=_xlfn.SINGLE(行事曆年份),MONTH(_xlfn.SINGLE(DecSun1)+10)=12),_xlfn.SINGLE(DecSun1)+10,\"\"),IF(AND(YEAR(_xlfn.SINGLE(DecSun1)+17)=_xlfn.SINGLE(行事曆年份),MONTH(_xlfn.SINGLE(DecSun1)+17)=12),_xlfn.SINGLE(DecSun1)+17,\"\"))","v":"2022-12-13"},{"$f":"IF(DAY(_xlfn.SINGLE(DecSun1))=1,IF(AND(YEAR(_xlfn.SINGLE(DecSun1)+11)=_xlfn.SINGLE(行事曆年份),MONTH(_xlfn.SINGLE(DecSun1)+11)=12),_xlfn.SINGLE(DecSun1)+11,\"\"),IF(AND(YEAR(_xlfn.SINGLE(DecSun1)+18)=_xlfn.SINGLE(行事曆年份),MONTH(_xlfn.SINGLE(DecSun1)+18)=12),_xlfn.SINGLE(DecSun1)+18,\"\"))","v":"2022-12-14"},{"$f":"IF(DAY(_xlfn.SINGLE(DecSun1))=1,IF(AND(YEAR(_xlfn.SINGLE(DecSun1)+12)=_xlfn.SINGLE(行事曆年份),MONTH(_xlfn.SINGLE(DecSun1)+12)=12),_xlfn.SINGLE(DecSun1)+12,\"\"),IF(AND(YEAR(_xlfn.SINGLE(DecSun1)+19)=_xlfn.SINGLE(行事曆年份),MONTH(_xlfn.SINGLE(DecSun1)+19)=12),_xlfn.SINGLE(DecSun1)+19,\"\"))","v":"2022-12-15"},{"$f":"IF(DAY(_xlfn.SINGLE(DecSun1))=1,IF(AND(YEAR(_xlfn.SINGLE(DecSun1)+13)=_xlfn.SINGLE(行事曆年份),MONTH(_xlfn.SINGLE(DecSun1)+13)=12),_xlfn.SINGLE(DecSun1)+13,\"\"),IF(AND(YEAR(_xlfn.SINGLE(DecSun1)+20)=_xlfn.SINGLE(行事曆年份),MONTH(_xlfn.SINGLE(DecSun1)+20)=12),_xlfn.SINGLE(DecSun1)+20,\"\"))","v":"2022-12-16"},{"$f":"IF(DAY(_xlfn.SINGLE(DecSun1))=1,IF(AND(YEAR(_xlfn.SINGLE(DecSun1)+14)=_xlfn.SINGLE(行事曆年份),MONTH(_xlfn.SINGLE(DecSun1)+14)=12),_xlfn.SINGLE(DecSun1)+14,\"\"),IF(AND(YEAR(_xlfn.SINGLE(DecSun1)+21)=_xlfn.SINGLE(行事曆年份),MONTH(_xlfn.SINGLE(DecSun1)+21)=12),_xlfn.SINGLE(DecSun1)+21,\"\"))","v":"2022-12-17"}]
[null,null,{"$f":"IF(DAY(_xlfn.SINGLE(NovSun1))=1,IF(AND(YEAR(_xlfn.SINGLE(NovSun1)+15)=_xlfn.SINGLE(行事曆年份),MONTH(_xlfn.SINGLE(NovSun1)+15)=11),_xlfn.SINGLE(NovSun1)+15,\"\"),IF(AND(YEAR(_xlfn.SINGLE(NovSun1)+22)=_xlfn.SINGLE(行事曆年份),MONTH(_xlfn.SINGLE(NovSun1)+22)=11),_xlfn.SINGLE(NovSun1)+22,\"\"))","v":"2022-11-20"},{"$f":"IF(DAY(_xlfn.SINGLE(NovSun1))=1,IF(AND(YEAR(_xlfn.SINGLE(NovSun1)+16)=_xlfn.SINGLE(行事曆年份),MONTH(_xlfn.SINGLE(NovSun1)+16)=11),_xlfn.SINGLE(NovSun1)+16,\"\"),IF(AND(YEAR(_xlfn.SINGLE(NovSun1)+23)=_xlfn.SINGLE(行事曆年份),MONTH(_xlfn.SINGLE(NovSun1)+23)=11),_xlfn.SINGLE(NovSun1)+23,\"\"))","v":"2022-11-21"},{"$f":"IF(DAY(_xlfn.SINGLE(NovSun1))=1,IF(AND(YEAR(_xlfn.SINGLE(NovSun1)+17)=_xlfn.SINGLE(行事曆年份),MONTH(_xlfn.SINGLE(NovSun1)+17)=11),_xlfn.SINGLE(NovSun1)+17,\"\"),IF(AND(YEAR(_xlfn.SINGLE(NovSun1)+24)=_xlfn.SINGLE(行事曆年份),MONTH(_xlfn.SINGLE(NovSun1)+24)=11),_xlfn.SINGLE(NovSun1)+24,\"\"))","v":"2022-11-22"},{"$f":"IF(DAY(_xlfn.SINGLE(NovSun1))=1,IF(AND(YEAR(_xlfn.SINGLE(NovSun1)+18)=_xlfn.SINGLE(行事曆年份),MONTH(_xlfn.SINGLE(NovSun1)+18)=11),_xlfn.SINGLE(NovSun1)+18,\"\"),IF(AND(YEAR(_xlfn.SINGLE(NovSun1)+25)=_xlfn.SINGLE(行事曆年份),MONTH(_xlfn.SINGLE(NovSun1)+25)=11),_xlfn.SINGLE(NovSun1)+25,\"\"))","v":"2022-11-23"},{"$f":"IF(DAY(_xlfn.SINGLE(NovSun1))=1,IF(AND(YEAR(_xlfn.SINGLE(NovSun1)+19)=_xlfn.SINGLE(行事曆年份),MONTH(_xlfn.SINGLE(NovSun1)+19)=11),_xlfn.SINGLE(NovSun1)+19,\"\"),IF(AND(YEAR(_xlfn.SINGLE(NovSun1)+26)=_xlfn.SINGLE(行事曆年份),MONTH(_xlfn.SINGLE(NovSun1)+26)=11),_xlfn.SINGLE(NovSun1)+26,\"\"))","v":"2022-11-24"},{"$f":"IF(DAY(_xlfn.SINGLE(NovSun1))=1,IF(AND(YEAR(_xlfn.SINGLE(NovSun1)+20)=_xlfn.SINGLE(行事曆年份),MONTH(_xlfn.SINGLE(NovSun1)+20)=11),_xlfn.SINGLE(NovSun1)+20,\"\"),IF(AND(YEAR(_xlfn.SINGLE(NovSun1)+27)=_xlfn.SINGLE(行事曆年份),MONTH(_xlfn.SINGLE(NovSun1)+27)=11),_xlfn.SINGLE(NovSun1)+27,\"\"))","v":"2022-11-25"},{"$f":"IF(DAY(_xlfn.SINGLE(NovSun1))=1,IF(AND(YEAR(_xlfn.SINGLE(NovSun1)+21)=_xlfn.SINGLE(行事曆年份),MONTH(_xlfn.SINGLE(NovSun1)+21)=11),_xlfn.SINGLE(NovSun1)+21,\"\"),IF(AND(YEAR(_xlfn.SINGLE(NovSun1)+28)=_xlfn.SINGLE(行事曆年份),MONTH(_xlfn.SINGLE(NovSun1)+28)=11),_xlfn.SINGLE(NovSun1)+28,\"\"))","v":"2022-11-26"},null,{"$f":"IF(DAY(_xlfn.SINGLE(DecSun1))=1,IF(AND(YEAR(_xlfn.SINGLE(DecSun1)+15)=_xlfn.SINGLE(行事曆年份),MONTH(_xlfn.SINGLE(DecSun1)+15)=12),_xlfn.SINGLE(DecSun1)+15,\"\"),IF(AND(YEAR(_xlfn.SINGLE(DecSun1)+22)=_xlfn.SINGLE(行事曆年份),MONTH(_xlfn.SINGLE(DecSun1)+22)=12),_xlfn.SINGLE(DecSun1)+22,\"\"))","v":"2022-12-18"},{"$f":"IF(DAY(_xlfn.SINGLE(DecSun1))=1,IF(AND(YEAR(_xlfn.SINGLE(DecSun1)+16)=_xlfn.SINGLE(行事曆年份),MONTH(_xlfn.SINGLE(DecSun1)+16)=12),_xlfn.SINGLE(DecSun1)+16,\"\"),IF(AND(YEAR(_xlfn.SINGLE(DecSun1)+23)=_xlfn.SINGLE(行事曆年份),MONTH(_xlfn.SINGLE(DecSun1)+23)=12),_xlfn.SINGLE(DecSun1)+23,\"\"))","v":"2022-12-19"},{"$f":"IF(DAY(_xlfn.SINGLE(DecSun1))=1,IF(AND(YEAR(_xlfn.SINGLE(DecSun1)+17)=_xlfn.SINGLE(行事曆年份),MONTH(_xlfn.SINGLE(DecSun1)+17)=12),_xlfn.SINGLE(DecSun1)+17,\"\"),IF(AND(YEAR(_xlfn.SINGLE(DecSun1)+24)=_xlfn.SINGLE(行事曆年份),MONTH(_xlfn.SINGLE(DecSun1)+24)=12),_xlfn.SINGLE(DecSun1)+24,\"\"))","v":"2022-12-20"},{"$f":"IF(DAY(_xlfn.SINGLE(DecSun1))=1,IF(AND(YEAR(_xlfn.SINGLE(DecSun1)+18)=_xlfn.SINGLE(行事曆年份),MONTH(_xlfn.SINGLE(DecSun1)+18)=12),_xlfn.SINGLE(DecSun1)+18,\"\"),IF(AND(YEAR(_xlfn.SINGLE(DecSun1)+25)=_xlfn.SINGLE(行事曆年份),MONTH(_xlfn.SINGLE(DecSun1)+25)=12),_xlfn.SINGLE(DecSun1)+25,\"\"))","v":"2022-12-21"},{"$f":"IF(DAY(_xlfn.SINGLE(DecSun1))=1,IF(AND(YEAR(_xlfn.SINGLE(DecSun1)+19)=_xlfn.SINGLE(行事曆年份),MONTH(_xlfn.SINGLE(DecSun1)+19)=12),_xlfn.SINGLE(DecSun1)+19,\"\"),IF(AND(YEAR(_xlfn.SINGLE(DecSun1)+26)=_xlfn.SINGLE(行事曆年份),MONTH(_xlfn.SINGLE(DecSun1)+26)=12),_xlfn.SINGLE(DecSun1)+26,\"\"))","v":"2022-12-22"},{"$f":"IF(DAY(_xlfn.SINGLE(DecSun1))=1,IF(AND(YEAR(_xlfn.SINGLE(DecSun1)+20)=_xlfn.SINGLE(行事曆年份),MONTH(_xlfn.SINGLE(DecSun1)+20)=12),_xlfn.SINGLE(DecSun1)+20,\"\"),IF(AND(YEAR(_xlfn.SINGLE(DecSun1)+27)=_xlfn.SINGLE(行事曆年份),MONTH(_xlfn.SINGLE(DecSun1)+27)=12),_xlfn.SINGLE(DecSun1)+27,\"\"))","v":"2022-12-23"},{"$f":"IF(DAY(_xlfn.SINGLE(DecSun1))=1,IF(AND(YEAR(_xlfn.SINGLE(DecSun1)+21)=_xlfn.SINGLE(行事曆年份),MONTH(_xlfn.SINGLE(DecSun1)+21)=12),_xlfn.SINGLE(DecSun1)+21,\"\"),IF(AND(YEAR(_xlfn.SINGLE(DecSun1)+28)=_xlfn.SINGLE(行事曆年份),MONTH(_xlfn.SINGLE(DecSun1)+28)=12),_xlfn.SINGLE(DecSun1)+28,\"\"))","v":"2022-12-24"}]
[null,null,{"$f":"IF(DAY(_xlfn.SINGLE(NovSun1))=1,IF(AND(YEAR(_xlfn.SINGLE(NovSun1)+22)=_xlfn.SINGLE(行事曆年份),MONTH(_xlfn.SINGLE(NovSun1)+22)=11),_xlfn.SINGLE(NovSun1)+22,\"\"),IF(AND(YEAR(_xlfn.SINGLE(NovSun1)+29)=_xlfn.SINGLE(行事曆年份),MONTH(_xlfn.SINGLE(NovSun1)+29)=11),_xlfn.SINGLE(NovSun1)+29,\"\"))","v":"2022-11-27"},{"$f":"IF(DAY(_xlfn.SINGLE(NovSun1))=1,IF(AND(YEAR(_xlfn.SINGLE(NovSun1)+23)=_xlfn.SINGLE(行事曆年份),MONTH(_xlfn.SINGLE(NovSun1)+23)=11),_xlfn.SINGLE(NovSun1)+23,\"\"),IF(AND(YEAR(_xlfn.SINGLE(NovSun1)+30)=_xlfn.SINGLE(行事曆年份),MONTH(_xlfn.SINGLE(NovSun1)+30)=11),_xlfn.SINGLE(NovSun1)+30,\"\"))","v":"2022-11-28"},{"$f":"IF(DAY(_xlfn.SINGLE(NovSun1))=1,IF(AND(YEAR(_xlfn.SINGLE(NovSun1)+24)=_xlfn.SINGLE(行事曆年份),MONTH(_xlfn.SINGLE(NovSun1)+24)=11),_xlfn.SINGLE(NovSun1)+24,\"\"),IF(AND(YEAR(_xlfn.SINGLE(NovSun1)+31)=_xlfn.SINGLE(行事曆年份),MONTH(_xlfn.SINGLE(NovSun1)+31)=11),_xlfn.SINGLE(NovSun1)+31,\"\"))","v":"2022-11-29"},{"$f":"IF(DAY(_xlfn.SINGLE(NovSun1))=1,IF(AND(YEAR(_xlfn.SINGLE(NovSun1)+25)=_xlfn.SINGLE(行事曆年份),MONTH(_xlfn.SINGLE(NovSun1)+25)=11),_xlfn.SINGLE(NovSun1)+25,\"\"),IF(AND(YEAR(_xlfn.SINGLE(NovSun1)+32)=_xlfn.SINGLE(行事曆年份),MONTH(_xlfn.SINGLE(NovSun1)+32)=11),_xlfn.SINGLE(NovSun1)+32,\"\"))","v":"2022-11-30"},{"$f":"IF(DAY(_xlfn.SINGLE(NovSun1))=1,IF(AND(YEAR(_xlfn.SINGLE(NovSun1)+26)=_xlfn.SINGLE(行事曆年份),MONTH(_xlfn.SINGLE(NovSun1)+26)=11),_xlfn.SINGLE(NovSun1)+26,\"\"),IF(AND(YEAR(_xlfn.SINGLE(NovSun1)+33)=_xlfn.SINGLE(行事曆年份),MONTH(_xlfn.SINGLE(NovSun1)+33)=11),_xlfn.SINGLE(NovSun1)+33,\"\"))","v":""},{"$f":"IF(DAY(_xlfn.SINGLE(NovSun1))=1,IF(AND(YEAR(_xlfn.SINGLE(NovSun1)+27)=_xlfn.SINGLE(行事曆年份),MONTH(_xlfn.SINGLE(NovSun1)+27)=11),_xlfn.SINGLE(NovSun1)+27,\"\"),IF(AND(YEAR(_xlfn.SINGLE(NovSun1)+34)=_xlfn.SINGLE(行事曆年份),MONTH(_xlfn.SINGLE(NovSun1)+34)=11),_xlfn.SINGLE(NovSun1)+34,\"\"))","v":""},{"$f":"IF(DAY(_xlfn.SINGLE(NovSun1))=1,IF(AND(YEAR(_xlfn.SINGLE(NovSun1)+28)=_xlfn.SINGLE(行事曆年份),MONTH(_xlfn.SINGLE(NovSun1)+28)=11),_xlfn.SINGLE(NovSun1)+28,\"\"),IF(AND(YEAR(_xlfn.SINGLE(NovSun1)+35)=_xlfn.SINGLE(行事曆年份),MONTH(_xlfn.SINGLE(NovSun1)+35)=11),_xlfn.SINGLE(NovSun1)+35,\"\"))","v":""},null,{"$f":"IF(DAY(_xlfn.SINGLE(DecSun1))=1,IF(AND(YEAR(_xlfn.SINGLE(DecSun1)+22)=_xlfn.SINGLE(行事曆年份),MONTH(_xlfn.SINGLE(DecSun1)+22)=12),_xlfn.SINGLE(DecSun1)+22,\"\"),IF(AND(YEAR(_xlfn.SINGLE(DecSun1)+29)=_xlfn.SINGLE(行事曆年份),MONTH(_xlfn.SINGLE(DecSun1)+29)=12),_xlfn.SINGLE(DecSun1)+29,\"\"))","v":"2022-12-25"},{"$f":"IF(DAY(_xlfn.SINGLE(DecSun1))=1,IF(AND(YEAR(_xlfn.SINGLE(DecSun1)+23)=_xlfn.SINGLE(行事曆年份),MONTH(_xlfn.SINGLE(DecSun1)+23)=12),_xlfn.SINGLE(DecSun1)+23,\"\"),IF(AND(YEAR(_xlfn.SINGLE(DecSun1)+30)=_xlfn.SINGLE(行事曆年份),MONTH(_xlfn.SINGLE(DecSun1)+30)=12),_xlfn.SINGLE(DecSun1)+30,\"\"))","v":"2022-12-26"},{"$f":"IF(DAY(_xlfn.SINGLE(DecSun1))=1,IF(AND(YEAR(_xlfn.SINGLE(DecSun1)+24)=_xlfn.SINGLE(行事曆年份),MONTH(_xlfn.SINGLE(DecSun1)+24)=12),_xlfn.SINGLE(DecSun1)+24,\"\"),IF(AND(YEAR(_xlfn.SINGLE(DecSun1)+31)=_xlfn.SINGLE(行事曆年份),MONTH(_xlfn.SINGLE(DecSun1)+31)=12),_xlfn.SINGLE(DecSun1)+31,\"\"))","v":"2022-12-27"},{"$f":"IF(DAY(_xlfn.SINGLE(DecSun1))=1,IF(AND(YEAR(_xlfn.SINGLE(DecSun1)+25)=_xlfn.SINGLE(行事曆年份),MONTH(_xlfn.SINGLE(DecSun1)+25)=12),_xlfn.SINGLE(DecSun1)+25,\"\"),IF(AND(YEAR(_xlfn.SINGLE(DecSun1)+32)=_xlfn.SINGLE(行事曆年份),MONTH(_xlfn.SINGLE(DecSun1)+32)=12),_xlfn.SINGLE(DecSun1)+32,\"\"))","v":"2022-12-28"},{"$f":"IF(DAY(_xlfn.SINGLE(DecSun1))=1,IF(AND(YEAR(_xlfn.SINGLE(DecSun1)+26)=_xlfn.SINGLE(行事曆年份),MONTH(_xlfn.SINGLE(DecSun1)+26)=12),_xlfn.SINGLE(DecSun1)+26,\"\"),IF(AND(YEAR(_xlfn.SINGLE(DecSun1)+33)=_xlfn.SINGLE(行事曆年份),MONTH(_xlfn.SINGLE(DecSun1)+33)=12),_xlfn.SINGLE(DecSun1)+33,\"\"))","v":"2022-12-29"},{"$f":"IF(DAY(_xlfn.SINGLE(DecSun1))=1,IF(AND(YEAR(_xlfn.SINGLE(DecSun1)+27)=_xlfn.SINGLE(行事曆年份),MONTH(_xlfn.SINGLE(DecSun1)+27)=12),_xlfn.SINGLE(DecSun1)+27,\"\"),IF(AND(YEAR(_xlfn.SINGLE(DecSun1)+34)=_xlfn.SINGLE(行事曆年份),MONTH(_xlfn.SINGLE(DecSun1)+34)=12),_xlfn.SINGLE(DecSun1)+34,\"\"))","v":"2022-12-30"},{"$f":"IF(DAY(_xlfn.SINGLE(DecSun1))=1,IF(AND(YEAR(_xlfn.SINGLE(DecSun1)+28)=_xlfn.SINGLE(行事曆年份),MONTH(_xlfn.SINGLE(DecSun1)+28)=12),_xlfn.SINGLE(DecSun1)+28,\"\"),IF(AND(YEAR(_xlfn.SINGLE(DecSun1)+35)=_xlfn.SINGLE(行事曆年份),MONTH(_xlfn.SINGLE(DecSun1)+35)=12),_xlfn.SINGLE(DecSun1)+35,\"\"))","v":"2022-12-31"}]
[null,null,{"$f":"IF(DAY(_xlfn.SINGLE(NovSun1))=1,IF(AND(YEAR(_xlfn.SINGLE(NovSun1)+29)=_xlfn.SINGLE(行事曆年份),MONTH(_xlfn.SINGLE(NovSun1)+29)=11),_xlfn.SINGLE(NovSun1)+29,\"\"),IF(AND(YEAR(_xlfn.SINGLE(NovSun1)+36)=_xlfn.SINGLE(行事曆年份),MONTH(_xlfn.SINGLE(NovSun1)+36)=11),_xlfn.SINGLE(NovSun1)+36,\"\"))","v":""},{"$f":"IF(DAY(_xlfn.SINGLE(NovSun1))=1,IF(AND(YEAR(_xlfn.SINGLE(NovSun1)+30)=_xlfn.SINGLE(行事曆年份),MONTH(_xlfn.SINGLE(NovSun1)+30)=11),_xlfn.SINGLE(NovSun1)+30,\"\"),IF(AND(YEAR(_xlfn.SINGLE(NovSun1)+37)=_xlfn.SINGLE(行事曆年份),MONTH(_xlfn.SINGLE(NovSun1)+37)=11),_xlfn.SINGLE(NovSun1)+37,\"\"))","v":""},{"$f":"IF(DAY(_xlfn.SINGLE(NovSun1))=1,IF(AND(YEAR(_xlfn.SINGLE(NovSun1)+31)=_xlfn.SINGLE(行事曆年份),MONTH(_xlfn.SINGLE(NovSun1)+31)=11),_xlfn.SINGLE(NovSun1)+31,\"\"),IF(AND(YEAR(_xlfn.SINGLE(NovSun1)+38)=_xlfn.SINGLE(行事曆年份),MONTH(_xlfn.SINGLE(NovSun1)+38)=11),_xlfn.SINGLE(NovSun1)+38,\"\"))","v":""},{"$f":"IF(DAY(_xlfn.SINGLE(NovSun1))=1,IF(AND(YEAR(_xlfn.SINGLE(NovSun1)+32)=_xlfn.SINGLE(行事曆年份),MONTH(_xlfn.SINGLE(NovSun1)+32)=11),_xlfn.SINGLE(NovSun1)+32,\"\"),IF(AND(YEAR(_xlfn.SINGLE(NovSun1)+39)=_xlfn.SINGLE(行事曆年份),MONTH(_xlfn.SINGLE(NovSun1)+39)=11),_xlfn.SINGLE(NovSun1)+39,\"\"))","v":""},{"$f":"IF(DAY(_xlfn.SINGLE(NovSun1))=1,IF(AND(YEAR(_xlfn.SINGLE(NovSun1)+33)=_xlfn.SINGLE(行事曆年份),MONTH(_xlfn.SINGLE(NovSun1)+33)=11),_xlfn.SINGLE(NovSun1)+33,\"\"),IF(AND(YEAR(_xlfn.SINGLE(NovSun1)+40)=_xlfn.SINGLE(行事曆年份),MONTH(_xlfn.SINGLE(NovSun1)+40)=11),_xlfn.SINGLE(NovSun1)+40,\"\"))","v":""},{"$f":"IF(DAY(_xlfn.SINGLE(NovSun1))=1,IF(AND(YEAR(_xlfn.SINGLE(NovSun1)+34)=_xlfn.SINGLE(行事曆年份),MONTH(_xlfn.SINGLE(NovSun1)+34)=11),_xlfn.SINGLE(NovSun1)+34,\"\"),IF(AND(YEAR(_xlfn.SINGLE(NovSun1)+41)=_xlfn.SINGLE(行事曆年份),MONTH(_xlfn.SINGLE(NovSun1)+41)=11),_xlfn.SINGLE(NovSun1)+41,\"\"))","v":""},{"$f":"IF(DAY(_xlfn.SINGLE(NovSun1))=1,IF(AND(YEAR(_xlfn.SINGLE(NovSun1)+35)=_xlfn.SINGLE(行事曆年份),MONTH(_xlfn.SINGLE(NovSun1)+35)=11),_xlfn.SINGLE(NovSun1)+35,\"\"),IF(AND(YEAR(_xlfn.SINGLE(NovSun1)+42)=_xlfn.SINGLE(行事曆年份),MONTH(_xlfn.SINGLE(NovSun1)+42)=11),_xlfn.SINGLE(NovSun1)+42,\"\"))","v":""},null,{"$f":"IF(DAY(_xlfn.SINGLE(DecSun1))=1,IF(AND(YEAR(_xlfn.SINGLE(DecSun1)+29)=_xlfn.SINGLE(行事曆年份),MONTH(_xlfn.SINGLE(DecSun1)+29)=12),_xlfn.SINGLE(DecSun1)+29,\"\"),IF(AND(YEAR(_xlfn.SINGLE(DecSun1)+36)=_xlfn.SINGLE(行事曆年份),MONTH(_xlfn.SINGLE(DecSun1)+36)=12),_xlfn.SINGLE(DecSun1)+36,\"\"))","v":""},{"$f":"IF(DAY(_xlfn.SINGLE(DecSun1))=1,IF(AND(YEAR(_xlfn.SINGLE(DecSun1)+30)=_xlfn.SINGLE(行事曆年份),MONTH(_xlfn.SINGLE(DecSun1)+30)=12),_xlfn.SINGLE(DecSun1)+30,\"\"),IF(AND(YEAR(_xlfn.SINGLE(DecSun1)+37)=_xlfn.SINGLE(行事曆年份),MONTH(_xlfn.SINGLE(DecSun1)+37)=12),_xlfn.SINGLE(DecSun1)+37,\"\"))","v":""},{"$f":"IF(DAY(_xlfn.SINGLE(DecSun1))=1,IF(AND(YEAR(_xlfn.SINGLE(DecSun1)+31)=_xlfn.SINGLE(行事曆年份),MONTH(_xlfn.SINGLE(DecSun1)+31)=12),_xlfn.SINGLE(DecSun1)+31,\"\"),IF(AND(YEAR(_xlfn.SINGLE(DecSun1)+38)=_xlfn.SINGLE(行事曆年份),MONTH(_xlfn.SINGLE(DecSun1)+38)=12),_xlfn.SINGLE(DecSun1)+38,\"\"))","v":""},{"$f":"IF(DAY(_xlfn.SINGLE(DecSun1))=1,IF(AND(YEAR(_xlfn.SINGLE(DecSun1)+32)=_xlfn.SINGLE(行事曆年份),MONTH(_xlfn.SINGLE(DecSun1)+32)=12),_xlfn.SINGLE(DecSun1)+32,\"\"),IF(AND(YEAR(_xlfn.SINGLE(DecSun1)+39)=_xlfn.SINGLE(行事曆年份),MONTH(_xlfn.SINGLE(DecSun1)+39)=12),_xlfn.SINGLE(DecSun1)+39,\"\"))","v":""},{"$f":"IF(DAY(_xlfn.SINGLE(DecSun1))=1,IF(AND(YEAR(_xlfn.SINGLE(DecSun1)+33)=_xlfn.SINGLE(行事曆年份),MONTH(_xlfn.SINGLE(DecSun1)+33)=12),_xlfn.SINGLE(DecSun1)+33,\"\"),IF(AND(YEAR(_xlfn.SINGLE(DecSun1)+40)=_xlfn.SINGLE(行事曆年份),MONTH(_xlfn.SINGLE(DecSun1)+40)=12),_xlfn.SINGLE(DecSun1)+40,\"\"))","v":""},{"$f":"IF(DAY(_xlfn.SINGLE(DecSun1))=1,IF(AND(YEAR(_xlfn.SINGLE(DecSun1)+34)=_xlfn.SINGLE(行事曆年份),MONTH(_xlfn.SINGLE(DecSun1)+34)=12),_xlfn.SINGLE(DecSun1)+34,\"\"),IF(AND(YEAR(_xlfn.SINGLE(DecSun1)+41)=_xlfn.SINGLE(行事曆年份),MONTH(_xlfn.SINGLE(DecSun1)+41)=12),_xlfn.SINGLE(DecSun1)+41,\"\"))","v":""},{"$f":"IF(DAY(_xlfn.SINGLE(DecSun1))=1,IF(AND(YEAR(_xlfn.SINGLE(DecSun1)+35)=_xlfn.SINGLE(行事曆年份),MONTH(_xlfn.SINGLE(DecSun1)+35)=12),_xlfn.SINGLE(DecSun1)+35,\"\"),IF(AND(YEAR(_xlfn.SINGLE(DecSun1)+42)=_xlfn.SINGLE(行事曆年份),MONTH(_xlfn.SINGLE(DecSun1)+42)=12),_xlfn.SINGLE(DecSun1)+42,\"\"))","v":""}]